Workbook

Sheet Manual Inputs
B1: Company | D1: Kentucky Power Co.
B2: State/Jurisdiction | D2: Kentucky
B3: Customer Class | D3: General Service - Primary
B4: Sample Year Begins | D4: 2019-04-01 | E4: =+D4+0/24 -> 2019-04-01
B5: Reporting Year Begins | D5: 2019-04-01 | E5: =+D5+0/24 -> 2019-04-01
B6: Days in Sample Year | D6: =DATE(YEAR(TYBegin)+1,MONTH(TYBegin),DAY(TYBegin))-TYBegin -> 366
A9: Test Year Inputs from Revenue Process
A10: Year | B10: Month | C10: kWh | D10: Customers | F10: SummaryID | G10: NCPTotal | H10: NCPOnPk | I10: NCPOffPk
A11: =YEAR(D5) -> 2019 | B11: =MONTH(D4) -> 4 | C11: 607077.6495 | D11: 909 | F11: LRAPKPCGSA | G11: 9.398557115 | H11: 9.158550738 | I11: 8.095108053
A12: =IF(B12=1,A11+1,A11) -> 2019 | B12: =IF(B11=12,1,B11+1) -> 5 | C12: 509553.3386 | D12: 909
A13: =IF(B13=1,A12+1,A12) -> 2019 | B13: =IF(B12=12,1,B12+1) -> 6 | C13: 506125.4259 | D13: 909
A14: 2019 | B14: 7 | C14: 538287.8718 | D14: 909
A15: 2019 | B15: 8 | C15: 521523.7938 | D15: 909
A16: 2019 | B16: 9 | C16: 546641.2275 | D16: 909
A17: 2019 | B17: 10 | C17: 581858.9612 | D17: 909
A18: 2019 | B18: 11 | C18: 655007.9191 | D18: 909
A19: 2019 | B19: 12 | C19: 862046.0796 | D19: 909
A20: 2020 | B20: 1 | C20: 1043607.908 | D20: 909
A21: 2020 | B21: 2 | C21: 895571.0806 | D21: 909
A22: 2020 | B22: 3 | C22: 849116.0992 | D22: 909
C23: =SUM(C11:C22) -> 8116417.355 | D23: =SUM(D11:D22) -> 10908
A25: Coincident Peaks
A26: Year | B26: Month | C26: Day | D26: Hour Ended | E26: Concident Peak
A27: =YEAR(TYBegin) -> 2019 | B27: =MONTH(TYBegin) -> 4 | C27: 1 | D27: 7 | E27: =DATEVALUE(B27&"/"&C27&"/"&A27)+(D27-1)/24 -> 2019-04-01T06:00:00
A28: =IF(B28=1,A27+1,A27) -> 2019 | B28: =IF(B27=12,1,B27+1) -> 5 | C28: 28 | D28: 16 | E28: =DATEVALUE(B28&"/"&C28&"/"&A28)+(D28-1)/24 -> 2019-05-28T15:00:00
A29: =IF(B29=1,A28+1,A28) -> 2019 | B29: =IF(B28=12,1,B28+1) -> 6 | C29: 27 | D29: 16 | E29: 2019-06-27T15:00:00
A30: 2019 | B30: 7 | C30: 19 | D30: 16 | E30: 2019-07-19T15:00:00
A31: 2019 | B31: 8 | C31: 19 | D31: 16 | E31: 2019-08-19T15:00:00
A32: 2019 | B32: 9 | C32: 11 | D32: 16 | E32: 2019-09-11T15:00:00
A33: 2019 | B33: 10 | C33: 1 | D33: 16 | E33: 2019-10-01T15:00:00
A34: 2019 | B34: 11 | C34: 13 | D34: 8 | E34: 2019-11-13T07:00:00
A35: 2019 | B35: 12 | C35: 19 | D35: 8 | E35: 2019-12-19T07:00:00
A36: 2020 | B36: 1 | C36: 22 | D36: 8 | E36: 2020-01-22T07:00:00
A37: 2020 | B37: 2 | C37: 15 | D37: 8 | E37: 2020-02-15T07:00:00
A38: 2020 | B38: 3 | C38: 1 | D38: 8 | E38: 2020-03-01T07:00:00

Sheet TOD Inputs
A1: Peak Times for TOD Tariffs | F1: Holidays
B2: Hour | C2: Formatted | F2: Description | G2: Date
A3: Peak Start Hour | B3: 7 | C3: =TEXT(B3/24,"h:mm AM/PM") -> 7:00 AM | F3: New Year's Day
A4: Peak End Hour | B4: 21 | C4: =TEXT(B4/24,"h:mm AM/PM") -> 9:00 PM | F4: President's Day
F5: Memorial Day
F6: Independence Day
A7: Daylight Savings Time | F7: Labor Day
A8: Starts | B8: 2020-03-08 | F8: Thanksgiving Day
A9: Ends | B9: 2019-11-03 | F9: Christmas Day
A19: DST Dates
B20: 2011 | C20: 2012 | D20: 2013 | E20: 2014
A21: Starts | B21: 2011-03-13 | C21: 2012-03-11 | D21: 2013-03-10 | E21: 2014-03-09
A22: Ends | B22: 2011-11-06 | C22: 2012-11-04 | D22: 2013-11-03 | E22: 2014-11-02
B24: 2015 | C24: 2016
B25: 2015-03-08 | C25: 2016-03-13
B26: 2015-11-01 | C26: 2016-11-06

Sheet LR Monthly
A1: STATISTICID | B1: CNAME | C1: YEAR | D1: MONTH | E1: ENERGY_MPU | F1: NCP | G1: NCP_ON | H1: NCP_OFF | I1: ClassPeak_Mont | J1: CLASS_PEAK_ON | K1: CLASS_PEAK_OFF
A2: LRKPCGSA | B2: KPC GSA CLASS RLW | C2: 2019 | D2: 4 | E2: 1346.77739 | F2: 6.229621146 | G2: 5.940631238 | H2: 4.707290347 | I2: 3.423554654 | J2: 3.423554654 | K2: 2.47607947
A3: LRKPCGSA | B3: KPC GSA CLASS RLW | C3: 2019 | D3: 5 | E3: 1522.088955 | F3: 5.73280817 | G3: 5.524090473 | H3: 4.700381206 | I3: 3.568986194 | J3: 3.568986194 | K3: 3.156704713
A4: LRKPCGSA | B4: KPC GSA CLASS RLW | C4: 2019 | D4: 6 | E4: 1529.713179 | F4: 5.853333757 | G4: 5.580706817 | H4: 4.904434643 | I4: 3.81399942 | J4: 3.81399942 | K4: 3.100746699
A5: LRKPCGSA | B5: KPC GSA CLASS RLW | C5: 2019 | D5: 7 | E5: 1829.348238 | F5: 6.088931276 | G5: 5.885637968 | H5: 5.164948765 | I5: 4.095588549 | J5: 4.095588549 | K5: 3.453053832
A6: LRKPCGSA | B6: KPC GSA CLASS RLW | C6: 2019 | D6: 8 | E6: 1791.267466 | F6: 6.222804452 | G6: 6.026440146 | H6: 5.251714296 | I6: 4.13471139 | J6: 4.13471139 | K6: 3.311240999
A7: LRKPCGSA | B7: KPC GSA CLASS RLW | C7: 2019 | D7: 9 | E7: 1698.256789 | F7: 6.146577601 | G7: 5.951852591 | H7: 5.132117625 | I7: 4.104615225 | J7: 4.104615225 | K7: 3.145136638
A8: LRKPCGSA | B8: KPC GSA CLASS RLW | C8: 2019 | D8: 10 | E8: 1447.126058 | F8: 6.420281439 | G8: 6.291911375 | H8: 4.667549169 | I8: 4.011657303 | J8: 4.011657303 | K8: 2.612156212
A9: LRKPCGSA | B9: KPC GSA CLASS RLW | C9: 2019 | D9: 11 | E9: 1692.016767 | F9: 6.871197926 | G9: 6.406852926 | H9: 5.906242168 | I9: 3.888700386 | J9: 3.888700386 | K9: 3.502949073
A10: LRKPCGSA | B10: KPC GSA CLASS RLW | C10: 2019 | D10: 12 | E10: 1806.378858 | F10: 6.875172831 | G10: 6.681888881 | H10: 5.684286429 | I10: 4.11573346 | J10: 4.11573346 | K10: 3.348292373
A11: LRKPCGSA | B11: KPC GSA CLASS RLW | C11: 2020 | D11: 1 | E11: 1805.20784 | F11: 7.010623925 | G11: 6.746357823 | H11: 5.793366867 | I11: 4.213304323 | J11: 4.213304323 | K11: 3.642185485
A12: LRKPCGSA | B12: KPC GSA CLASS RLW | C12: 2020 | D12: 2 | E12: 1728.022761 | F12: 6.7269331 | G12: 6.194217471 | H12: 5.858801362 | I12: 3.802606394 | J12: 3.802606394 | K12: 3.629819438
A13: LRKPCGSA | B13: KPC GSA CLASS RLW | C13: 2020 | D13: 3 | E13: 1464.517638 | F13: 6.526999863 | G13: 5.682009139 | H13: 5.670727853 | I13: 3.465708911 | J13: 3.306289681 | K13: 3.465708911

Sheet LR 8760 Loads
A1: ClassID | B1: Date | E1: IN | F1: UM | G1: CH | H1: TYP | I1: 01:00:00 | J1: 02:00:00 | K1: 03:00:00 | L1: 04:00:00 | M1: 05:00:00 | N1: 06:00:00 | O1: 07:00:00 | P1: 08:00:00 | Q1: 09:00:00 | R1: 10:00:00 | S1: 11:00:00 | T1: 12:00:00 | U1: 13:00:00 | V1: 14:00:00 | W1: 15:00:00 | X1: 16:00:00 | Y1: 17:00:00 | Z1: 18:00:00 | AA1: 19:00:00 | AB1: 20:00:00 | AC1: 21:00:00 | AD1: 22:00:00 | AE1: 23:00:00 | AF1: 1
A2: LRKPCGSA | B2: 040119 | C2: 1 | D2: 2400 | E2: 60 | F2: 1 | G2: 1 | H2: KW | I2: 1.892002769 | J2: 1.929611412 | K2: 1.934993501 | L2: 1.946649273 | M2: 2.062172054 | N2: 2.152792161 | O2: 2.426206151 | P2: 2.937500146 | Q2: 3.423554654 | R2: 3.369119526 | S2: 3.068643823 | T2: 2.752368223 | U2: 2.722106304 | V2: 2.670772659 | W2: 2.60808505 | X2: 2.458132467 | Y2: 2.182624895 | Z2: 1.931540303 | AA2: 1.869063138 | AB2: 1.76593034 | AC2: 1.926351077 | AD2: 1.980244626 | AE2: 1.93033011 | AF2: 2.013311199
A3: LRKPCGSA | B3: 040219 | C3: 1 | D3: 2400 | E3: 60 | F3: 1 | G3: 1 | H3: KW | I3: 2.049699331 | J3: 2.103171574 | K3: 2.120584948 | L3: 2.089136434 | M3: 2.090250094 | N3: 2.174265161 | O3: 2.425728061 | P3: 2.650906287 | Q3: 2.976471819 | R3: 3.07104117 | S3: 2.796253366 | T3: 2.680069392 | U3: 2.653462013 | V3: 2.617248889 | W3: 2.601907609 | X3: 2.394173771 | Y3: 2.259092905 | Z3: 1.932872577 | AA3: 1.953978862 | AB3: 1.915961762 | AC3: 1.991353871 | AD3: 2.01792364 | AE3: 1.908571581 | AF3: 1.897898728
A4: LRKPCGSA | B4: 040319 | C4: 1 | D4: 2400 | E4: 60 | F4: 1 | G4: 1 | H4: KW | I4: 1.948410626 | J4: 2.012879013 | K4: 2.045990133 | L4: 2.06153421 | M4: 2.148016083 | N4: 2.325927242 | O4: 2.47607947 | P4: 2.815873601 | Q4: 2.916125314 | R4: 2.981340039 | S4: 2.773619352 | T4: 2.58918424 | U4: 2.633109633 | V4: 2.580917053 | W4: 2.470318566 | X4: 2.381535488 | Y4: 2.422379454 | Z4: 2.210100662 | AA4: 2.0554688 | AB4: 2.018225892 | AC4: 1.892833114 | AD4: 1.854928093 | AE4: 1.721883484 | AF4: 1.595870249
A5: LRKPCGSA | B5: 040419 | C5: 1 | D5: 2400 | E5: 60 | F5: 1 | G5: 1 | H5: KW | I5: 1.502577864 | J5: 1.492781066 | K5: 1.584135744 | L5: 1.594397483 | M5: 1.622205104 | N5: 1.72784694 | O5: 2.006552045 | P5: 2.201098316 | Q5: 2.53242802 | R5: 2.609521253 | S5: 2.440580559 | T5: 2.293359372 | U5: 2.502594241 | V5: 2.511352826 | W5: 2.465410239 | X5: 2.54765002 | Y5: 2.395086371 | Z5: 2.07080953 | AA5: 1.948358626 | AB5: 1.828052572 | AC5: 1.880076552 | AD5: 1.881559765 | AE5: 1.643014481 | AF5: 1.490190205
A6: LRKPCGSA | B6: 040519 | C6: 1 | D6: 2400 | E6: 60 | F6: 1 | G6: 1 | H6: KW | I6: 1.461268331 | J6: 1.482356407 | K6: 1.532802646 | L6: 1.518417851 | M6: 1.433027675 | N6: 1.360611899 | O6: 1.498125332 | P6: 1.767260417 | Q6: 1.976340869 | R6: 2.293512187 | S6: 2.313483891 | T6: 2.299215136 | U6: 2.371897027 | V6: 2.46411354 | W6: 2.327096496 | X6: 2.271628241 | Y6: 2.270606473 | Z6: 1.976163484 | AA6: 1.821185488 | AB6: 1.670436325 | AC6: 1.741687096 | AD6: 1.81414862 | AE6: 1.630351841 | AF6: 1.501290478
A7: LRKPCGSA | B7: 040619 | C7: 1 | D7: 2400 | E7: 60 | F7: 1 | G7: 1 | H7: KW | I7: 1.456307618 | J7: 1.313977282 | K7: 1.299944738 | L7: 1.264692132 | M7: 1.228666062 | N7: 1.278007137 | O7: 1.405771999 | P7: 1.414579629 | Q7: 1.620176569 | R7: 1.745727829 | S7: 1.823012466 | T7: 1.885662658 | U7: 1.886056339 | V7: 1.907429449 | W7: 1.88181474 | X7: 1.940634313 | Y7: 1.803593052 | Z7: 1.762653835 | AA7: 1.774824936 | AB7: 1.851191136 | AC7: 1.944249085 | AD7: 1.868062011 | AE7: 1.687475787 | AF7: 1.577281549
A8: LRKPCGSA | B8: 040719 | C8: 1 | D8: 2400 | E8: 60 | F8: 1 | G8: 1 | H8: KW | I8: 1.484354254 | J8: 1.354797794 | K8: 1.35051359 | L8: 1.306526069 | M8: 1.333265038 | N8: 1.365217693 | O8: 1.465555385 | P8: 1.658725037 | Q8: 1.73308482 | R8: 1.812862654 | S8: 1.768253899 | T8: 1.765452917 | U8: 1.832590109 | V8: 1.826256822 | W8: 1.776633401 | X8: 1.750028249 | Y8: 1.728161214 | Z8: 1.703991376 | AA8: 1.717264289 | AB8: 1.709348686 | AC8: 1.682137091 | AD8: 1.6044408 | AE8: 1.488288861 | AF8: 1.470591687
A9: LRKPCGSA | B9: 040819 | C9: 1 | D9: 2400 | E9: 60 | F9: 1 | G9: 1 | H9: KW | I9: 1.45126975 | J9: 1.321191104 | K9: 1.300948264 | L9: 1.258983557 | M9: 1.236140166 | N9: 1.306357674 | O9: 1.478051359 | P9: 1.708191817 | Q9: 2.029921193 | R9: 2.267386559 | S9: 2.41451152 | T9: 2.422695161 | U9: 2.440706538 | V9: 2.540696638 | W9: 2.410067255 | X9: 2.291709789 | Y9: 2.130937444 | Z9: 1.837578408 | AA9: 1.714890861 | AB9: 1.662278561 | AC9: 1.670499616 | AD9: 1.735871742 | AE9: 1.609211852 | AF9: 1.518264049
A10: LRKPCGSA | B10: 040919 | C10: 1 | D10: 2400 | E10: 60 | F10: 1 | G10: 1 | H10: KW | I10: 1.488111688 | J10: 1.464951961 | K10: 1.375421067 | L10: 1.235435911 | M10: 1.284087557 | N10: 1.3073859 | O10: 1.593557137 | P10: 1.773041699 | Q10: 2.104938579 | R10: 2.357128202 | S10: 2.287933361 | T10: 2.357527481 | U10: 2.494160507 | V10: 2.605272595 | W10: 2.590033639 | X10: 2.604252979 | Y10: 2.469917171 | Z10: 2.067332216 | AA10: 1.902626809 | AB10: 1.816040113 | AC10: 1.776573483 | AD10: 1.67431069 | AE10: 1.592516817 | AF10: 1.516918047
A11: LRKPCGSA | B11: 041019 | C11: 1 | D11: 2400 | E11: 60 | F11: 1 | G11: 1 | H11: KW | I11: 1.437469239 | J11: 1.412773512 | K11: 1.391781902 | L11: 1.337664569 | M11: 1.367987928 | N11: 1.395571983 | O11: 1.655753693 | P11: 1.889905767 | Q11: 2.306069332 | R11: 2.384063121 | S11: 2.429786417 | T11: 2.271371781 | U11: 2.336451879 | V11: 2.425728315 | W11: 2.411735666 | X11: 2.333988951 | Y11: 2.170104008 | Z11: 2.095754696 | AA11: 2.045576435 | AB11: 2.05935598 | AC11: 1.916124701 | AD11: 1.713556401 | AE11: 1.606914004 | AF11: 1.487703822
A12: LRKPCGSA | B12: 041119 | C12: 1 | D12: 2400 | E12: 60 | F12: 1 | G12: 1 | H12: KW | I12: 1.372412681 | J12: 1.258612582 | K12: 1.246218311 | L12: 1.248582867 | M12: 1.243499853 | N12: 1.279253357 | O12: 1.627258906 | P12: 1.709498073 | Q12: 2.001661306 | R12: 2.18012526 | S12: 2.2310777 | T12: 2.431098513 | U12: 2.538174578 | V12: 2.58597759 | W12: 2.680702277 | X12: 2.764663967 | Y12: 2.590329599 | Z12: 2.310914441 | AA12: 2.151366105 | AB12: 2.015426321 | AC12: 2.043360399 | AD12: 1.958041928 | AE12: 1.722428611 | AF12: 1.597967131
A13: LRKPCGSA | B13: 041219 | C13: 1 | D13: 2400 | E13: 60 | F13: 1 | G13: 1 | H13: KW | I13: 1.516122216 | J13: 1.480460348 | K13: 1.551177856 | L13: 1.466216824 | M13: 1.437815011 | N13: 1.30123848 | O13: 1.431954041 | P13: 1.680368075 | Q13: 1.964418086 | R13: 2.266703864 | S13: 2.344367445 | T13: 2.251580736 | U13: 2.276351211 | V13: 2.375239142 | W13: 2.433809909 | X13: 2.416998233 | Y13: 2.251396882 | Z13: 2.017164352 | AA13: 1.802943678 | AB13: 1.754636663 | AC13: 1.828700498 | AD13: 1.834725029 | AE13: 1.756584758 | AF13: 1.504595792
A14: LRKPCGSA | B14: 041319 | C14: 1 | D14: 2400 | E14: 60 | F14: 1 | G14: 1 | H14: KW | I14: 1.376124558 | J14: 1.305793768 | K14: 1.198182246 | L14: 1.184859905 | M14: 1.232907103 | N14: 1.234275895 | O14: 1.340937157 | P14: 1.443963984 | Q14: 1.450157718 | R14: 1.67681336 | S14: 1.703525424 | T14: 1.732220016 | U14: 1.763067992 | V14: 1.803574278 | W14: 1.660729044 | X14: 1.701657469 | Y14: 1.612715669 | Z14: 1.582143608 | AA14: 1.551101011 | AB14: 1.615551147 | AC14: 1.638086118 | AD14: 1.63614065 | AE14: 1.474488013 | AF14: 1.401133882
A15: LRKPCGSA | B15: 041419 | C15: 1 | D15: 2400 | E15: 60 | F15: 1 | G15: 1 | H15: KW | I15: 1.373293714 | J15: 1.293687237 | K15: 1.242054536 | L15: 1.23022123 | M15: 1.209131061 | N15: 1.150739205 | O15: 1.251246686 | P15: 1.333820542 | Q15: 1.528772842 | R15: 1.620884737 | S15: 1.888660028 | T15: 1.750443298 | U15: 1.691481888 | V15: 1.766956542 | W15: 1.831055516 | X15: 1.853877965 | Y15: 1.823172239 | Z15: 1.747071548 | AA15: 1.746913529 | AB15: 1.701412493 | AC15: 1.702354463 | AD15: 1.662605831 | AE15: 1.506495967 | AF15: 1.394906425
A16: LRKPCGSA | B16: 041519 | C16: 1 | D16: 2400 | E16: 60 | F16: 1 | G16: 1 | H16: KW | I16: 1.267331604 | J16: 1.262524431 | K16: 1.294666892 | L16: 1.274192168 | M16: 1.267947781 | N16: 1.370869412 | O16: 1.483724802 | P16: 1.762156466 | Q16: 2.213124766 | R16: 2.498755749 | S16: 2.512289381 | T16: 2.551077902 | U16: 2.478407691 | V16: 2.43832369 | W16: 2.43377202 | X16: 2.35313893 | Y16: 2.165697269 | Z16: 1.857642097 | AA16: 1.713548857 | AB16: 1.714447115 | AC16: 1.858076656 | AD16: 1.980363814 | AE16: 1.957292127 | AF16: 1.829382299
A17: LRKPCGSA | B17: 041619 | C17: 1 | D17: 2400 | E17: 60 | F17: 1 | G17: 1 | H17: KW | I17: 1.822900328 | J17: 1.802403934 | K17: 1.752194461 | L17: 1.69950339 | M17: 1.863927387 | N17: 1.941124731 | O17: 2.003339143 | P17: 2.50506776 | Q17: 2.869706338 | R17: 2.697088324 | S17: 2.531740252 | T17: 2.443093129 | U17: 2.451370057 | V17: 2.462282343 | W17: 2.544086599 | X17: 2.44994835 | Y17: 2.342688101 | Z17: 2.030845463 | AA17: 1.977429863 | AB17: 1.866306125 | AC17: 1.806776576 | AD17: 1.787323172 | AE17: 1.572877858 | AF17: 1.442827792
A18: LRKPCGSA | B18: 041719 | C18: 1 | D18: 2400 | E18: 60 | F18: 1 | G18: 1 | H18: KW | I18: 1.330320401 | J18: 1.22021116 | K18: 1.196670346 | L18: 1.212177634 | M18: 1.279622246 | N18: 1.373900469 | O18: 1.591471664 | P18: 1.723390754 | Q18: 1.914803655 | R18: 2.054678386 | S18: 2.175777514 | T18: 2.316263102 | U18: 2.384828797 | V18: 2.511833502 | W18: 2.639327241 | X18: 2.459970989 | Y18: 2.274342081 | Z18: 2.018377697 | AA18: 2.017112557 | AB18: 1.958809799 | AC18: 1.873827239 | AD18: 1.709427812 | AE18: 1.539643455 | AF18: 1.450608916
A19: LRKPCGSA | B19: 041819 | C19: 1 | D19: 2400 | E19: 60 | F19: 1 | G19: 1 | H19: KW | I19: 1.325157532 | J19: 1.335727027 | K19: 1.371534018 | L19: 1.334672087 | M19: 1.240027728 | N19: 1.20540683 | O19: 1.364352211 | P19: 1.529203696 | Q19: 1.820207689 | R19: 2.080347678 | S19: 2.246247595 | T19: 2.398219445 | U19: 2.60618444 | V19: 2.908652688 | W19: 2.882588157 | X19: 2.87985541 | Y19: 2.701611287 | Z19: 2.378327036 | AA19: 2.086152738 | AB19: 2.037686473 | AC19: 1.985997435 | AD19: 1.853093678 | AE19: 1.694074758 | AF19: 1.533775146
A20: LRKPCGSA | B20: 041919 | C20: 1 | D20: 2400 | E20: 60 | F20: 1 | G20: 1 | H20: KW | I20: 1.520264025 | J20: 1.488774013 | K20: 1.475784018 | L20: 1.461731893 | M20: 1.404249054 | N20: 1.343052292 | O20: 1.425413202 | P20: 1.586391922 | Q20: 1.970561081 | R20: 2.213681062 | S20: 2.275263423 | T20: 2.288197731 | U20: 2.321426448 | V20: 2.14153188 | W20: 2.123460209 | X20: 2.147088986 | Y20: 2.023437516 | Z20: 1.925366837 | AA20: 1.793838358 | AB20: 1.678439523 | AC20: 1.725569636 | AD20: 1.783909602 | AE20: 1.59611754 | AF20: 1.47765298
A21: LRKPCGSA | B21: 042019 | C21: 1 | D21: 2400 | E21: 60 | F21: 1 | G21: 1 | H21: KW | I21: 1.489977093 | J21: 1.392166789 | K21: 1.386328573 | L21: 1.286879444 | M21: 1.271956676 | N21: 1.278701902 | O21: 1.375989808 | P21: 1.287497761 | Q21: 1.586225093 | R21: 1.711515958 | S21: 1.653996314 | T21: 1.709041977 | U21: 1.779040926 | V21: 1.72738849 | W21: 1.699468949 | X21: 1.757032801 | Y21: 1.640111737 | Z21: 1.509325047 | AA21: 1.470687903 | AB21: 1.66053321 | AC21: 1.737937048 | AD21: 1.657738544 | AE21: 1.607911388 | AF21: 1.510817902
A22: LRKPCGSA | B22: 042119 | C22: 1 | D22: 2400 | E22: 60 | F22: 1 | G22: 1 | H22: KW | I22: 1.39151046 | J22: 1.342811787 | K22: 1.417367794 | L22: 1.418021144 | M22: 1.425622551 | N22: 1.432033307 | O22: 1.531394613 | P22: 1.656191019 | Q22: 1.879750605 | R22: 1.826940091 | S22: 1.690552285 | T22: 1.579767303 | U22: 1.464030257 | V22: 1.56847122 | W22: 1.464822423 | X22: 1.454504625 | Y22: 1.439340371 | Z22: 1.495426909 | AA22: 1.529032423 | AB22: 1.517557508 | AC22: 1.591100861 | AD22: 1.609267708 | AE22: 1.449361266 | AF22: 1.447889234
A23: LRKPCGSA | B23: 042219 | C23: 1 | D23: 2400 | E23: 60 | F23: 1 | G23: 1 | H23: KW | I23: 1.408369696 | J23: 1.391742358 | K23: 1.334799354 | L23: 1.376605945 | M23: 1.267026618 | N23: 1.468120271 | O23: 1.79105634 | P23: 2.080018799 | Q23: 2.420810755 | R23: 2.401980737 | S23: 2.496095022 | T23: 2.306274453 | U23: 2.353419404 | V23: 2.342929006 | W23: 2.503450777 | X23: 2.514519922 | Y23: 2.507617259 | Z23: 2.270279531 | AA23: 2.125069334 | AB23: 2.036824888 | AC23: 1.89513023 | AD23: 1.899962446 | AE23: 1.710697044 | AF23: 1.475120636
A24: LRKPCGSA | B24: 042319 | C24: 1 | D24: 2400 | E24: 60 | F24: 1 | G24: 1 | H24: KW | I24: 1.467934201 | J24: 1.446704279 | K24: 1.33504992 | L24: 1.350245135 | M24: 1.344130914 | N24: 1.271374369 | O24: 1.536295113 | P24: 1.728969925 | Q24: 2.251317353 | R24: 2.292058069 | S24: 2.377439367 | T24: 2.464752929 | U24: 2.535912668 | V24: 2.701273613 | W24: 2.860127358 | X24: 2.81795509 | Y24: 2.760164779 | Z24: 2.440351943 | AA24: 2.130158848 | AB24: 1.956643012 | AC24: 1.931329965 | AD24: 1.819054762 | AE24: 1.649471459 | AF24: 1.553365615
A25: LRKPCGSA | B25: 042419 | C25: 1 | D25: 2400 | E25: 60 | F25: 1 | G25: 1 | H25: KW | I25: 1.46601549 | J25: 1.396691466 | K25: 1.389744612 | L25: 1.352277006 | M25: 1.280427571 | N25: 1.355908256 | O25: 1.56158396 | P25: 1.748798221 | Q25: 2.021467811 | R25: 2.141025123 | S25: 2.422905832 | T25: 2.56451721 | U25: 2.590724286 | V25: 2.608002555 | W25: 2.642757712 | X25: 2.702909524 | Y25: 2.728027734 | Z25: 2.600921855 | AA25: 2.36595668 | AB25: 2.197710042 | AC25: 2.047542223 | AD25: 1.847382343 | AE25: 1.59388437 | AF25: 1.470040645
A26: LRKPCGSA | B26: 042519 | C26: 1 | D26: 2400 | E26: 60 | F26: 1 | G26: 1 | H26: KW | I26: 1.31699898 | J26: 1.236985576 | K26: 1.175188428 | L26: 1.189538663 | M26: 1.284947363 | N26: 1.37482755 | O26: 1.620370754 | P26: 1.736794086 | Q26: 2.137785294 | R26: 2.349663254 | S26: 2.341535018 | T26: 2.556606804 | U26: 2.724604287 | V26: 2.900126226 | W26: 2.888646362 | X26: 2.795565402 | Y26: 2.718784653 | Z26: 2.223302907 | AA26: 1.979044046 | AB26: 1.729225787 | AC26: 1.813237095 | AD26: 1.798793516 | AE26: 1.578235177 | AF26: 1.500731934
A27: LRKPCGSA | B27: 042619 | C27: 1 | D27: 2400 | E27: 60 | F27: 1 | G27: 1 | H27: KW | I27: 1.472997755 | J27: 1.434733369 | K27: 1.411289156 | L27: 1.298795419 | M27: 1.201165543 | N27: 1.214598001 | O27: 1.421572592 | P27: 1.656226901 | Q27: 2.009609954 | R27: 2.17163246 | S27: 2.182158978 | T27: 2.28690101 | U27: 2.238073634 | V27: 2.259130967 | W27: 2.282464977 | X27: 2.145682012 | Y27: 1.983381641 | Z27: 1.800214654 | AA27: 1.694074742 | AB27: 1.557397504 | AC27: 1.571801118 | AD27: 1.535118902 | AE27: 1.459016767 | AF27: 1.447161678
A28: LRKPCGSA | B28: 042719 | C28: 1 | D28: 2400 | E28: 60 | F28: 1 | G28: 1 | H28: KW | I28: 1.433924755 | J28: 1.402086235 | K28: 1.375940725 | L28: 1.243873711 | M28: 1.310253058 | N28: 1.328678239 | O28: 1.360676598 | P28: 1.438069205 | Q28: 1.717662679 | R28: 1.755027243 | S28: 1.835213784 | T28: 1.870473295 | U28: 1.850380922 | V28: 1.900040016 | W28: 1.861216263 | X28: 1.814362954 | Y28: 1.685057029 | Z28: 1.693552907 | AA28: 1.72055879 | AB28: 1.737736697 | AC28: 1.713077584 | AD28: 1.683593917 | AE28: 1.572797643 | AF28: 1.466809207
A29: LRKPCGSA | B29: 042819 | C29: 1 | D29: 2400 | E29: 60 | F29: 1 | G29: 1 | H29: KW | I29: 1.397656254 | J29: 1.288770939 | K29: 1.288990642 | L29: 1.231025511 | M29: 1.195381554 | N29: 1.281098991 | O29: 1.357155723 | P29: 1.396864288 | Q29: 1.562394145 | R29: 1.708268808 | S29: 1.793828216 | T29: 1.680865399 | U29: 1.717447453 | V29: 1.682911371 | W29: 1.712527031 | X29: 1.724815173 | Y29: 1.693444941 | Z29: 1.745150562 | AA29: 1.730164943 | AB29: 1.708824375 | AC29: 1.661322078 | AD29: 1.691222339 | AE29: 1.421084606 | AF29: 1.319372785
A30: LRKPCGSA | B30: 042919 | C30: 1 | D30: 2400 | E30: 60 | F30: 1 | G30: 1 | H30: KW | I30: 1.216578421 | J30: 1.251423003 | K30: 1.216800684 | L30: 1.267901923 | M30: 1.313934268 | N30: 1.332607027 | O30: 1.486182832 | P30: 1.735676188 | Q30: 2.032453496 | R30: 2.259631785 | S30: 2.31120894 | T30: 2.582290335 | U30: 2.591010194 | V30: 2.660536544 | W30: 2.676366098 | X30: 2.644591934 | Y30: 2.542476127 | Z30: 2.287230966 | AA30: 2.141118051 | AB30: 2.101164762 | AC30: 2.06631016 | AD30: 1.933470182 | AE30: 1.723314824 | AF30: 1.562389847
A31: LRKPCGSA | B31: 043019 | C31: 1 | D31: 2400 | E31: 60 | F31: 1 | G31: 1 | H31: KW | I31: 1.463243587 | J31: 1.380103041 | K31: 1.312229469 | L31: 1.353808779 | M31: 1.232974567 | N31: 1.228516526 | O31: 1.346850292 | P31: 1.592511017 | Q31: 1.982064128 | R31: 2.24062496 | S31: 2.365275953 | T31: 2.474275115 | U31: 2.616353292 | V31: 2.837479063 | W31: 2.974049913 | X31: 3.030027199 | Y31: 2.853715411 | Z31: 2.717755466 | AA31: 2.412844541 | AB31: 2.163920671 | AC31: 2.037688915 | AD31: 1.873284139 | AE31: 1.72943434 | AF31: 1.547586848
A32: LRKPCGSA | B32: 050119 | C32: 1 | D32: 2400 | E32: 60 | F32: 1 | G32: 1 | H32: KW | I32: 1.461708881 | J32: 1.384293281 | K32: 1.375587871 | L32: 1.381385485 | M32: 1.316821666 | N32: 1.290864591 | O32: 1.55744124 | P32: 1.616953823 | Q32: 1.916072992 | R32: 2.288660804 | S32: 2.648085858 | T32: 2.852032399 | U32: 2.950997243 | V32: 3.076605361 | W32: 3.154888287 | X32: 3.155043188 | Y32: 3.006231198 | Z32: 2.758691815 | AA32: 2.550122689 | AB32: 2.487697133 | AC32: 2.283308216 | AD32: 2.11492768 | AE32: 1.864320393 | AF32: 1.624953543
A33: LRKPCGSA | B33: 050219 | C33: 1 | D33: 2400 | E33: 60 | F33: 1 | G33: 1 | H33: KW | I33: 1.479914715 | J33: 1.377456238 | K33: 1.358192725 | L33: 1.367649417 | M33: 1.346740799 | N33: 1.374420045 | O33: 1.525019358 | P33: 1.613050626 | Q33: 2.097272456 | R33: 2.521771321 | S33: 2.789376333 | T33: 2.950021387 | U33: 3.06831846 | V33: 3.124078774 | W33: 3.204305276 | X33: 3.291489376 | Y33: 3.210407446 | Z33: 2.630142398 | AA33: 2.240718041 | AB33: 2.012076275 | AC33: 1.95889256 | AD33: 1.957574049 | AE33: 1.725075001 | AF33: 1.560999018
A34: LRKPCGSA | B34: 050319 | C34: 1 | D34: 2400 | E34: 60 | F34: 1 | G34: 1 | H34: KW | I34: 1.495137476 | J34: 1.503140781 | K34: 1.478391259 | L34: 1.415241838 | M34: 1.298478591 | N34: 1.328021351 | O34: 1.354437917 | P34: 1.556533067 | Q34: 2.065601114 | R34: 2.444608525 | S34: 2.646403275 | T34: 2.887722186 | U34: 2.868968552 | V34: 2.789375829 | W34: 2.780334683 | X34: 2.835997614 | Y34: 2.621113849 | Z34: 2.366187383 | AA34: 2.207303666 | AB34: 2.111495123 | AC34: 1.950428714 | AD34: 1.952430599 | AE34: 1.756384432 | AF34: 1.571864783
A35: LRKPCGSA | B35: 050419 | C35: 1 | D35: 2400 | E35: 60 | F35: 1 | G35: 1 | H35: KW | I35: 1.520396298 | J35: 1.464756598 | K35: 1.439466577 | L35: 1.350376413 | M35: 1.297988246 | N35: 1.223893274 | O35: 1.240120116 | P35: 1.332503615 | Q35: 1.648455391 | R35: 1.81925067 | S35: 1.988573978 | T35: 2.11712936 | U35: 2.192502354 | V35: 2.209011927 | W35: 2.196400159 | X35: 2.098190778 | Y35: 1.998899513 | Z35: 1.903361055 | AA35: 1.825978193 | AB35: 1.833745577 | AC35: 1.909928106 | AD35: 1.861863102 | AE35: 1.716493301 | AF35: 1.526851532
A36: LRKPCGSA | B36: 050519 | C36: 1 | D36: 2400 | E36: 60 | F36: 1 | G36: 1 | H36: KW | I36: 1.370429529 | J36: 1.303340707 | K36: 1.283575456 | L36: 1.287089726 | M36: 1.229805963 | N36: 1.151119255 | O36: 1.249225581 | P36: 1.337853906 | Q36: 1.349553461 | R36: 1.549625896 | S36: 1.632827952 | T36: 1.661720322 | U36: 1.725507676 | V36: 1.753322866 | W36: 1.637152493 | X36: 1.614751257 | Y36: 1.606081527 | Z36: 1.621650915 | AA36: 1.595238185 | AB36: 1.585705741 | AC36: 1.570086094 | AD36: 1.539966221 | AE36: 1.432079829 | AF36: 1.351477957
A37: LRKPCGSA | B37: 050619 | C37: 1 | D37: 2400 | E37: 60 | F37: 1 | G37: 1 | H37: KW | I37: 1.393321771 | J37: 1.330664149 | K37: 1.281104907 | L37: 1.177094154 | M37: 1.130413542 | N37: 1.13073312 | O37: 1.388458168 | P37: 1.607516676 | Q37: 1.967107082 | R37: 2.037224872 | S37: 2.208515789 | T37: 2.379326669 | U37: 2.430910749 | V37: 2.433928625 | W37: 2.539640597 | X37: 2.506147228 | Y37: 2.400644457 | Z37: 2.178241939 | AA37: 2.056492636 | AB37: 1.918710293 | AC37: 1.859778222 | AD37: 1.788465288 | AE37: 1.615760132 | AF37: 1.487182742
A38: LRKPCGSA | B38: 050719 | C38: 1 | D38: 2400 | E38: 60 | F38: 1 | G38: 1 | H38: KW | I38: 1.428720603 | J38: 1.357146873 | K38: 1.311439024 | L38: 1.278575129 | M38: 1.13935564 | N38: 1.219136898 | O38: 1.51729786 | P38: 1.597595578 | Q38: 1.869743122 | R38: 2.125351943 | S38: 2.189241784 | T38: 2.406265426 | U38: 2.614513017 | V38: 2.777930324 | W38: 2.866163115 | X38: 2.766416346 | Y38: 2.707260365 | Z38: 2.623307723 | AA38: 2.393307261 | AB38: 2.17076372 | AC38: 2.093356306 | AD38: 1.941364632 | AE38: 1.712517387 | AF38: 1.586986134
A39: LRKPCGSA | B39: 050819 | C39: 1 | D39: 2400 | E39: 60 | F39: 1 | G39: 1 | H39: KW | I39: 1.499884518 | J39: 1.397781111 | K39: 1.349308721 | L39: 1.187926614 | M39: 1.235667943 | N39: 1.392451153 | O39: 1.47770623 | P39: 1.581194568 | Q39: 2.034144915 | R39: 2.306016549 | S39: 2.512021375 | T39: 2.771354623 | U39: 2.867830444 | V39: 3.045212055 | W39: 3.100838653 | X39: 3.16691114 | Y39: 3.073623332 | Z39: 2.847004956 | AA39: 2.740130855 | AB39: 2.586460219 | AC39: 2.28007302 | AD39: 2.063104916 | AE39: 1.842926225 | AF39: 1.656474851
A40: LRKPCGSA | B40: 050919 | C40: 1 | D40: 2400 | E40: 60 | F40: 1 | G40: 1 | H40: KW | I40: 1.424422379 | J40: 1.332022451 | K40: 1.340310859 | L40: 1.317057604 | M40: 1.276116753 | N40: 1.291166663 | O40: 1.477730872 | P40: 1.636443293 | Q40: 2.00840697 | R40: 2.439813893 | S40: 2.803491493 | T40: 2.933965402 | U40: 3.021528738 | V40: 3.084188451 | W40: 3.099671855 | X40: 2.990492128 | Y40: 2.791198064 | Z40: 2.445195081 | AA40: 2.261670664 | AB40: 2.086741455 | AC40: 2.137205672 | AD40: 2.022936141 | AE40: 1.845077456 | AF40: 1.651304868
A41: LRKPCGSA | B41: 051019 | C41: 1 | D41: 2400 | E41: 60 | F41: 1 | G41: 1 | H41: KW | I41: 1.593592979 | J41: 1.509923416 | K41: 1.457033575 | L41: 1.351725369 | M41: 1.389866248 | N41: 1.320570757 | O41: 1.412172304 | P41: 1.705575777 | Q41: 2.101003116 | R41: 2.429280837 | S41: 2.618657752 | T41: 2.723436069 | U41: 2.967400694 | V41: 3.023084833 | W41: 3.06825629 | X41: 3.112486813 | Y41: 2.883978121 | Z41: 2.596702492 | AA41: 2.355148045 | AB41: 2.231752334 | AC41: 2.139288854 | AD41: 2.078311442 | AE41: 1.871413764 | AF41: 1.651093365
A42: LRKPCGSA | B42: 051119 | C42: 1 | D42: 2400 | E42: 60 | F42: 1 | G42: 1 | H42: KW | I42: 1.565531449 | J42: 1.485762334 | K42: 1.452530559 | L42: 1.366657769 | M42: 1.165985682 | N42: 1.151593991 | O42: 1.272981843 | P42: 1.315128653 | Q42: 1.524740569 | R42: 1.773207353 | S42: 1.847640299 | T42: 1.871979938 | U42: 1.883429337 | V42: 1.82752182 | W42: 1.771613863 | X42: 1.67865559 | Y42: 1.60838633 | Z42: 1.532832613 | AA42: 1.543814071 | AB42: 1.702130998 | AC42: 1.693756369 | AD42: 1.699900905 | AE42: 1.553532401 | AF42: 1.437621056
A43: LRKPCGSA | B43: 051219 | C43: 1 | D43: 2400 | E43: 60 | F43: 1 | G43: 1 | H43: KW | I43: 1.350990017 | J43: 1.207577527 | K43: 1.203211487 | L43: 1.232797721 | M43: 1.239455833 | N43: 1.179282845 | O43: 1.19468139 | P43: 1.248512662 | Q43: 1.427896465 | R43: 1.585555905 | S43: 1.685191138 | T43: 1.717927445 | U43: 1.65646775 | V43: 1.678399671 | W43: 1.789380767 | X43: 1.796382989 | Y43: 1.755879777 | Z43: 1.813930996 | AA43: 1.855465408 | AB43: 1.742408855 | AC43: 1.698706732 | AD43: 1.624895201 | AE43: 1.419649416 | AF43: 1.361360468
A44: LRKPCGSA | B44: 051319 | C44: 1 | D44: 2400 | E44: 60 | F44: 1 | G44: 1 | H44: KW | I44: 1.27415529 | J44: 1.307216787 | K44: 1.36125035 | L44: 1.256877443 | M44: 1.15918594 | N44: 1.174766137 | O44: 1.333113489 | P44: 1.559261385 | Q44: 1.941906193 | R44: 2.184732218 | S44: 2.255543765 | T44: 2.249481961 | U44: 2.228238684 | V44: 2.221783775 | W44: 2.098587692 | X44: 2.100514932 | Y44: 2.046351478 | Z44: 1.798672147 | AA44: 1.648547643 | AB44: 1.564640292 | AC44: 1.694675962 | AD44: 1.622454745 | AE44: 1.505383248 | AF44: 1.3652686
A45: LRKPCGSA | B45: 051419 | C45: 1 | D45: 2400 | E45: 60 | F45: 1 | G45: 1 | H45: KW | I45: 1.373291352 | J45: 1.397891052 | K45: 1.360742799 | L45: 1.204303852 | M45: 1.217243644 | N45: 1.316396823 | O45: 1.43650342 | P45: 1.557256768 | Q45: 1.96407492 | R45: 2.175417665 | S45: 2.290722355 | T45: 2.315136102 | U45: 2.322445307 | V45: 2.31574016 | W45: 2.337343207 | X45: 2.384201248 | Y45: 2.162035309 | Z45: 1.990838306 | AA45: 1.819516666 | AB45: 1.716517828 | AC45: 1.764764714 | AD45: 1.690926835 | AE45: 1.538958456 | AF45: 1.390384771
A46: LRKPCGSA | B46: 051519 | C46: 1 | D46: 2400 | E46: 60 | F46: 1 | G46: 1 | H46: KW | I46: 1.412941479 | J46: 1.396726834 | K46: 1.274740302 | L46: 1.250542504 | M46: 1.298954887 | N46: 1.300931753 | O46: 1.344076632 | P46: 1.55684887 | Q46: 1.984653664 | R46: 2.211379719 | S46: 2.232550461 | T46: 2.258829606 | U46: 2.347116712 | V46: 2.364585589 | W46: 2.378105311 | X46: 2.35550372 | Y46: 2.168780254 | Z46: 2.081165353 | AA46: 2.007893977 | AB46: 2.038025968 | AC46: 1.843380106 | AD46: 1.755835049 | AE46: 1.589948915 | AF46: 1.479269394
A47: LRKPCGSA | B47: 051619 | C47: 1 | D47: 2400 | E47: 60 | F47: 1 | G47: 1 | H47: KW | I47: 1.429920073 | J47: 1.248503263 | K47: 1.220254881 | L47: 1.19688946 | M47: 1.19560715 | N47: 1.197425921 | O47: 1.332745692 | P47: 1.550170932 | Q47: 1.981286111 | R47: 2.227440263 | S47: 2.372751413 | T47: 2.579405313 | U47: 2.646362811 | V47: 2.730341503 | W47: 2.808716436 | X47: 2.773945507 | Y47: 2.625378554 | Z47: 2.344906917 | AA47: 2.181303133 | AB47: 2.146360878 | AC47: 1.969115499 | AD47: 1.858591653 | AE47: 1.69086974 | AF47: 1.510514419
A48: LRKPCGSA | B48: 051719 | C48: 1 | D48: 2400 | E48: 60 | F48: 1 | G48: 1 | H48: KW | I48: 1.467820907 | J48: 1.491885233 | K48: 1.468816596 | L48: 1.413105803 | M48: 1.3725832 | N48: 1.396801759 | O48: 1.45971144 | P48: 1.652879979 | Q48: 2.011860044 | R48: 2.28354128 | S48: 2.397265992 | T48: 2.545401475 | U48: 2.792740177 | V48: 3.084730371 | W48: 3.244533529 | X48: 3.241991526 | Y48: 3.167283513 | Z48: 2.869247885 | AA48: 2.690780124 | AB48: 2.474004392 | AC48: 2.252840189 | AD48: 2.155611777 | AE48: 1.95437124 | AF48: 1.748949589
A49: LRKPCGSA | B49: 051819 | C49: 1 | D49: 2400 | E49: 60 | F49: 1 | G49: 1 | H49: KW | I49: 1.610402174 | J49: 1.512037431 | K49: 1.382275054 | L49: 1.332206616 | M49: 1.283351844 | N49: 1.226545308 | O49: 1.274215273 | P49: 1.272708574 | Q49: 1.619689936 | R49: 1.913683412 | S49: 2.146338179 | T49: 2.459935134 | U49: 2.530517743 | V49: 2.589957293 | W49: 2.726395286 | X49: 2.73782176 | Y49: 2.64148056 | Z49: 2.609665095 | AA49: 2.503940583 | AB49: 2.411236856 | AC49: 2.444643658 | AD49: 2.32860924 | AE49: 2.04663786 | AF49: 1.800862259
A50: LRKPCGSA | B50: 051919 | C50: 1 | D50: 2400 | E50: 60 | F50: 1 | G50: 1 | H50: KW | I50: 1.687750044 | J50: 1.591973805 | K50: 1.519039729 | L50: 1.523775136 | M50: 1.496538376 | N50: 1.442284493 | O50: 1.450905404 | P50: 1.463885476 | Q50: 1.659325463 | R50: 2.085275659 | S50: 2.288730763 | T50: 2.437174526 | U50: 2.473360709 | V50: 2.601886756 | W50: 2.606780304 | X50: 2.532861909 | Y50: 2.628372822 | Z50: 2.641537597 | AA50: 2.63239649 | AB50: 2.508365855 | AC50: 2.305871965 | AD50: 2.132301758 | AE50: 1.920523458 | AF50: 1.772474525
A51: LRKPCGSA | B51: 052019 | C51: 1 | D51: 2400 | E51: 60 | F51: 1 | G51: 1 | H51: KW | I51: 1.690084211 | J51: 1.622490733 | K51: 1.470995728 | L51: 1.465734907 | M51: 1.468526065 | N51: 1.453815773 | O51: 1.609746152 | P51: 1.854251583 | Q51: 2.238949996 | R51: 2.450964767 | S51: 2.85339322 | T51: 3.043379572 | U51: 3.044439727 | V51: 2.998824794 | W51: 2.946116341 | X51: 3.141188527 | Y51: 3.100339811 | Z51: 2.82669584 | AA51: 2.650006538 | AB51: 2.507141668 | AC51: 2.281081033 | AD51: 2.079719147 | AE51: 1.839532208 | AF51: 1.697753877
A52: LRKPCGSA | B52: 052119 | C52: 1 | D52: 2400 | E52: 60 | F52: 1 | G52: 1 | H52: KW | I52: 1.599987156 | J52: 1.507122352 | K52: 1.454486278 | L52: 1.459050909 | M52: 1.464907141 | N52: 1.433035306 | O52: 1.563546755 | P52: 1.584395077 | Q52: 1.785387723 | R52: 2.039726623 | S52: 2.278425016 | T52: 2.467804675 | U52: 2.575079055 | V52: 2.571992039 | W52: 2.565337936 | X52: 2.779691448 | Y52: 2.665364688 | Z52: 2.426430717 | AA52: 2.263942739 | AB52: 2.234925165 | AC52: 2.122937247 | AD52: 1.914177232 | AE52: 1.777830422 | AF52: 1.637980074
A53: LRKPCGSA | B53: 052219 | C53: 1 | D53: 2400 | E53: 60 | F53: 1 | G53: 1 | H53: KW | I53: 1.552097044 | J53: 1.520390187 | K53: 1.397207874 | L53: 1.358859397 | M53: 1.396995822 | N53: 1.380673521 | O53: 1.423714985 | P53: 1.700522149 | Q53: 2.123642961 | R53: 2.427012063 | S53: 2.681101106 | T53: 2.981570099 | U53: 3.154699149 | V53: 3.329126171 | W53: 3.432340227 | X53: 3.534682936 | Y53: 3.384609473 | Z53: 3.127895151 | AA53: 2.97150424 | AB53: 2.974771627 | AC53: 2.709444727 | AD53: 2.516981719 | AE53: 2.149213123 | AF53: 1.916263372
A54: LRKPCGSA | B54: 052319 | C54: 1 | D54: 2400 | E54: 60 | F54: 1 | G54: 1 | H54: KW | I54: 1.800441034 | J54: 1.601192998 | K54: 1.526809124 | L54: 1.47366127 | M54: 1.505496026 | N54: 1.386148394 | O54: 1.516115127 | P54: 1.729070694 | Q54: 2.177390581 | R54: 2.58865242 | S54: 2.827313619 | T54: 3.004303801 | U54: 3.082470193 | V54: 3.07686203 | W54: 3.248016108 | X54: 3.391089108 | Y54: 3.429788528 | Z54: 3.135045198 | AA54: 2.837897188 | AB54: 2.585564354 | AC54: 2.416628611 | AD54: 2.377865695 | AE54: 2.070209255 | AF54: 1.90709983
A55: LRKPCGSA | B55: 052419 | C55: 1 | D55: 2400 | E55: 60 | F55: 1 | G55: 1 | H55: KW | I55: 1.809723805 | J55: 1.697973032 | K55: 1.627800858 | L55: 1.585394741 | M55: 1.474379286 | N55: 1.429635834 | O55: 1.534108866 | P55: 1.699046949 | Q55: 2.194242604 | R55: 2.648396995 | S55: 2.766884977 | T55: 3.149018927 | U55: 3.34891222 | V55: 3.466363994 | W55: 3.505775859 | X55: 3.568986194 | Y55: 3.520707721 | Z55: 3.204141152 | AA55: 3.064966319 | AB55: 2.913955936 | AC55: 2.667691616 | AD55: 2.495007725 | AE55: 2.220635419 | AF55: 1.961692134
A56: LRKPCGSA | B56: 052519 | C56: 1 | D56: 2400 | E56: 60 | F56: 1 | G56: 1 | H56: KW | I56: 1.780914569 | J56: 1.675473974 | K56: 1.608876545 | L56: 1.571860969 | M56: 1.560190232 | N56: 1.454338042 | O56: 1.389572264 | P56: 1.616312442 | Q56: 1.856057832 | R56: 2.180287077 | S56: 2.51291303 | T56: 2.803975225 | U56: 2.961398035 | V56: 3.054421996 | W56: 3.124407638 | X56: 3.156704713 | Y56: 3.104008897 | Z56: 2.947071904 | AA56: 2.793420034 | AB56: 2.752860517 | AC56: 2.646116948 | AD56: 2.532985786 | AE56: 2.223680533 | AF56: 2.030009336
A57: LRKPCGSA | B57: 052619 | C57: 1 | D57: 2400 | E57: 60 | F57: 1 | G57: 1 | H57: KW | I57: 1.848960182 | J57: 1.737294646 | K57: 1.639583254 | L57: 1.599299589 | M57: 1.617116537 | N57: 1.616582332 | O57: 1.619196124 | P57: 1.712874134 | Q57: 1.866063101 | R57: 2.079087478 | S57: 2.360790776 | T57: 2.585089004 | U57: 2.565829247 | V57: 2.606033177 | W57: 2.678330217 | X57: 2.645989587 | Y57: 2.791437834 | Z57: 2.745862544 | AA57: 2.674371697 | AB57: 2.423127273 | AC57: 2.159758155 | AD57: 2.060321792 | AE57: 1.912629503 | AF57: 1.790777437
A58: LRKPCGSA | B58: 052719 | C58: 1 | D58: 2400 | E58: 60 | F58: 1 | G58: 1 | H58: KW | I58: 1.613683143 | J58: 1.450935783 | K58: 1.417247785 | L58: 1.396380737 | M58: 1.371380959 | N58: 1.374611937 | O58: 1.577237006 | P58: 1.518634176 | Q58: 1.699250432 | R58: 1.882168122 | S58: 1.997636634 | T58: 2.023131133 | U58: 2.056843015 | V58: 2.207176402 | W58: 2.314560785 | X58: 2.392247097 | Y58: 2.413807657 | Z58: 2.220630602 | AA58: 2.273470226 | AB58: 2.158520419 | AC58: 2.234430317 | AD58: 2.136308689 | AE58: 1.861275728 | AF58: 1.702762145
A59: LRKPCGSA | B59: 052819 | C59: 1 | D59: 2400 | E59: 60 | F59: 1 | G59: 1 | H59: KW | I59: 1.666861608 | J59: 1.607383086 | K59: 1.574956685 | L59: 1.517079899 | M59: 1.498230332 | N59: 1.576859465 | O59: 1.610219276 | P59: 1.836206312 | Q59: 2.380031067 | R59: 2.879060532 | S59: 3.087489319 | T59: 3.28874253 | U59: 3.382070312 | V59: 3.532674874 | W59: 3.541134853 | X59: 3.498996266 | Y59: 3.433690914 | Z59: 3.065695887 | AA59: 2.880465971 | AB59: 2.729727775 | AC59: 2.566117817 | AD59: 2.389362479 | AE59: 2.118866205 | AF59: 1.900341151
A60: LRKPCGSA | B60: 052919 | C60: 1 | D60: 2400 | E60: 60 | F60: 1 | G60: 1 | H60: KW | I60: 1.809581047 | J60: 1.723880229 | K60: 1.682747126 | L60: 1.625199644 | M60: 1.449880643 | N60: 1.471208772 | O60: 1.703440717 | P60: 1.930323146 | Q60: 2.465106946 | R60: 2.898948352 | S60: 3.172241537 | T60: 3.436559613 | U60: 3.344789043 | V60: 3.289291163 | W60: 2.952773738 | X60: 2.738793891 | Y60: 2.572470291 | Z60: 2.370312632 | AA60: 2.347500295 | AB60: 2.285366652 | AC60: 2.152167266 | AD60: 1.967157082 | AE60: 1.758446186 | AF60: 1.705854244
A61: LRKPCGSA | B61: 053019 | C61: 1 | D61: 2400 | E61: 60 | F61: 1 | G61: 1 | H61: KW | I61: 1.649995502 | J61: 1.583998107 | K61: 1.519233066 | L61: 1.352485587 | M61: 1.371862677 | N61: 1.478821482 | O61: 1.622908768 | P61: 1.811191511 | Q61: 2.309465499 | R61: 2.609688251 | S61: 2.891788168 | T61: 2.965209623 | U61: 3.043533793 | V61: 2.999145857 | W61: 3.002100442 | X61: 2.89170125 | Y61: 2.649662222 | Z61: 2.324986759 | AA61: 2.255490693 | AB61: 2.263913262 | AC61: 2.063629467 | AD61: 2.001725616 | AE61: 1.817270884 | AF61: 1.652129217
A62: LRKPCGSA | B62: 053119 | C62: 1 | D62: 2400 | E62: 60 | F62: 1 | G62: 1 | H62: KW | I62: 1.598369752 | J62: 1.639250305 | K62: 1.537216609 | L62: 1.566473105 | M62: 1.563455293 | N62: 1.430039451 | O62: 1.586338413 | P62: 1.850349711 | Q62: 2.255385526 | R62: 2.61785512 | S62: 2.83227099 | T62: 2.944548174 | U62: 2.941258096 | V62: 2.858301517 | W62: 2.871652546 | X62: 2.722078666 | Y62: 2.517259017 | Z62: 2.225907102 | AA62: 2.229045629 | AB62: 2.257019841 | AC62: 2.130240951 | AD62: 1.958180524 | AE62: 1.831938703 | AF62: 1.705253226
A63: LRKPCGSA | B63: 060119 | C63: 1 | D63: 2400 | E63: 60 | F63: 1 | G63: 1 | H63: KW | I63: 1.642594759 | J63: 1.5702602 | K63: 1.422205593 | L63: 1.375480365 | M63: 1.421307271 | N63: 1.357353491 | O63: 1.341179639 | P63: 1.451929558 | Q63: 1.667881714 | R63: 1.778442363 | S63: 1.925552822 | T63: 2.139403754 | U63: 2.233990911 | V63: 2.31531464 | W63: 2.357803052 | X63: 2.403120172 | Y63: 2.41125846 | Z63: 2.385266683 | AA63: 2.321690352 | AB63: 2.329187703 | AC63: 2.245280284 | AD63: 2.089036322 | AE63: 1.89376717 | AF63: 1.64882107
A64: LRKPCGSA | B64: 060219 | C64: 1 | D64: 2400 | E64: 60 | F64: 1 | G64: 1 | H64: KW | I64: 1.518087094 | J64: 1.36904608 | K64: 1.299291826 | L64: 1.283018645 | M64: 1.215965095 | N64: 1.296353247 | O64: 1.378574473 | P64: 1.409388262 | Q64: 1.642340208 | R64: 1.964972037 | S64: 2.21340677 | T64: 2.361156673 | U64: 2.432900028 | V64: 2.491944204 | W64: 2.504951516 | X64: 2.440523474 | Y64: 2.403749918 | Z64: 2.441357567 | AA64: 2.395167216 | AB64: 2.345130953 | AC64: 2.108366156 | AD64: 2.000453061 | AE64: 1.84005154 | AF64: 1.700803205
A65: LRKPCGSA | B65: 060319 | C65: 1 | D65: 2400 | E65: 60 | F65: 1 | G65: 1 | H65: KW | I65: 1.633690573 | J65: 1.458731613 | K65: 1.371171717 | L65: 1.309469816 | M65: 1.276527902 | N65: 1.40034158 | O65: 1.558881512 | P65: 1.660041312 | Q65: 2.055079592 | R65: 2.366202822 | S65: 2.707688946 | T65: 2.743233243 | U65: 2.787972208 | V65: 2.835784768 | W65: 2.770650004 | X65: 2.886654134 | Y65: 2.806321061 | Z65: 2.555790649 | AA65: 2.395517168 | AB65: 2.292434896 | AC65: 2.093945879 | AD65: 1.972140692 | AE65: 1.753182696 | AF65: 1.625024576
A66: LRKPCGSA | B66: 060419 | C66: 1 | D66: 2400 | E66: 60 | F66: 1 | G66: 1 | H66: KW | I66: 1.491156556 | J66: 1.488289495 | K66: 1.43526723 | L66: 1.313382821 | M66: 1.255852917 | N66: 1.279906672 | O66: 1.437585344 | P66: 1.577482274 | Q66: 1.987681627 | R66: 2.18858296 | S66: 2.476322397 | T66: 2.606117784 | U66: 2.675654919 | V66: 2.72681092 | W66: 2.903301456 | X66: 3.08119156 | Y66: 2.923620211 | Z66: 2.808714933 | AA66: 2.587115626 | AB66: 2.492053146 | AC66: 2.27308524 | AD66: 2.092496599 | AE66: 1.945417215 | AF66: 1.818805281
A67: LRKPCGSA | B67: 060519 | C67: 1 | D67: 2400 | E67: 60 | F67: 1 | G67: 1 | H67: KW | I67: 1.621345832 | J67: 1.540191413 | K67: 1.494367183 | L67: 1.456929019 | M67: 1.45253095 | N67: 1.481466783 | O67: 1.544175892 | P67: 1.737236905 | Q67: 2.13306657 | R67: 2.467780359 | S67: 2.528802372 | T67: 2.535049566 | U67: 2.619540852 | V67: 2.617365554 | W67: 2.717134426 | X67: 2.892408148 | Y67: 2.985404552 | Z67: 2.891127078 | AA67: 2.950387243 | AB67: 2.765035094 | AC67: 2.404671011 | AD67: 2.152449513 | AE67: 1.987660174 | AF67: 1.753704939
A68: LRKPCGSA | B68: 060619 | C68: 1 | D68: 2400 | E68: 60 | F68: 1 | G68: 1 | H68: KW | I68: 1.568860756 | J68: 1.514629541 | K68: 1.417325285 | L68: 1.357113657 | M68: 1.356692609 | N68: 1.388313382 | O68: 1.556156352 | P68: 1.662401071 | Q68: 2.109830932 | R68: 2.583916946 | S68: 2.905756959 | T68: 3.16263582 | U68: 3.236752708 | V68: 3.354717218 | W68: 3.436604572 | X68: 3.372513586 | Y68: 3.159673656 | Z68: 2.907931801 | AA68: 2.66411529 | AB68: 2.471114834 | AC68: 2.263431474 | AD68: 2.137295607 | AE68: 1.947030348 | AF68: 1.786054516
A69: LRKPCGSA | B69: 060719 | C69: 1 | D69: 2400 | E69: 60 | F69: 1 | G69: 1 | H69: KW | I69: 1.689674511 | J69: 1.565161581 | K69: 1.557272794 | L69: 1.436891422 | M69: 1.34937248 | N69: 1.377035737 | O69: 1.597483697 | P69: 1.711018746 | Q69: 2.071460473 | R69: 2.264891565 | S69: 2.541747965 | T69: 2.597151082 | U69: 2.637595235 | V69: 2.648554132 | W69: 2.700815834 | X69: 2.655431461 | Y69: 2.564034893 | Z69: 2.319037523 | AA69: 2.163832657 | AB69: 2.041052465 | AC69: 1.924657941 | AD69: 1.983238858 | AE69: 1.778739301 | AF69: 1.65522538
A70: LRKPCGSA | B70: 060819 | C70: 1 | D70: 2400 | E70: 60 | F70: 1 | G70: 1 | H70: KW | I70: 1.591716908 | J70: 1.505948307 | K70: 1.488167179 | L70: 1.377891272 | M70: 1.287822722 | N70: 1.256977602 | O70: 1.374719384 | P70: 1.359223079 | Q70: 1.563182507 | R70: 1.891312833 | S70: 2.011215549 | T70: 2.138270032 | U70: 2.199444691 | V70: 2.380099192 | W70: 2.416424996 | X70: 2.538793603 | Y70: 2.495753205 | Z70: 2.325965224 | AA70: 2.281157208 | AB70: 2.19959352 | AC70: 2.12076908 | AD70: 2.070278525 | AE70: 1.894205104 | AF70: 1.706699834
A71: LRKPCGSA | B71: 060919 | C71: 1 | D71: 2400 | E71: 60 | F71: 1 | G71: 1 | H71: KW | I71: 1.552368073 | J71: 1.461172836 | K71: 1.416195704 | L71: 1.43873654 | M71: 1.392585807 | N71: 1.38147495 | O71: 1.479026982 | P71: 1.524385338 | Q71: 1.660620953 | R71: 1.873305529 | S71: 1.975928187 | T71: 2.081601239 | U71: 2.089085519 | V71: 2.149572965 | W71: 2.245623212 | X71: 2.28958207 | Y71: 2.298731254 | Z71: 2.277721994 | AA71: 2.365788403 | AB71: 2.255779273 | AC71: 2.110854614 | AD71: 2.063563118 | AE71: 1.883925664 | AF71: 1.748145675
A72: LRKPCGSA | B72: 061019 | C72: 1 | D72: 2400 | E72: 60 | F72: 1 | G72: 1 | H72: KW | I72: 1.630112675 | J72: 1.489228293 | K72: 1.385586837 | L72: 1.319724786 | M72: 1.354560941 | N72: 1.311248018 | O72: 1.551676244 | P72: 1.718562071 | Q72: 2.180458383 | R72: 2.594769974 | S72: 2.702033731 | T72: 2.84660577 | U72: 2.948619008 | V72: 2.971734218 | W72: 2.927057999 | X72: 2.823814085 | Y72: 2.724507744 | Z72: 2.457279955 | AA72: 2.274052976 | AB72: 2.254119122 | AC72: 2.119329514 | AD72: 2.003818768 | AE72: 1.724891353 | AF72: 1.503974616
A73: LRKPCGSA | B73: 061119 | C73: 1 | D73: 2400 | E73: 60 | F73: 1 | G73: 1 | H73: KW | I73: 1.428068515 | J73: 1.38001946 | K73: 1.341533889 | L73: 1.257388803 | M73: 1.272711004 | N73: 1.289978887 | O73: 1.328260718 | P73: 1.528987273 | Q73: 1.932434698 | R73: 2.267974244 | S73: 2.449943029 | T73: 2.541909503 | U73: 2.672631407 | V73: 2.585734431 | W73: 2.609103963 | X73: 2.668979038 | Y73: 2.554578485 | Z73: 2.397740216 | AA73: 2.167133163 | AB73: 2.110021721 | AC73: 2.020955837 | AD73: 1.899859516 | AE73: 1.692564272 | AF73: 1.61510054
A74: LRKPCGSA | B74: 061219 | C74: 1 | D74: 2400 | E74: 60 | F74: 1 | G74: 1 | H74: KW | I74: 1.547077836 | J74: 1.481590203 | K74: 1.43046235 | L74: 1.380135164 | M74: 1.345878513 | N74: 1.338839689 | O74: 1.462467937 | P74: 1.574050262 | Q74: 1.941818611 | R74: 2.196666199 | S74: 2.390424117 | T74: 2.465354052 | U74: 2.503420523 | V74: 2.719317826 | W74: 2.721087357 | X74: 2.655424132 | Y74: 2.554358409 | Z74: 2.199609154 | AA74: 2.229245041 | AB74: 2.138502995 | AC74: 1.969192919 | AD74: 1.874817425 | AE74: 1.67168329 | AF74: 1.511444812
A75: LRKPCGSA | B75: 061319 | C75: 1 | D75: 2400 | E75: 60 | F75: 1 | G75: 1 | H75: KW | I75: 1.370902922 | J75: 1.287147516 | K75: 1.236178608 | L75: 1.230529453 | M75: 1.310793529 | N75: 1.27888733 | O75: 1.363370195 | P75: 1.577826866 | Q75: 1.997270212 | R75: 2.220817673 | S75: 2.334190569 | T75: 2.427552007 | U75: 2.494175322 | V75: 2.482898457 | W75: 2.526945201 | X75: 2.515737706 | Y75: 2.404729582 | Z75: 2.033612923 | AA75: 1.952861979 | AB75: 1.831802398 | AC75: 1.758216862 | AD75: 1.648778873 | AE75: 1.493464538 | AF75: 1.365677145
A76: LRKPCGSA | B76: 061419 | C76: 1 | D76: 2400 | E76: 60 | F76: 1 | G76: 1 | H76: KW | I76: 1.3186158 | J76: 1.275252177 | K76: 1.207098546 | L76: 1.214500091 | M76: 1.287214322 | N76: 1.19666365 | O76: 1.26273029 | P76: 1.522874616 | Q76: 1.875544704 | R76: 2.156324401 | S76: 2.339288291 | T76: 2.404185178 | U76: 2.538502711 | V76: 2.53662343 | W76: 2.605769642 | X76: 2.718018326 | Y76: 2.645922128 | Z76: 2.39728898 | AA76: 2.239831824 | AB76: 2.164050922 | AC76: 2.054402308 | AD76: 1.957610119 | AE76: 1.699373907 | AF76: 1.578256191
A77: LRKPCGSA | B77: 061519 | C77: 1 | D77: 2400 | E77: 60 | F77: 1 | G77: 1 | H77: KW | I77: 1.463221935 | J77: 1.410511815 | K77: 1.348276811 | L77: 1.326264466 | M77: 1.170744137 | N77: 1.167857824 | O77: 1.203403155 | P77: 1.335421015 | Q77: 1.509937892 | R77: 1.718203197 | S77: 1.984741291 | T77: 2.07839571 | U77: 2.331858508 | V77: 2.438552093 | W77: 2.499929188 | X77: 2.486702662 | Y77: 2.427549166 | Z77: 2.413194179 | AA77: 2.342968424 | AB77: 2.307928054 | AC77: 2.165483513 | AD77: 2.155139589 | AE77: 1.88416124 | AF77: 1.726277545
A78: LRKPCGSA | B78: 061619 | C78: 1 | D78: 2400 | E78: 60 | F78: 1 | G78: 1 | H78: KW | I78: 1.594619553 | J78: 1.47669718 | K78: 1.492195511 | L78: 1.414245697 | M78: 1.409098308 | N78: 1.467551779 | O78: 1.484441681 | P78: 1.538814448 | Q78: 1.799731599 | R78: 2.017027819 | S78: 2.159104613 | T78: 2.291291281 | U78: 2.267795223 | V78: 2.373558 | W78: 2.421102165 | X78: 2.458300622 | Y78: 2.506469944 | Z78: 2.671164194 | AA78: 2.710919739 | AB78: 2.542231201 | AC78: 2.302955784 | AD78: 2.223828669 | AE78: 1.992139063 | AF78: 1.858191697
A79: LRKPCGSA | B79: 061719 | C79: 1 | D79: 2400 | E79: 60 | F79: 1 | G79: 1 | H79: KW | I79: 1.720387126 | J79: 1.555559593 | K79: 1.534972624 | L79: 1.443930693 | M79: 1.472390863 | N79: 1.437338214 | O79: 1.541987442 | P79: 1.711151178 | Q79: 2.209732313 | R79: 2.505603621 | S79: 2.686694607 | T79: 2.929176771 | U79: 2.932347573 | V79: 3.090164086 | W79: 3.182382867 | X79: 3.131424566 | Y79: 2.904659676 | Z79: 2.576515065 | AA79: 2.368810232 | AB79: 2.193688606 | AC79: 2.153619705 | AD79: 2.08619145 | AE79: 1.8781147 | AF79: 1.730304303
A80: LRKPCGSA | B80: 061819 | C80: 1 | D80: 2400 | E80: 60 | F80: 1 | G80: 1 | H80: KW | I80: 1.657361138 | J80: 1.532005578 | K80: 1.489506505 | L80: 1.500132173 | M80: 1.39690224 | N80: 1.336029786 | O80: 1.502436212 | P80: 1.657387115 | Q80: 2.187783965 | R80: 2.542573548 | S80: 2.728842726 | T80: 2.723466756 | U80: 2.688052304 | V80: 2.566906216 | W80: 2.573633784 | X80: 2.757896164 | Y80: 2.748258365 | Z80: 2.474193541 | AA80: 2.303744316 | AB80: 2.19000865 | AC80: 2.182568392 | AD80: 2.165642556 | AE80: 1.99681097 | AF80: 1.811443446
A81: LRKPCGSA | B81: 061919 | C81: 1 | D81: 2400 | E81: 60 | F81: 1 | G81: 1 | H81: KW | I81: 1.587663255 | J81: 1.594813274 | K81: 1.567196644 | L81: 1.43902492 | M81: 1.389999992 | N81: 1.431342662 | O81: 1.693106759 | P81: 1.824574258 | Q81: 2.350031954 | R81: 2.660183814 | S81: 2.811047919 | T81: 2.994637911 | U81: 3.0474755 | V81: 3.194176337 | W81: 3.32742634 | X81: 3.242486348 | Y81: 3.119136514 | Z81: 2.858728194 | AA81: 2.771359694 | AB81: 2.74892837 | AC81: 2.422911847 | AD81: 2.236894505 | AE81: 2.01296257 | AF81: 1.812305203
A82: LRKPCGSA | B82: 062019 | C82: 1 | D82: 2400 | E82: 60 | F82: 1 | G82: 1 | H82: KW | I82: 1.717884497 | J82: 1.508939807 | K82: 1.479890242 | L82: 1.519406876 | M82: 1.426209049 | N82: 1.368481972 | O82: 1.550656309 | P82: 1.711591416 | Q82: 2.232298912 | R82: 2.480490971 | S82: 2.606257204 | T82: 2.759805178 | U82: 2.718408752 | V82: 2.669076892 | W82: 2.72808449 | X82: 2.763304258 | Y82: 2.755727641 | Z82: 2.560768497 | AA82: 2.351114234 | AB82: 2.190470717 | AC82: 2.050963208 | AD82: 2.005797599 | AE82: 1.804539602 | AF82: 1.66131143
A83: LRKPCGSA | B83: 062119 | C83: 1 | D83: 2400 | E83: 60 | F83: 1 | G83: 1 | H83: KW | I83: 1.571941957 | J83: 1.48022026 | K83: 1.429756131 | L83: 1.430863955 | M83: 1.438924145 | N83: 1.366274845 | O83: 1.49007042 | P83: 1.701275615 | Q83: 2.156563755 | R83: 2.374849825 | S83: 2.687589854 | T83: 2.863897143 | U83: 2.919552136 | V83: 2.994550293 | W83: 3.109832696 | X83: 3.168361161 | Y83: 2.967703915 | Z83: 2.690115568 | AA83: 2.523348967 | AB83: 2.299870093 | AC83: 2.192871651 | AD83: 2.188599207 | AE83: 1.925450249 | AF83: 1.756752463
A84: LRKPCGSA | B84: 062219 | C84: 1 | D84: 2400 | E84: 60 | F84: 1 | G84: 1 | H84: KW | I84: 1.646896318 | J84: 1.51805349 | K84: 1.444477404 | L84: 1.423723016 | M84: 1.323660901 | N84: 1.31271522 | O84: 1.350264398 | P84: 1.565949035 | Q84: 1.702370255 | R84: 1.890231684 | S84: 2.112590837 | T84: 2.186850277 | U84: 2.261196029 | V84: 2.22198928 | W84: 2.209691519 | X84: 2.220159119 | Y84: 2.328064096 | Z84: 2.260694386 | AA84: 2.28245757 | AB84: 2.272062369 | AC84: 2.109023042 | AD84: 1.976596072 | AE84: 1.772215047 | AF84: 1.625682631
A85: LRKPCGSA | B85: 062319 | C85: 1 | D85: 2400 | E85: 60 | F85: 1 | G85: 1 | H85: KW | I85: 1.531729609 | J85: 1.392769729 | K85: 1.371132327 | L85: 1.379952259 | M85: 1.342155283 | N85: 1.312315786 | O85: 1.371752649 | P85: 1.508487584 | Q85: 1.698734671 | R85: 1.899407678 | S85: 2.226003424 | T85: 2.27482126 | U85: 2.244059771 | V85: 2.362911782 | W85: 2.5984688 | X85: 2.69426085 | Y85: 2.669594719 | Z85: 2.682514568 | AA85: 2.712707899 | AB85: 2.538978181 | AC85: 2.354066307 | AD85: 2.272251801 | AE85: 1.975278211 | AF85: 1.815914749
A86: LRKPCGSA | B86: 062419 | C86: 1 | D86: 2400 | E86: 60 | F86: 1 | G86: 1 | H86: KW | I86: 1.712595704 | J86: 1.499879204 | K86: 1.413642727 | L86: 1.334420366 | M86: 1.416934018 | N86: 1.410837403 | O86: 1.602282745 | P86: 1.80567784 | Q86: 2.297731204 | R86: 2.683148627 | S86: 3.070330846 | T86: 3.323495692 | U86: 3.391653261 | V86: 3.334867 | W86: 3.435546913 | X86: 3.359722069 | Y86: 3.275550756 | Z86: 2.780389827 | AA86: 2.29857591 | AB86: 2.049322371 | AC86: 2.002450102 | AD86: 1.927877314 | AE86: 1.795915657 | AF86: 1.652728542
A87: LRKPCGSA | B87: 062519 | C87: 1 | D87: 2400 | E87: 60 | F87: 1 | G87: 1 | H87: KW | I87: 1.557803152 | J87: 1.553300672 | K87: 1.503958565 | L87: 1.435413259 | M87: 1.530055992 | N87: 1.498747804 | O87: 1.655787195 | P87: 1.851089354 | Q87: 2.177717947 | R87: 2.545181076 | S87: 2.704970502 | T87: 3.040673326 | U87: 3.048848856 | V87: 3.125559026 | W87: 3.222564449 | X87: 3.326661084 | Y87: 3.239547662 | Z87: 3.06295187 | AA87: 2.840110599 | AB87: 2.667494711 | AC87: 2.490700214 | AD87: 2.225962528 | AE87: 2.009650994 | AF87: 1.785323728
A88: LRKPCGSA | B88: 062619 | C88: 1 | D88: 2400 | E88: 60 | F88: 1 | G88: 1 | H88: KW | I88: 1.664159727 | J88: 1.593161553 | K88: 1.492542764 | L88: 1.528222999 | M88: 1.585529522 | N88: 1.501266066 | O88: 1.598369783 | P88: 1.677140191 | Q88: 2.19049282 | R88: 2.596540848 | S88: 2.775813245 | T88: 3.005947956 | U88: 3.131446466 | V88: 3.256446663 | W88: 3.473029356 | X88: 3.589648055 | Y88: 3.596518786 | Z88: 3.330284433 | AA88: 3.18079946 | AB88: 3.042209145 | AC88: 2.664793984 | AD88: 2.348488386 | AE88: 2.094338875 | AF88: 1.884814741
A89: LRKPCGSA | B89: 062719 | C89: 1 | D89: 2400 | E89: 60 | F89: 1 | G89: 1 | H89: KW | I89: 1.747963515 | J89: 1.742138778 | K89: 1.651494315 | L89: 1.58596278 | M89: 1.586267434 | N89: 1.548796296 | O89: 1.562848688 | P89: 1.764295799 | Q89: 2.303837525 | R89: 2.81800888 | S89: 3.180266921 | T89: 3.441062133 | U89: 3.617439698 | V89: 3.695801604 | W89: 3.805516687 | X89: 3.813270417 | Y89: 3.750193145 | Z89: 3.270289035 | AA89: 3.138007038 | AB89: 2.900063614 | AC89: 2.688781826 | AD89: 2.490390512 | AE89: 2.274593887 | AF89: 2.045468951
A90: LRKPCGSA | B90: 062819 | C90: 1 | D90: 2400 | E90: 60 | F90: 1 | G90: 1 | H90: KW | I90: 1.872005793 | J90: 1.75873784 | K90: 1.741620294 | L90: 1.637083237 | M90: 1.631136781 | N90: 1.608194902 | O90: 1.547924873 | P90: 1.819016105 | Q90: 2.413710498 | R90: 2.831130116 | S90: 3.102663691 | T90: 3.411376901 | U90: 3.554659655 | V90: 3.711153353 | W90: 3.753073163 | X90: 3.81399942 | Y90: 3.591381576 | Z90: 3.25849993 | AA90: 3.088787738 | AB90: 2.845675443 | AC90: 2.562529177 | AD90: 2.507276435 | AE90: 2.241713224 | AF90: 1.989334862
A91: LRKPCGSA | B91: 062919 | C91: 1 | D91: 2400 | E91: 60 | F91: 1 | G91: 1 | H91: KW | I91: 1.845245593 | J91: 1.740866906 | K91: 1.66855101 | L91: 1.601996141 | M91: 1.493848361 | N91: 1.497573027 | O91: 1.471419633 | P91: 1.512952532 | Q91: 1.800833493 | R91: 2.130152979 | S91: 2.467069148 | T91: 2.703713754 | U91: 2.824003209 | V91: 2.96277456 | W91: 3.067727754 | X91: 3.100746699 | Y91: 3.072621561 | Z91: 3.051786661 | AA91: 3.024037339 | AB91: 2.974761549 | AC91: 2.81397066 | AD91: 2.65722078 | AE91: 2.295519059 | AF91: 2.091730375
A92: LRKPCGSA | B92: 063019 | C92: 1 | D92: 2400 | E92: 60 | F92: 1 | G92: 1 | H92: KW | I92: 1.913680146 | J92: 1.780126132 | K92: 1.619304976 | L92: 1.563869113 | M92: 1.522073393 | N92: 1.505467124 | O92: 1.543568074 | P92: 1.814042301 | Q92: 1.989137041 | R92: 2.343138045 | S92: 2.693037723 | T92: 2.879870194 | U92: 2.806327838 | V92: 2.753598467 | W92: 2.741269859 | X92: 2.690173291 | Y92: 2.685895511 | Z92: 2.768043378 | AA92: 2.869177009 | AB92: 2.644264549 | AC92: 2.449605763 | AD92: 2.280517764 | AE92: 2.021496831 | AF92: 1.857776267
A93: LRKPCGSA | B93: 070119 | C93: 1 | D93: 2400 | E93: 60 | F93: 1 | G93: 1 | H93: KW | I93: 1.721214833 | J93: 1.662622601 | K93: 1.595009511 | L93: 1.465913573 | M93: 1.5371868 | N93: 1.55408244 | O93: 1.709129726 | P93: 1.81613808 | Q93: 2.244017321 | R93: 2.562853389 | S93: 2.787766718 | T93: 3.026783914 | U93: 3.278212922 | V93: 3.374431141 | W93: 3.478390101 | X93: 3.549602089 | Y93: 3.542850685 | Z93: 3.259691751 | AA93: 3.068354392 | AB93: 2.890497958 | AC93: 2.714309869 | AD93: 2.514941257 | AE93: 2.365655872 | AF93: 2.110547116
A94: LRKPCGSA | B94: 070219 | C94: 1 | D94: 2400 | E94: 60 | F94: 1 | G94: 1 | H94: KW | I94: 1.930540071 | J94: 1.826148431 | K94: 1.710954249 | L94: 1.627315421 | M94: 1.645182286 | N94: 1.643547543 | O94: 1.691372379 | P94: 1.84957637 | Q94: 2.35981752 | R94: 2.775745389 | S94: 2.963359792 | T94: 3.268010286 | U94: 3.366888202 | V94: 3.442033795 | W94: 3.460063273 | X94: 3.567164791 | Y94: 3.331867887 | Z94: 3.009605336 | AA94: 2.745118811 | AB94: 2.575414451 | AC94: 2.417692649 | AD94: 2.268048295 | AE94: 2.031953603 | AF94: 1.832301354
A95: LRKPCGSA | B95: 070319 | C95: 1 | D95: 2400 | E95: 60 | F95: 1 | G95: 1 | H95: KW | I95: 1.720317124 | J95: 1.595392651 | K95: 1.626970096 | L95: 1.608073391 | M95: 1.622787982 | N95: 1.544527613 | O95: 1.675717737 | P95: 1.813069753 | Q95: 2.26919237 | R95: 2.614682788 | S95: 2.834904646 | T95: 2.967888423 | U95: 3.028793526 | V95: 3.325988418 | W95: 3.570514083 | X95: 3.629584255 | Y95: 3.343586655 | Z95: 2.970416243 | AA95: 2.791978706 | AB95: 2.608412594 | AC95: 2.413204608 | AD95: 2.317804281 | AE95: 2.082701545 | AF95: 1.889143392
A96: LRKPCGSA | B96: 070419 | C96: 1 | D96: 2400 | E96: 60 | F96: 1 | G96: 1 | H96: KW | I96: 1.760410847 | J96: 1.560942339 | K96: 1.54546488 | L96: 1.492951484 | M96: 1.432642583 | N96: 1.5649731 | O96: 1.691259682 | P96: 1.740317822 | Q96: 1.919098097 | R96: 2.085254046 | S96: 2.333188721 | T96: 2.480640765 | U96: 2.640075972 | V96: 2.743633341 | W96: 2.854528792 | X96: 2.867054463 | Y96: 2.878652413 | Z96: 2.650037137 | AA96: 2.512471918 | AB96: 2.405470384 | AC96: 2.379757158 | AD96: 2.347726488 | AE96: 2.146623095 | AF96: 1.94772788
A97: LRKPCGSA | B97: 070519 | C97: 1 | D97: 2400 | E97: 60 | F97: 1 | G97: 1 | H97: KW | I97: 1.807418721 | J97: 1.710916571 | K97: 1.648306423 | L97: 1.673946101 | M97: 1.607946838 | N97: 1.497087935 | O97: 1.631212849 | P97: 1.81786068 | Q97: 2.270192797 | R97: 2.561867131 | S97: 2.897418424 | T97: 3.078174904 | U97: 3.162565806 | V97: 3.371250113 | W97: 3.584038312 | X97: 3.653370962 | Y97: 3.548288426 | Z97: 3.309203901 | AA97: 3.232053962 | AB97: 3.082339918 | AC97: 2.96017501 | AD97: 2.803308094 | AE97: 2.477617559 | AF97: 2.227701222
A98: LRKPCGSA | B98: 070619 | C98: 1 | D98: 2400 | E98: 60 | F98: 1 | G98: 1 | H98: KW | I98: 2.067714413 | J98: 1.887834027 | K98: 1.807214763 | L98: 1.717171124 | M98: 1.551551264 | N98: 1.558481105 | O98: 1.655829809 | P98: 1.671029548 | Q98: 2.029603763 | R98: 2.370135691 | S98: 2.608049503 | T98: 2.819307773 | U98: 2.949947754 | V98: 2.95750925 | W98: 2.990119722 | X98: 3.014159969 | Y98: 3.008068962 | Z98: 2.765801388 | AA98: 2.660757382 | AB98: 2.61501576 | AC98: 2.537258239 | AD98: 2.496329724 | AE98: 2.286796452 | AF98: 2.050442592
A99: LRKPCGSA | B99: 070719 | C99: 1 | D99: 2400 | E99: 60 | F99: 1 | G99: 1 | H99: KW | I99: 1.948212838 | J99: 1.871731494 | K99: 1.729526456 | L99: 1.654970297 | M99: 1.683154601 | N99: 1.608556886 | O99: 1.600218553 | P99: 1.684804608 | Q99: 1.989435266 | R99: 2.241504539 | S99: 2.53206434 | T99: 2.731587138 | U99: 2.565952245 | V99: 2.483514563 | W99: 2.526168267 | X99: 2.488075453 | Y99: 2.579483497 | Z99: 2.70682965 | AA99: 2.76974617 | AB99: 2.595796738 | AC99: 2.313080423 | AD99: 2.21444076 | AE99: 2.025414795 | AF99: 1.878101016
A100: LRKPCGSA | B100: 070819 | C100: 1 | D100: 2400 | E100: 60 | F100: 1 | G100: 1 | H100: KW | I100: 1.752696776 | J100: 1.619485773 | K100: 1.523236954 | L100: 1.483413324 | M100: 1.551533264 | N100: 1.67959827 | O100: 1.791760868 | P100: 1.927059585 | Q100: 2.350664701 | R100: 2.722877315 | S100: 2.918612445 | T100: 3.09279993 | U100: 3.200891311 | V100: 3.254087552 | W100: 3.331800677 | X100: 3.359128547 | Y100: 3.267832159 | Z100: 3.006653433 | AA100: 2.941832045 | AB100: 2.698913378 | AC100: 2.526850063 | AD100: 2.365626361 | AE100: 2.151729295 | AF100: 1.957929043
A101: LRKPCGSA | B101: 070919 | C101: 1 | D101: 2400 | E101: 60 | F101: 1 | G101: 1 | H101: KW | I101: 1.799874627 | J101: 1.636078803 | K101: 1.611992438 | L101: 1.609292905 | M101: 1.513840427 | N101: 1.50126854 | O101: 1.631319415 | P101: 1.817403204 | Q101: 2.334419507 | R101: 2.757931257 | S101: 3.072158474 | T101: 3.340367461 | U101: 3.507074441 | V101: 3.615759894 | W101: 3.668820098 | X101: 3.683470145 | Y101: 3.65013272 | Z101: 3.480303271 | AA101: 3.337031139 | AB101: 3.112320556 | AC101: 2.839863008 | AD101: 2.665863878 | AE101: 2.40731568 | AF101: 2.160712728
A102: LRKPCGSA | B102: 071019 | C102: 1 | D102: 2400 | E102: 60 | F102: 1 | G102: 1 | H102: KW | I102: 2.025039352 | J102: 1.923995581 | K102: 1.831060602 | L102: 1.74740976 | M102: 1.684413434 | N102: 1.635146507 | O102: 1.750565194 | P102: 1.940324081 | Q102: 2.463716796 | R102: 2.841254505 | S102: 3.145590147 | T102: 3.452111953 | U102: 3.563358088 | V102: 3.699514741 | W102: 3.721114557 | X102: 3.776506908 | Y102: 3.719024928 | Z102: 3.601575837 | AA102: 3.482554761 | AB102: 3.391745246 | AC102: 2.993723981 | AD102: 2.700067321 | AE102: 2.402611401 | AF102: 2.212818944
A103: LRKPCGSA | B103: 071119 | C103: 1 | D103: 2400 | E103: 60 | F103: 1 | G103: 1 | H103: KW | I103: 2.099678069 | J103: 1.931617488 | K103: 1.831821703 | L103: 1.846790886 | M103: 1.831137227 | N103: 1.710478388 | O103: 1.849737337 | P103: 2.075867584 | Q103: 2.541292111 | R103: 2.874696279 | S103: 2.931265899 | T103: 3.053796142 | U103: 3.177890792 | V103: 3.211625251 | W103: 3.18342703 | X103: 3.36028779 | Y103: 3.121176633 | Z103: 2.78573069 | AA103: 2.615335178 | AB103: 2.410200368 | AC103: 2.326222757 | AD103: 2.194523952 | AE103: 1.99290536 | AF103: 1.934182007
A104: LRKPCGSA | B104: 071219 | C104: 1 | D104: 2400 | E104: 60 | F104: 1 | G104: 1 | H104: KW | I104: 1.770222156 | J104: 1.679301553 | K104: 1.63375346 | L104: 1.57004516 | M104: 1.553991557 | N104: 1.607617819 | O104: 1.716324154 | P104: 1.806798903 | Q104: 2.322361955 | R104: 2.806613963 | S104: 3.08050476 | T104: 3.361880443 | U104: 3.450389761 | V104: 3.551307807 | W104: 3.640617875 | X104: 3.700509089 | Y104: 3.631558297 | Z104: 3.360409436 | AA104: 3.160825738 | AB104: 2.952857264 | AC104: 2.826693013 | AD104: 2.651436698 | AE104: 2.371164305 | AF104: 2.078440587
A105: LRKPCGSA | B105: 071319 | C105: 1 | D105: 2400 | E105: 60 | F105: 1 | G105: 1 | H105: KW | I105: 1.885220924 | J105: 1.770061186 | K105: 1.667792958 | L105: 1.62898653 | M105: 1.545009808 | N105: 1.452355441 | O105: 1.449053915 | P105: 1.630441127 | Q105: 1.979607859 | R105: 2.19773773 | S105: 2.515352945 | T105: 2.85195939 | U105: 3.046885537 | V105: 3.092888292 | W105: 3.192676428 | X105: 3.14560142 | Y105: 3.163354805 | Z105: 3.0345022 | AA105: 3.114434656 | AB105: 2.976223355 | AC105: 2.788273339 | AD105: 2.712855451 | AE105: 2.389334434 | AF105: 2.120388809
A106: LRKPCGSA | B106: 071419 | C106: 1 | D106: 2400 | E106: 60 | F106: 1 | G106: 1 | H106: KW | I106: 1.975838636 | J106: 1.850677521 | K106: 1.813082242 | L106: 1.758573194 | M106: 1.612579385 | N106: 1.640642753 | O106: 1.591464099 | P106: 1.608518273 | Q106: 1.883413191 | R106: 2.220205678 | S106: 2.488359128 | T106: 2.601879847 | U106: 2.6116097 | V106: 2.830973525 | W106: 2.890500051 | X106: 2.959441392 | Y106: 3.046727106 | Z106: 3.062801502 | AA106: 3.067213576 | AB106: 2.8995326 | AC106: 2.693821081 | AD106: 2.592953528 | AE106: 2.314081595 | AF106: 2.122313854
A107: LRKPCGSA | B107: 071519 | C107: 1 | D107: 2400 | E107: 60 | F107: 1 | G107: 1 | H107: KW | I107: 2.078979251 | J107: 1.952955838 | K107: 1.858480745 | L107: 1.782217466 | M107: 1.737838977 | N107: 1.608378738 | O107: 1.674309213 | P107: 1.91288093 | Q107: 2.559601134 | R107: 2.970656724 | S107: 3.219289959 | T107: 3.650169552 | U107: 3.774209271 | V107: 3.803626472 | W107: 3.814833176 | X107: 3.853495399 | Y107: 3.606583389 | Z107: 3.160235168 | AA107: 2.871913029 | AB107: 2.673165438 | AC107: 2.571559829 | AD107: 2.41463608 | AE107: 2.204159017 | AF107: 2.050351766
A108: LRKPCGSA | B108: 071619 | C108: 1 | D108: 2400 | E108: 60 | F108: 1 | G108: 1 | H108: KW | I108: 1.850031558 | J108: 1.768851122 | K108: 1.685438099 | L108: 1.574655446 | M108: 1.561155383 | N108: 1.607633439 | O108: 1.778926493 | P108: 1.893034508 | Q108: 2.368742414 | R108: 2.910366198 | S108: 3.162643125 | T108: 3.384663294 | U108: 3.411843194 | V108: 3.598355331 | W108: 3.796226897 | X108: 3.812038792 | Y108: 3.844520638 | Z108: 3.64431292 | AA108: 3.383138439 | AB108: 3.259277165 | AC108: 3.045874577 | AD108: 2.75451526 | AE108: 2.440054319 | AF108: 2.216519671
A109: LRKPCGSA | B109: 071719 | C109: 1 | D109: 2400 | E109: 60 | F109: 1 | G109: 1 | H109: KW | I109: 2.118720261 | J109: 2.012154602 | K109: 1.965604538 | L109: 1.915612851 | M109: 1.807205253 | N109: 1.818449304 | O109: 1.860117952 | P109: 1.997831039 | Q109: 2.54764353 | R109: 2.875332145 | S109: 3.124490944 | T109: 3.304935278 | U109: 3.382026326 | V109: 3.568531569 | W109: 3.728061669 | X109: 3.584295499 | Y109: 3.463374305 | Z109: 3.312713111 | AA109: 3.165966532 | AB109: 2.930531485 | AC109: 2.602062093 | AD109: 2.459265992 | AE109: 2.154752387 | AF109: 2.131854652
A110: LRKPCGSA | B110: 071819 | C110: 1 | D110: 2400 | E110: 60 | F110: 1 | G110: 1 | H110: KW | I110: 2.021745089 | J110: 1.916452946 | K110: 1.80144031 | L110: 1.709924778 | M110: 1.626392076 | N110: 1.614522626 | O110: 1.803671571 | P110: 2.064627613 | Q110: 2.505609615 | R110: 2.998892281 | S110: 3.257359017 | T110: 3.505700201 | U110: 3.639548845 | V110: 3.723391039 | W110: 3.86740661 | X110: 3.786971817 | Y110: 3.661151481 | Z110: 3.277229735 | AA110: 3.140885685 | AB110: 2.984078868 | AC110: 2.736541447 | AD110: 2.438043868 | AE110: 2.240916538 | AF110: 2.028116042
A111: LRKPCGSA | B111: 071919 | C111: 1 | D111: 2400 | E111: 60 | F111: 1 | G111: 1 | H111: KW | I111: 1.937232498 | J111: 1.775003334 | K111: 1.74115162 | L111: 1.662837724 | M111: 1.610735538 | N111: 1.728099757 | O111: 1.781676241 | P111: 1.941889663 | Q111: 2.475677521 | R111: 2.99476555 | S111: 3.180309068 | T111: 3.388682953 | U111: 3.644991997 | V111: 3.890489283 | W111: 3.965020606 | X111: 4.095588549 | Y111: 3.999836499 | Z111: 3.594595148 | AA111: 3.484674615 | AB111: 3.357204104 | AC111: 3.04202186 | AD111: 2.855810394 | AE111: 2.554386532 | AF111: 2.413155013
A112: LRKPCGSA | B112: 072019 | C112: 1 | D112: 2400 | E112: 60 | F112: 1 | G112: 1 | H112: KW | I112: 2.219176327 | J112: 2.121557212 | K112: 2.011746701 | L112: 1.867866638 | M112: 1.690953314 | N112: 1.759535832 | O112: 1.691261734 | P112: 1.889638922 | Q112: 2.270384965 | R112: 2.604529345 | S112: 2.981875435 | T112: 3.157123201 | U112: 3.137311948 | V112: 3.294918413 | W112: 3.411167045 | X112: 3.453053832 | Y112: 3.437001012 | Z112: 3.342698014 | AA112: 3.242636612 | AB112: 3.173257533 | AC112: 2.979273873 | AD112: 2.878360998 | AE112: 2.645808711 | AF112: 2.407395858
A113: LRKPCGSA | B113: 072119 | C113: 1 | D113: 2400 | E113: 60 | F113: 1 | G113: 1 | H113: KW | I113: 2.262086396 | J113: 2.173504957 | K113: 2.10606101 | L113: 1.985116948 | M113: 1.828327822 | N113: 1.773550451 | O113: 1.856750966 | P113: 1.967759948 | Q113: 2.191945402 | R113: 2.579582439 | S113: 2.779132257 | T113: 2.777869429 | U113: 2.852323477 | V113: 3.001229118 | W113: 3.134903379 | X113: 3.049536768 | Y113: 2.940244443 | Z113: 2.852329351 | AA113: 2.789392861 | AB113: 2.565559019 | AC113: 2.422212726 | AD113: 2.353108837 | AE113: 2.181559305 | AF113: 2.093800912
A114: LRKPCGSA | B114: 072219 | C114: 1 | D114: 2400 | E114: 60 | F114: 1 | G114: 1 | H114: KW | I114: 1.956563289 | J114: 1.916472938 | K114: 1.831324 | L114: 1.587173847 | M114: 1.553784465 | N114: 1.630814042 | O114: 1.748560243 | P114: 1.979223079 | Q114: 2.503827402 | R114: 2.763986999 | S114: 2.930544101 | T114: 3.200429256 | U114: 3.14375219 | V114: 3.142291474 | W114: 3.106651142 | X114: 3.110339019 | Y114: 3.024199503 | Z114: 2.67027615 | AA114: 2.450683558 | AB114: 2.258136964 | AC114: 2.263881276 | AD114: 2.110592163 | AE114: 1.925717691 | AF114: 1.793144083
A115: LRKPCGSA | B115: 072319 | C115: 1 | D115: 2400 | E115: 60 | F115: 1 | G115: 1 | H115: KW | I115: 1.640375232 | J115: 1.566729187 | K115: 1.531345647 | L115: 1.532134485 | M115: 1.491520207 | N115: 1.482576303 | O115: 1.730742196 | P115: 1.781018136 | Q115: 2.205214616 | R115: 2.38744271 | S115: 2.526085403 | T115: 2.634872387 | U115: 2.762371514 | V115: 2.930762368 | W115: 3.07060283 | X115: 3.079746379 | Y115: 3.049331581 | Z115: 2.801630628 | AA115: 2.509099417 | AB115: 2.322698318 | AC115: 2.156305466 | AD115: 2.060334528 | AE115: 1.803189908 | AF115: 1.584601829
A116: LRKPCGSA | B116: 072419 | C116: 1 | D116: 2400 | E116: 60 | F116: 1 | G116: 1 | H116: KW | I116: 1.518712212 | J116: 1.477453586 | K116: 1.52209183 | L116: 1.437442225 | M116: 1.391158239 | N116: 1.4421496 | O116: 1.641602444 | P116: 1.651000194 | Q116: 2.014179332 | R116: 2.34198379 | S116: 2.563407486 | T116: 2.737719146 | U116: 2.909411013 | V116: 3.135075339 | W116: 3.227828775 | X116: 3.234915675 | Y116: 3.090288907 | Z116: 2.743982425 | AA116: 2.707611745 | AB116: 2.559281615 | AC116: 2.262767654 | AD116: 2.096174351 | AE116: 1.850601493 | AF116: 1.738837551
A117: LRKPCGSA | B117: 072519 | C117: 1 | D117: 2400 | E117: 60 | F117: 1 | G117: 1 | H117: KW | I117: 1.648579265 | J117: 1.589696057 | K117: 1.535555734 | L117: 1.417905808 | M117: 1.288972324 | N117: 1.342489931 | O117: 1.518202325 | P117: 1.724269348 | Q117: 2.116458208 | R117: 2.406990541 | S117: 2.621076614 | T117: 2.821318614 | U117: 2.917304095 | V117: 3.103140019 | W117: 3.216464011 | X117: 3.274439704 | Y117: 3.098637586 | Z117: 2.889887796 | AA117: 2.742975211 | AB117: 2.638146503 | AC117: 2.356463035 | AD117: 2.149118334 | AE117: 1.919394141 | AF117: 1.666922917
A118: LRKPCGSA | B118: 072619 | C118: 1 | D118: 2400 | E118: 60 | F118: 1 | G118: 1 | H118: KW | I118: 1.60045788 | J118: 1.518313268 | K118: 1.568035911 | L118: 1.526815303 | M118: 1.441585136 | N118: 1.402994443 | O118: 1.529283138 | P118: 1.658370804 | Q118: 2.08573534 | R118: 2.412260008 | S118: 2.77197353 | T118: 3.065848238 | U118: 3.278061385 | V118: 3.353182894 | W118: 3.40567562 | X118: 3.432031476 | Y118: 3.253208564 | Z118: 3.044211127 | AA118: 2.81669765 | AB118: 2.703275535 | AC118: 2.464941655 | AD118: 2.358113616 | AE118: 2.125626174 | AF118: 1.91905659
A119: LRKPCGSA | B119: 072719 | C119: 1 | D119: 2400 | E119: 60 | F119: 1 | G119: 1 | H119: KW | I119: 1.786468798 | J119: 1.704867928 | K119: 1.602899097 | L119: 1.498196174 | M119: 1.335590766 | N119: 1.346379692 | O119: 1.433607493 | P119: 1.657620206 | Q119: 1.882786995 | R119: 2.044340314 | S119: 2.327911428 | T119: 2.653222218 | U119: 2.804992563 | V119: 2.956955975 | W119: 2.980839438 | X119: 2.921612155 | Y119: 3.020664459 | Z119: 3.050343951 | AA119: 3.082251549 | AB119: 2.891161621 | AC119: 2.71425621 | AD119: 2.471495431 | AE119: 2.151659081 | AF119: 1.922286795
A120: LRKPCGSA | B120: 072819 | C120: 1 | D120: 2400 | E120: 60 | F120: 1 | G120: 1 | H120: KW | I120: 1.821760452 | J120: 1.695341553 | K120: 1.569596547 | L120: 1.57280083 | M120: 1.600410331 | N120: 1.640881912 | O120: 1.670312438 | P120: 1.537578083 | Q120: 1.724338587 | R120: 2.205305769 | S120: 2.455580698 | T120: 2.540886678 | U120: 2.615559096 | V120: 2.788735147 | W120: 2.974504633 | X120: 3.036303323 | Y120: 3.07920804 | Z120: 2.953128304 | AA120: 3.024657935 | AB120: 2.755614775 | AC120: 2.541794435 | AD120: 2.39808829 | AE120: 2.153948721 | AF120: 1.987863129
A121: LRKPCGSA | B121: 072919 | C121: 1 | D121: 2400 | E121: 60 | F121: 1 | G121: 1 | H121: KW | I121: 1.907678468 | J121: 1.80979758 | K121: 1.722143441 | L121: 1.594129095 | M121: 1.511232754 | N121: 1.51087199 | O121: 1.575508424 | P121: 1.765470053 | Q121: 2.277459048 | R121: 2.750327394 | S121: 3.204006717 | T121: 3.400265418 | U121: 3.451635176 | V121: 3.630724322 | W121: 3.651508827 | X121: 3.640113345 | Y121: 3.443187865 | Z121: 3.220292163 | AA121: 3.10171517 | AB121: 2.997509868 | AC121: 2.793972055 | AD121: 2.542228745 | AE121: 2.230696319 | AF121: 1.994131047
A122: LRKPCGSA | B122: 073019 | C122: 1 | D122: 2400 | E122: 60 | F122: 1 | G122: 1 | H122: KW | I122: 1.850640552 | J122: 1.755540006 | K122: 1.713878095 | L122: 1.70108619 | M122: 1.706904605 | N122: 1.710457617 | O122: 1.800153452 | P122: 2.002712813 | Q122: 2.361607973 | R122: 2.664948151 | S122: 2.86773822 | T122: 3.188081456 | U122: 3.297598006 | V122: 3.386313747 | W122: 3.478614546 | X122: 3.434657479 | Y122: 3.282907179 | Z122: 2.990074806 | AA122: 2.649684739 | AB122: 2.478657621 | AC122: 2.257439674 | AD122: 2.045085408 | AE122: 1.902299813 | AF122: 1.770547043
A123: LRKPCGSA | B123: 073119 | C123: 1 | D123: 2400 | E123: 60 | F123: 1 | G123: 1 | H123: KW | I123: 1.695672645 | J123: 1.707995277 | K123: 1.708617518 | L123: 1.676012241 | M123: 1.63479387 | N123: 1.466296601 | O123: 1.555676663 | P123: 1.722714004 | Q123: 2.208082332 | R123: 2.633026312 | S123: 2.923771669 | T123: 3.325404973 | U123: 3.507303345 | V123: 3.564600337 | W123: 3.650397199 | X123: 3.614816912 | Y123: 3.566754477 | Z123: 3.15705849 | AA123: 3.143785513 | AB123: 3.04998877 | AC123: 2.728282102 | AD123: 2.44416376 | AE123: 2.090109747 | AF123: 1.909739352
A124: LRKPCGSA | B124: 080119 | C124: 1 | D124: 2400 | E124: 60 | F124: 1 | G124: 1 | H124: KW | I124: 1.819764158 | J124: 1.692181703 | K124: 1.667103038 | L124: 1.512305912 | M124: 1.542926398 | N124: 1.559006596 | O124: 1.693895772 | P124: 1.799885813 | Q124: 2.363319138 | R124: 2.607383504 | S124: 2.945563207 | T124: 3.324076402 | U124: 3.53720388 | V124: 3.648563467 | W124: 3.680391071 | X124: 3.694092077 | Y124: 3.592181568 | Z124: 3.337055541 | AA124: 3.077787591 | AB124: 2.785859012 | AC124: 2.54230001 | AD124: 2.414851959 | AE124: 2.177274577 | AF124: 1.960236125
A125: LRKPCGSA | B125: 080219 | C125: 1 | D125: 2400 | E125: 60 | F125: 1 | G125: 1 | H125: KW | I125: 1.846340911 | J125: 1.790585887 | K125: 1.775539494 | L125: 1.596049606 | M125: 1.525487001 | N125: 1.527152078 | O125: 1.646972356 | P125: 1.844237128 | Q125: 2.278004619 | R125: 2.633005689 | S125: 2.971286553 | T125: 3.280091241 | U125: 3.51074091 | V125: 3.647555135 | W125: 3.708179022 | X125: 3.755220457 | Y125: 3.513300409 | Z125: 3.090166738 | AA125: 2.772598362 | AB125: 2.604232399 | AC125: 2.48961876 | AD125: 2.417220274 | AE125: 2.17750845 | AF125: 1.985017845
A126: LRKPCGSA | B126: 080319 | C126: 1 | D126: 2400 | E126: 60 | F126: 1 | G126: 1 | H126: KW | I126: 1.832941167 | J126: 1.720385816 | K126: 1.651314046 | L126: 1.56704627 | M126: 1.456515084 | N126: 1.453156442 | O126: 1.459896029 | P126: 1.544728541 | Q126: 1.874466168 | R126: 2.188857196 | S126: 2.432467285 | T126: 2.616235598 | U126: 2.853773381 | V126: 2.902330536 | W126: 2.95741254 | X126: 2.951429071 | Y126: 2.970294526 | Z126: 2.911872157 | AA126: 2.895127722 | AB126: 2.853817753 | AC126: 2.650480073 | AD126: 2.562008863 | AE126: 2.299002054 | AF126: 1.969268614
A127: LRKPCGSA | B127: 080419 | C127: 1 | D127: 2400 | E127: 60 | F127: 1 | G127: 1 | H127: KW | I127: 1.827414183 | J127: 1.680604277 | K127: 1.575944326 | L127: 1.522136018 | M127: 1.486158649 | N127: 1.536319186 | O127: 1.526822528 | P127: 1.505485677 | Q127: 1.760422171 | R127: 2.131045462 | S127: 2.338199777 | T127: 2.540162617 | U127: 2.536583701 | V127: 2.612219665 | W127: 2.806615313 | X127: 2.9742128 | Y127: 2.944340599 | Z127: 2.87460441 | AA127: 2.778764516 | AB127: 2.579958813 | AC127: 2.400202731 | AD127: 2.268063215 | AE127: 2.06019224 | AF127: 1.859839021
A128: LRKPCGSA | B128: 080519 | C128: 1 | D128: 2400 | E128: 60 | F128: 1 | G128: 1 | H128: KW | I128: 1.713167282 | J128: 1.680034165 | K128: 1.600463414 | L128: 1.466470477 | M128: 1.409381564 | N128: 1.362625655 | O128: 1.586910441 | P128: 1.804031453 | Q128: 2.283090343 | R128: 2.706946701 | S128: 2.89882867 | T128: 3.189637271 | U128: 3.361112595 | V128: 3.421123025 | W128: 3.556328545 | X128: 3.603107928 | Y128: 3.466590605 | Z128: 3.104846903 | AA128: 2.928070236 | AB128: 2.721424172 | AC128: 2.507473329 | AD128: 2.378364462 | AE128: 2.117108682 | AF128: 1.937819509
A129: LRKPCGSA | B129: 080619 | C129: 1 | D129: 2400 | E129: 60 | F129: 1 | G129: 1 | H129: KW | I129: 1.782848147 | J129: 1.701680292 | K129: 1.634791048 | L129: 1.569383397 | M129: 1.462282124 | N129: 1.485018438 | O129: 1.569782735 | P129: 1.765324079 | Q129: 2.154637834 | R129: 2.666305324 | S129: 2.969711471 | T129: 3.267070878 | U129: 3.436769089 | V129: 3.568157235 | W129: 3.584398302 | X129: 3.573273124 | Y129: 3.446761119 | Z129: 3.13930153 | AA129: 2.948479723 | AB129: 2.756090431 | AC129: 2.532165223 | AD129: 2.358008325 | AE129: 2.136091058 | AF129: 1.957521731
A130: LRKPCGSA | B130: 080719 | C130: 1 | D130: 2400 | E130: 60 | F130: 1 | G130: 1 | H130: KW | I130: 1.816328708 | J130: 1.759290749 | K130: 1.742356161 | L130: 1.666532384 | M130: 1.562248733 | N130: 1.59760758 | O130: 1.684050195 | P130: 1.968885675 | Q130: 2.345855313 | R130: 2.678483226 | S130: 2.953161723 | T130: 2.954926216 | U130: 2.993266562 | V130: 3.124799808 | W130: 3.313188975 | X130: 3.363520557 | Y130: 3.23403599 | Z130: 3.015529195 | AA130: 2.939364622 | AB130: 2.817223617 | AC130: 2.513198909 | AD130: 2.310504877 | AE130: 2.074656068 | AF130: 1.891791967
A131: LRKPCGSA | B131: 080819 | C131: 1 | D131: 2400 | E131: 60 | F131: 1 | G131: 1 | H131: KW | I131: 1.782354242 | J131: 1.703566918 | K131: 1.667178219 | L131: 1.52751191 | M131: 1.425849848 | N131: 1.51106905 | O131: 1.630485319 | P131: 1.762721966 | Q131: 2.292373356 | R131: 2.770184958 | S131: 3.025254608 | T131: 3.369190435 | U131: 3.437259998 | V131: 3.438369363 | W131: 3.621755387 | X131: 3.613784801 | Y131: 3.428469739 | Z131: 3.206443164 | AA131: 3.103955254 | AB131: 2.920287706 | AC131: 2.683081217 | AD131: 2.405877506 | AE131: 2.157047706 | AF131: 1.999875143
A132: LRKPCGSA | B132: 080919 | C132: 1 | D132: 2400 | E132: 60 | F132: 1 | G132: 1 | H132: KW | I132: 1.895338505 | J132: 1.781589399 | K132: 1.743823725 | L132: 1.544021087 | M132: 1.529235175 | N132: 1.581995617 | O132: 1.645453325 | P132: 1.867796505 | Q132: 2.441144802 | R132: 2.861023066 | S132: 2.998445519 | T132: 3.295786135 | U132: 3.498044505 | V132: 3.627625069 | W132: 3.710309996 | X132: 3.677626786 | Y132: 3.489166349 | Z132: 3.189504835 | AA132: 2.986191246 | AB132: 2.644742292 | AC132: 2.488802767 | AD132: 2.458205734 | AE132: 2.206728027 | AF132: 2.005118381
A133: LRKPCGSA | B133: 081019 | C133: 1 | D133: 2400 | E133: 60 | F133: 1 | G133: 1 | H133: KW | I133: 1.885898113 | J133: 1.821448713 | K133: 1.65886447 | L133: 1.565903964 | M133: 1.55335346 | N133: 1.543908636 | O133: 1.516850395 | P133: 1.641018375 | Q133: 1.877693343 | R133: 2.102667996 | S133: 2.342448363 | T133: 2.478373017 | U133: 2.730117116 | V133: 2.806388092 | W133: 2.842251581 | X133: 2.969252275 | Y133: 3.025946247 | Z133: 2.76193007 | AA133: 2.831721865 | AB133: 2.620186742 | AC133: 2.449934024 | AD133: 2.247412122 | AE133: 2.010180444 | AF133: 1.81998885
A134: LRKPCGSA | B134: 081119 | C134: 1 | D134: 2400 | E134: 60 | F134: 1 | G134: 1 | H134: KW | I134: 1.703974217 | J134: 1.633110018 | K134: 1.50611454 | L134: 1.411870155 | M134: 1.395887282 | N134: 1.476496458 | O134: 1.477518294 | P134: 1.436010434 | Q134: 1.693525513 | R134: 2.039031413 | S134: 2.174700022 | T134: 2.345277392 | U134: 2.308571297 | V134: 2.492432196 | W134: 2.530237287 | X134: 2.630451476 | Y134: 2.781096464 | Z134: 2.760363451 | AA134: 2.766316222 | AB134: 2.522816177 | AC134: 2.364460094 | AD134: 2.168166246 | AE134: 1.903008118 | AF134: 1.749972271
A135: LRKPCGSA | B135: 081219 | C135: 1 | D135: 2400 | E135: 60 | F135: 1 | G135: 1 | H135: KW | I135: 1.654056943 | J135: 1.520930352 | K135: 1.434587835 | L135: 1.367609847 | M135: 1.372609649 | N135: 1.363076464 | O135: 1.517792016 | P135: 1.76439605 | Q135: 2.199012894 | R135: 2.509850361 | S135: 2.851385395 | T135: 3.131629662 | U135: 3.34859258 | V135: 3.489661561 | W135: 3.415288999 | X135: 3.403143552 | Y135: 3.248859099 | Z135: 2.92222023 | AA135: 2.796742236 | AB135: 2.628887307 | AC135: 2.56251683 | AD135: 2.468851758 | AE135: 2.155337461 | AF135: 2.021445478
A136: LRKPCGSA | B136: 081319 | C136: 1 | D136: 2400 | E136: 60 | F136: 1 | G136: 1 | H136: KW | I136: 1.895458178 | J136: 1.813917484 | K136: 1.768498433 | L136: 1.753981226 | M136: 1.631688308 | N136: 1.612628068 | O136: 1.7108302 | P136: 1.994107723 | Q136: 2.490923112 | R136: 2.915281005 | S136: 3.121605449 | T136: 3.288171555 | U136: 3.265405881 | V136: 3.369876855 | W136: 3.482638239 | X136: 3.442052703 | Y136: 3.345765118 | Z136: 3.067228169 | AA136: 2.800730929 | AB136: 2.658019314 | AC136: 2.520537251 | AD136: 2.365311681 | AE136: 2.180595776 | AF136: 2.005302824
A137: LRKPCGSA | B137: 081419 | C137: 1 | D137: 2400 | E137: 60 | F137: 1 | G137: 1 | H137: KW | I137: 1.877390409 | J137: 1.78741097 | K137: 1.705968284 | L137: 1.605593552 | M137: 1.574524978 | N137: 1.619051692 | O137: 1.838790317 | P137: 2.036955986 | Q137: 2.529792237 | R137: 2.978605102 | S137: 3.109820476 | T137: 3.410613447 | U137: 3.636035843 | V137: 3.743044941 | W137: 3.842396025 | X137: 3.80021117 | Y137: 3.615412571 | Z137: 3.446912905 | AA137: 3.346923994 | AB137: 3.16350185 | AC137: 2.655156656 | AD137: 2.39913869 | AE137: 2.139765399 | AF137: 1.963271286
A138: LRKPCGSA | B138: 081519 | C138: 1 | D138: 2400 | E138: 60 | F138: 1 | G138: 1 | H138: KW | I138: 1.829932066 | J138: 1.743497043 | K138: 1.664455873 | L138: 1.632143367 | M138: 1.584793351 | N138: 1.65411636 | O138: 1.73038957 | P138: 1.823048169 | Q138: 2.448755333 | R138: 2.866840959 | S138: 3.217448071 | T138: 3.580025919 | U138: 3.650756588 | V138: 3.674162891 | W138: 3.772217563 | X138: 3.782027304 | Y138: 3.666194643 | Z138: 3.318109336 | AA138: 3.125753919 | AB138: 2.857769487 | AC138: 2.671061111 | AD138: 2.457924573 | AE138: 2.232356711 | AF138: 1.981442567
A139: LRKPCGSA | B139: 081619 | C139: 1 | D139: 2400 | E139: 60 | F139: 1 | G139: 1 | H139: KW | I139: 1.847368951 | J139: 1.758706489 | K139: 1.702674248 | L139: 1.608761404 | M139: 1.557000241 | N139: 1.506210595 | O139: 1.545671102 | P139: 1.792912906 | Q139: 2.352858806 | R139: 2.885038994 | S139: 3.127488551 | T139: 3.384654585 | U139: 3.424826035 | V139: 3.558400682 | W139: 3.704503067 | X139: 3.79653201 | Y139: 3.493835482 | Z139: 3.247227765 | AA139: 3.055089385 | AB139: 2.812499916 | AC139: 2.575157348 | AD139: 2.479291549 | AE139: 2.177340193 | AF139: 1.923119841
A140: LRKPCGSA | B140: 081719 | C140: 1 | D140: 2400 | E140: 60 | F140: 1 | G140: 1 | H140: KW | I140: 1.840834326 | J140: 1.715453233 | K140: 1.641170146 | L140: 1.553079545 | M140: 1.594393837 | N140: 1.573192713 | O140: 1.539438937 | P140: 1.632820226 | Q140: 1.836633831 | R140: 2.17064305 | S140: 2.419158613 | T140: 2.660665027 | U140: 2.80311158 | V140: 2.929703482 | W140: 2.960919697 | X140: 2.93459757 | Y140: 2.959324676 | Z140: 2.960245099 | AA140: 2.838136593 | AB140: 2.838691669 | AC140: 2.78017073 | AD140: 2.715318455 | AE140: 2.306914228 | AF140: 2.093177437
A141: LRKPCGSA | B141: 081819 | C141: 1 | D141: 2400 | E141: 60 | F141: 1 | G141: 1 | H141: KW | I141: 1.958235087 | J141: 1.853150551 | K141: 1.814020481 | L141: 1.671268411 | M141: 1.509836851 | N141: 1.449155983 | O141: 1.546148732 | P141: 1.680017346 | Q141: 1.772547093 | R141: 2.086832163 | S141: 2.431600471 | T141: 2.593811137 | U141: 2.836417313 | V141: 2.946045744 | W141: 3.009478254 | X141: 3.132631472 | Y141: 3.177351568 | Z141: 3.311240999 | AA141: 3.227745113 | AB141: 2.961550247 | AC141: 2.724102916 | AD141: 2.511619332 | AE141: 2.237754386 | AF141: 2.072602385
A142: LRKPCGSA | B142: 081919 | C142: 1 | D142: 2400 | E142: 60 | F142: 1 | G142: 1 | H142: KW | I142: 1.911227082 | J142: 1.798523881 | K142: 1.735943546 | L142: 1.62323579 | M142: 1.631211285 | N142: 1.640173587 | O142: 1.899180283 | P142: 2.018814729 | Q142: 2.645340196 | R142: 3.01659523 | S142: 3.242083491 | T142: 3.529138955 | U142: 3.705489425 | V142: 3.880514442 | W142: 3.964141356 | X142: 3.986428273 | Y142: 3.760529476 | Z142: 3.520060821 | AA142: 3.329041511 | AB142: 3.027550196 | AC142: 2.858834746 | AD142: 2.863275246 | AE142: 2.572121398 | AF142: 2.223422849
A143: LRKPCGSA | B143: 082019 | C143: 1 | D143: 2400 | E143: 60 | F143: 1 | G143: 1 | H143: KW | I143: 2.031479863 | J143: 1.966168916 | K143: 1.91022294 | L143: 1.883025517 | M143: 1.75615202 | N143: 1.74309791 | O143: 1.95536799 | P143: 2.083672916 | Q143: 2.532010456 | R143: 3.007750782 | S143: 3.41918646 | T143: 3.666333829 | U143: 3.809303237 | V143: 4.057739137 | W143: 4.13471139 | X143: 4.052017125 | Y143: 3.906873903 | Z143: 3.523814411 | AA143: 3.140621768 | AB143: 2.885642904 | AC143: 2.678114375 | AD143: 2.555135705 | AE143: 2.363218238 | AF143: 2.2088401
A144: LRKPCGSA | B144: 082119 | C144: 1 | D144: 2400 | E144: 60 | F144: 1 | G144: 1 | H144: KW | I144: 2.01606312 | J144: 1.967513936 | K144: 1.897411141 | L144: 1.773669004 | M144: 1.712127319 | N144: 1.803167677 | O144: 1.929239038 | P144: 2.057295954 | Q144: 2.632104059 | R144: 3.127248525 | S144: 3.506392822 | T144: 3.785598284 | U144: 3.825351634 | V144: 3.925326258 | W144: 4.039290665 | X144: 3.975485211 | Y144: 4.008952193 | Z144: 3.887561026 | AA144: 3.718837237 | AB144: 3.41096968 | AC144: 2.975124643 | AD144: 2.612978689 | AE144: 2.369266488 | AF144: 2.163664346
A145: LRKPCGSA | B145: 082219 | C145: 1 | D145: 2400 | E145: 60 | F145: 1 | G145: 1 | H145: KW | I145: 2.027159414 | J145: 1.889839474 | K145: 1.798841027 | L145: 1.771953982 | M145: 1.740344303 | N145: 1.753835436 | O145: 1.945124127 | P145: 2.152902118 | Q145: 2.586099613 | R145: 2.985876328 | S145: 3.393338316 | T145: 3.674100014 | U145: 3.810411067 | V145: 3.965405249 | W145: 3.886928564 | X145: 3.824262184 | Y145: 3.620387873 | Z145: 3.323198683 | AA145: 3.037706325 | AB145: 2.782713939 | AC145: 2.657605058 | AD145: 2.364688391 | AE145: 2.108650114 | AF145: 1.996914042
A146: LRKPCGSA | B146: 082319 | C146: 1 | D146: 2400 | E146: 60 | F146: 1 | G146: 1 | H146: KW | I146: 1.925095388 | J146: 1.887253822 | K146: 1.832165019 | L146: 1.764633146 | M146: 1.600159375 | N146: 1.551007361 | O146: 1.782198282 | P146: 2.218040023 | Q146: 2.599934071 | R146: 2.94785237 | S146: 3.053335444 | T146: 3.170591463 | U146: 3.208692789 | V146: 3.080787485 | W146: 3.009671399 | X146: 2.791575903 | Y146: 2.51413173 | Z146: 2.183213539 | AA146: 2.318411732 | AB146: 2.425406881 | AC146: 2.4141314 | AD146: 2.159392722 | AE146: 1.930635154 | AF146: 1.76882583
A147: LRKPCGSA | B147: 082419 | C147: 1 | D147: 2400 | E147: 60 | F147: 1 | G147: 1 | H147: KW | I147: 1.67348212 | J147: 1.655501253 | K147: 1.490880201 | L147: 1.440113992 | M147: 1.395538369 | N147: 1.414357011 | O147: 1.502740204 | P147: 1.622248876 | Q147: 1.830432608 | R147: 1.997044996 | S147: 2.120361178 | T147: 2.22076247 | U147: 2.281504623 | V147: 2.391817207 | W147: 2.499144158 | X147: 2.453176795 | Y147: 2.407410486 | Z147: 2.370835401 | AA147: 2.36155092 | AB147: 2.339417366 | AC147: 2.224270738 | AD147: 2.060574131 | AE147: 1.802298155 | AF147: 1.651524939
A148: LRKPCGSA | B148: 082519 | C148: 1 | D148: 2400 | E148: 60 | F148: 1 | G148: 1 | H148: KW | I148: 1.540086002 | J148: 1.502081623 | K148: 1.419800416 | L148: 1.39595478 | M148: 1.325276971 | N148: 1.333454802 | O148: 1.45152173 | P148: 1.463686104 | Q148: 1.741827716 | R148: 2.008903037 | S148: 2.250308069 | T148: 2.269374361 | U148: 2.300453924 | V148: 2.316946081 | W148: 2.357521968 | X148: 2.537162128 | Y148: 2.596791117 | Z148: 2.58351118 | AA148: 2.605439973 | AB148: 2.412732788 | AC148: 2.24276954 | AD148: 2.099137317 | AE148: 1.881676602 | AF148: 1.777818266
A149: LRKPCGSA | B149: 082619 | C149: 1 | D149: 2400 | E149: 60 | F149: 1 | G149: 1 | H149: KW | I149: 1.6629426 | J149: 1.62477839 | K149: 1.482597171 | L149: 1.406987672 | M149: 1.342958393 | N149: 1.396980331 | O149: 1.511391043 | P149: 1.758416402 | Q149: 2.234286344 | R149: 2.464792735 | S149: 2.669627782 | T149: 2.807968407 | U149: 2.789477003 | V149: 2.71554148 | W149: 2.724434325 | X149: 2.643059373 | Y149: 2.434912438 | Z149: 2.136456805 | AA149: 2.008694289 | AB149: 1.979793539 | AC149: 1.939873219 | AD149: 1.892100576 | AE149: 1.766272988 | AF149: 1.645347422
A150: LRKPCGSA | B150: 082719 | C150: 1 | D150: 2400 | E150: 60 | F150: 1 | G150: 1 | H150: KW | I150: 1.614263431 | J150: 1.561107238 | K150: 1.500695957 | L150: 1.371115031 | M150: 1.381761361 | N150: 1.413801755 | O150: 1.591189792 | P150: 1.784920283 | Q150: 2.281314275 | R150: 2.659339133 | S150: 2.821467677 | T150: 2.95598602 | U150: 3.061067854 | V150: 3.12362255 | W150: 3.10394124 | X150: 3.138714237 | Y150: 3.028067707 | Z150: 2.787563093 | AA150: 2.558501696 | AB150: 2.445094589 | AC150: 2.257449255 | AD150: 2.147234541 | AE150: 1.936071918 | AF150: 1.782805092
A151: LRKPCGSA | B151: 082819 | C151: 1 | D151: 2400 | E151: 60 | F151: 1 | G151: 1 | H151: KW | I151: 1.726637424 | J151: 1.635519137 | K151: 1.608401467 | L151: 1.551443817 | M151: 1.429627029 | N151: 1.469260674 | O151: 1.656448297 | P151: 1.867333867 | Q151: 2.383524247 | R151: 2.795769649 | S151: 3.032245472 | T151: 3.229886371 | U151: 3.188648022 | V151: 3.260920322 | W151: 3.438253129 | X151: 3.46005245 | Y151: 3.310576332 | Z151: 2.977933818 | AA151: 2.926866302 | AB151: 2.699418417 | AC151: 2.393544701 | AD151: 2.098342987 | AE151: 1.853353403 | AF151: 1.612126694
A152: LRKPCGSA | B152: 082919 | C152: 1 | D152: 2400 | E152: 60 | F152: 1 | G152: 1 | H152: KW | I152: 1.512705202 | J152: 1.463178735 | K152: 1.373697881 | L152: 1.333652461 | M152: 1.306057351 | N152: 1.380935328 | O152: 1.536859303 | P152: 1.72704522 | Q152: 2.135456897 | R152: 2.582607615 | S152: 2.871150262 | T152: 3.054551897 | U152: 3.189222096 | V152: 3.259059301 | W152: 3.292841817 | X152: 3.373972976 | Y152: 3.249888939 | Z152: 2.905746607 | AA152: 2.659897959 | AB152: 2.369992389 | AC152: 2.346921031 | AD152: 2.080457553 | AE152: 1.822950345 | AF152: 1.670457559
A153: LRKPCGSA | B153: 083019 | C153: 1 | D153: 2400 | E153: 60 | F153: 1 | G153: 1 | H153: KW | I153: 1.667780684 | J153: 1.600858489 | K153: 1.463209207 | L153: 1.325028492 | M153: 1.353756662 | N153: 1.434634466 | O153: 1.498986454 | P153: 1.646825725 | Q153: 2.037920732 | R153: 2.49841126 | S153: 2.736563358 | T153: 3.000003131 | U153: 3.219819359 | V153: 3.384564542 | W153: 3.464058682 | X153: 3.526092816 | Y153: 3.356142377 | Z153: 3.143563774 | AA153: 2.906287005 | AB153: 2.675807593 | AC153: 2.623497179 | AD153: 2.433813897 | AE153: 2.200717165 | AF153: 1.948009091
A154: LRKPCGSA | B154: 083119 | C154: 1 | D154: 2400 | E154: 60 | F154: 1 | G154: 1 | H154: KW | I154: 1.847468752 | J154: 1.71961395 | K154: 1.512827848 | L154: 1.435392139 | M154: 1.436639036 | N154: 1.440462197 | O154: 1.455767032 | P154: 1.514032388 | Q154: 1.707978403 | R154: 2.021351602 | S154: 2.320003084 | T154: 2.58069068 | U154: 2.826632291 | V154: 2.901234963 | W154: 2.936036299 | X154: 2.9684243 | Y154: 2.979488768 | Z154: 3.001149535 | AA154: 2.878212061 | AB154: 2.777136813 | AC154: 2.684368692 | AD154: 2.500986676 | AE154: 2.255321354 | AF154: 2.085427614
A155: LRKPCGSA | B155: 090119 | C155: 1 | D155: 2400 | E155: 60 | F155: 1 | G155: 1 | H155: KW | I155: 1.907385273 | J155: 1.753546245 | K155: 1.68736574 | L155: 1.593495965 | M155: 1.590824435 | N155: 1.580367961 | O155: 1.541048807 | P155: 1.64558849 | Q155: 1.863983601 | R155: 2.18737039 | S155: 2.445588615 | T155: 2.61173643 | U155: 2.648100128 | V155: 2.675788906 | W155: 2.76125539 | X155: 2.792302971 | Y155: 2.937710143 | Z155: 2.941735916 | AA155: 2.923382132 | AB155: 2.641067323 | AC155: 2.409246978 | AD155: 2.216342508 | AE155: 2.085487833 | AF155: 1.945190324
A156: LRKPCGSA | B156: 090219 | C156: 1 | D156: 2400 | E156: 60 | F156: 1 | G156: 1 | H156: KW | I156: 1.7838642 | J156: 1.594509913 | K156: 1.50618035 | L156: 1.461163834 | M156: 1.37572661 | N156: 1.353500166 | O156: 1.58044356 | P156: 1.539383758 | Q156: 1.687976615 | R156: 1.904072121 | S156: 2.203419108 | T156: 2.434800051 | U156: 2.503411341 | V156: 2.584712644 | W156: 2.650640378 | X156: 2.729279222 | Y156: 2.767212286 | Z156: 2.700581764 | AA156: 2.559078793 | AB156: 2.339868741 | AC156: 2.407586105 | AD156: 2.318322128 | AE156: 2.057789956 | AF156: 1.872517431
A157: LRKPCGSA | B157: 090319 | C157: 1 | D157: 2400 | E157: 60 | F157: 1 | G157: 1 | H157: KW | I157: 1.743095902 | J157: 1.692875291 | K157: 1.647058509 | L157: 1.64018334 | M157: 1.50606016 | N157: 1.535103596 | O157: 1.816993257 | P157: 1.919509633 | Q157: 2.229741569 | R157: 2.566070459 | S157: 3.041037339 | T157: 3.429115611 | U157: 3.526256477 | V157: 3.512942339 | W157: 3.676272663 | X157: 3.699812171 | Y157: 3.474109171 | Z157: 3.389386918 | AA157: 3.132523276 | AB157: 2.88014123 | AC157: 2.679493713 | AD157: 2.359185331 | AE157: 2.135538137 | AF157: 1.959847718
A158: LRKPCGSA | B158: 090419 | C158: 1 | D158: 2400 | E158: 60 | F158: 1 | G158: 1 | H158: KW | I158: 1.825069483 | J158: 1.751551302 | K158: 1.637276836 | L158: 1.562613666 | M158: 1.452221986 | N158: 1.436786674 | O158: 1.569042928 | P158: 1.891866956 | Q158: 2.243337126 | R158: 2.762397332 | S158: 3.105199321 | T158: 3.401932423 | U158: 3.584031456 | V158: 3.708756878 | W158: 3.668307727 | X158: 3.642484625 | Y158: 3.680348635 | Z158: 3.564808885 | AA158: 3.342725884 | AB158: 3.20453969 | AC158: 2.847750853 | AD158: 2.471237714 | AE158: 2.27325339 | AF158: 2.064180005
A159: LRKPCGSA | B159: 090519 | C159: 1 | D159: 2400 | E159: 60 | F159: 1 | G159: 1 | H159: KW | I159: 1.925567808 | J159: 1.82313429 | K159: 1.674627851 | L159: 1.612725752 | M159: 1.472942397 | N159: 1.439676115 | O159: 1.517364367 | P159: 1.825334623 | Q159: 2.283464188 | R159: 2.500845944 | S159: 2.801299328 | T159: 2.961469417 | U159: 3.143411075 | V159: 3.264506111 | W159: 3.423192533 | X159: 3.297052661 | Y159: 3.228721243 | Z159: 3.010353493 | AA159: 2.865403307 | AB159: 2.660231939 | AC159: 2.520717978 | AD159: 2.166591253 | AE159: 1.980422341 | AF159: 1.836198506
A160: LRKPCGSA | B160: 090619 | C160: 1 | D160: 2400 | E160: 60 | F160: 1 | G160: 1 | H160: KW | I160: 1.711073991 | J160: 1.674941693 | K160: 1.582587578 | L160: 1.498341671 | M160: 1.382641385 | N160: 1.412216196 | O160: 1.526666025 | P160: 1.764095747 | Q160: 2.22922853 | R160: 2.646787628 | S160: 2.882450984 | T160: 3.178310724 | U160: 3.17316193 | V160: 3.301738996 | W160: 3.323457445 | X160: 3.324447834 | Y160: 3.13533287 | Z160: 2.906164627 | AA160: 2.627868251 | AB160: 2.474419324 | AC160: 2.311889669 | AD160: 2.225075445 | AE160: 2.071901053 | AF160: 1.856460637
A161: LRKPCGSA | B161: 090719 | C161: 1 | D161: 2400 | E161: 60 | F161: 1 | G161: 1 | H161: KW | I161: 1.773565725 | J161: 1.653258363 | K161: 1.703225773 | L161: 1.506323925 | M161: 1.491741009 | N161: 1.450412294 | O161: 1.523129613 | P161: 1.570565013 | Q161: 1.801497305 | R161: 2.092310869 | S161: 2.315423372 | T161: 2.279929127 | U161: 2.318643405 | V161: 2.479058252 | W161: 2.623966344 | X161: 2.642879138 | Y161: 2.697912775 | Z161: 2.54076185 | AA161: 2.54436478 | AB161: 2.338582587 | AC161: 2.299682375 | AD161: 2.159267647 | AE161: 1.97084763 | AF161: 1.820253242
A162: LRKPCGSA | B162: 090819 | C162: 1 | D162: 2400 | E162: 60 | F162: 1 | G162: 1 | H162: KW | I162: 1.733986266 | J162: 1.578576102 | K162: 1.513999621 | L162: 1.481346749 | M162: 1.44471899 | N162: 1.409177657 | O162: 1.515737699 | P162: 1.568291068 | Q162: 1.578698482 | R162: 1.90898613 | S162: 2.154997411 | T162: 2.274194016 | U162: 2.319776473 | V162: 2.274659644 | W162: 2.366609824 | X162: 2.627450434 | Y162: 2.685215134 | Z162: 2.631041385 | AA162: 2.560018402 | AB162: 2.39628833 | AC162: 2.259032338 | AD162: 2.169317892 | AE162: 1.878463789 | AF162: 1.721039846
A163: LRKPCGSA | B163: 090919 | C163: 1 | D163: 2400 | E163: 60 | F163: 1 | G163: 1 | H163: KW | I163: 1.597208601 | J163: 1.479698016 | K163: 1.40440658 | L163: 1.329910187 | M163: 1.281325745 | N163: 1.360639826 | O163: 1.611576811 | P163: 1.663352773 | Q163: 2.182878173 | R163: 2.456869203 | S163: 2.89176296 | T163: 3.204134631 | U163: 3.371974067 | V163: 3.448452185 | W163: 3.528870193 | X163: 3.489045933 | Y163: 3.26135288 | Z163: 2.992494805 | AA163: 2.85230798 | AB163: 2.647398113 | AC163: 2.461840365 | AD163: 2.231323658 | AE163: 2.015431675 | AF163: 1.789644332
A164: LRKPCGSA | B164: 091019 | C164: 1 | D164: 2400 | E164: 60 | F164: 1 | G164: 1 | H164: KW | I164: 1.660312459 | J164: 1.564994539 | K164: 1.513190919 | L164: 1.363370369 | M164: 1.427198203 | N164: 1.460632732 | O164: 1.523475241 | P164: 1.806263944 | Q164: 2.323297257 | R164: 2.658743335 | S164: 2.943803215 | T164: 3.286128939 | U164: 3.51275017 | V164: 3.828538124 | W164: 3.918619935 | X164: 3.921899648 | Y164: 3.841450887 | Z164: 3.617008694 | AA164: 3.385239791 | AB164: 3.209671827 | AC164: 2.965082255 | AD164: 2.698964287 | AE164: 2.354048492 | AF164: 2.110132185
A165: LRKPCGSA | B165: 091119 | C165: 1 | D165: 2400 | E165: 60 | F165: 1 | G165: 1 | H165: KW | I165: 1.926095261 | J165: 1.835448506 | K165: 1.798777047 | L165: 1.730364301 | M165: 1.603444329 | N165: 1.557794393 | O165: 1.689166559 | P165: 1.868669187 | Q165: 2.305395309 | R165: 2.794175143 | S165: 3.27716231 | T165: 3.576794756 | U165: 3.772085502 | V165: 3.935570219 | W165: 4.049354451 | X165: 4.104615225 | Y165: 3.966690473 | Z165: 3.579234969 | AA165: 3.303580805 | AB165: 3.234120437 | AC165: 2.865751765 | AD165: 2.53393177 | AE165: 2.284808389 | AF165: 2.119693562
A166: LRKPCGSA | B166: 091219 | C166: 1 | D166: 2400 | E166: 60 | F166: 1 | G166: 1 | H166: KW | I166: 2.002579728 | J166: 1.901231259 | K166: 1.778029903 | L166: 1.69955547 | M166: 1.5438028 | N166: 1.562603741 | O166: 1.691046082 | P166: 1.949026802 | Q166: 2.505600308 | R166: 3.055620664 | S166: 3.473634631 | T166: 3.811771068 | U166: 3.935544582 | V166: 4.039828708 | W166: 4.030162437 | X166: 4.000909382 | Y166: 3.920717776 | Z166: 3.602215515 | AA166: 3.535838585 | AB166: 3.334564897 | AC166: 3.150441429 | AD166: 2.825659978 | AE166: 2.32672461 | AF166: 2.127671555
A167: LRKPCGSA | B167: 091319 | C167: 1 | D167: 2400 | E167: 60 | F167: 1 | G167: 1 | H167: KW | I167: 1.984710842 | J167: 1.94267194 | K167: 1.884242106 | L167: 1.754518697 | M167: 1.655148703 | N167: 1.63252485 | O167: 1.744622805 | P167: 1.93574712 | Q167: 2.400706139 | R167: 2.89790932 | S167: 3.383667978 | T167: 3.728953668 | U167: 3.877810699 | V167: 3.97615115 | W167: 3.996606746 | X167: 3.972825321 | Y167: 3.79891516 | Z167: 3.496184158 | AA167: 3.217013765 | AB167: 3.084145434 | AC167: 2.898756352 | AD167: 2.718924578 | AE167: 2.407533665 | AF167: 2.18045864
A168: LRKPCGSA | B168: 091419 | C168: 1 | D168: 2400 | E168: 60 | F168: 1 | G168: 1 | H168: KW | I168: 2.094629846 | J168: 2.023595628 | K168: 1.987223178 | L168: 1.810852044 | M168: 1.722742044 | N168: 1.680858236 | O168: 1.740408594 | P168: 1.789470696 | Q168: 2.054587922 | R168: 2.296251642 | S168: 2.505607227 | T168: 2.716207179 | U168: 2.88839509 | V168: 2.991547959 | W168: 3.145136638 | X168: 3.089360429 | Y168: 3.065351232 | Z168: 2.827659936 | AA168: 2.663187501 | AB168: 2.548752758 | AC168: 2.475686922 | AD168: 2.322540985 | AE168: 2.116454677 | AF168: 1.899951981
A169: LRKPCGSA | B169: 091519 | C169: 1 | D169: 2400 | E169: 60 | F169: 1 | G169: 1 | H169: KW | I169: 1.713848637 | J169: 1.558225108 | K169: 1.439428122 | L169: 1.405669362 | M169: 1.373788792 | N169: 1.347823257 | O169: 1.430053483 | P169: 1.598479203 | Q169: 1.756258087 | R169: 1.84981419 | S169: 2.147467941 | T169: 2.265447679 | U169: 2.377519304 | V169: 2.516804897 | W169: 2.677868554 | X169: 2.735727554 | Y169: 2.670911296 | Z169: 2.707394428 | AA169: 2.668968346 | AB169: 2.357761761 | AC169: 2.26096666 | AD169: 2.066140971 | AE169: 1.843923888 | AF169: 1.669326067
A170: LRKPCGSA | B170: 091619 | C170: 1 | D170: 2400 | E170: 60 | F170: 1 | G170: 1 | H170: KW | I170: 1.581874575 | J170: 1.532586132 | K170: 1.386483534 | L170: 1.37045374 | M170: 1.366140837 | N170: 1.409167406 | O170: 1.554277256 | P170: 1.626442524 | Q170: 2.083626181 | R170: 2.446432198 | S170: 2.701805219 | T170: 3.077630735 | U170: 3.387046352 | V170: 3.4712962 | W170: 3.552899527 | X170: 3.600090342 | Y170: 3.533985127 | Z170: 3.232989173 | AA170: 2.978475105 | AB170: 2.715346403 | AC170: 2.646394871 | AD170: 2.445937935 | AE170: 2.231953907 | AF170: 2.035362939
A171: LRKPCGSA | B171: 091719 | C171: 1 | D171: 2400 | E171: 60 | F171: 1 | G171: 1 | H171: KW | I171: 1.868429034 | J171: 1.795386961 | K171: 1.732183304 | L171: 1.48720516 | M171: 1.437924001 | N171: 1.424685322 | O171: 1.687161771 | P171: 1.85834366 | Q171: 2.317746407 | R171: 2.670364935 | S171: 3.038701621 | T171: 3.369995314 | U171: 3.577893948 | V171: 3.668031964 | W171: 3.581269257 | X171: 3.558305547 | Y171: 3.468288733 | Z171: 3.145168879 | AA171: 2.979225071 | AB171: 2.814921266 | AC171: 2.659838389 | AD171: 2.399661014 | AE171: 2.073852584 | AF171: 1.874326669
A172: LRKPCGSA | B172: 091819 | C172: 1 | D172: 2400 | E172: 60 | F172: 1 | G172: 1 | H172: KW | I172: 1.783823703 | J172: 1.667342749 | K172: 1.599493379 | L172: 1.436508878 | M172: 1.426701805 | N172: 1.432926132 | O172: 1.570471301 | P172: 1.848044931 | Q172: 2.251031368 | R172: 2.689545918 | S172: 2.950003284 | T172: 3.14865141 | U172: 3.37550235 | V172: 3.590034999 | W172: 3.74956995 | X172: 3.731317673 | Y172: 3.61357663 | Z172: 3.282328627 | AA172: 3.414830471 | AB172: 3.232416923 | AC172: 2.84585379 | AD172: 2.314022894 | AE172: 2.04633883 | AF172: 1.913212184
A173: LRKPCGSA | B173: 091919 | C173: 1 | D173: 2400 | E173: 60 | F173: 1 | G173: 1 | H173: KW | I173: 1.806360902 | J173: 1.645990174 | K173: 1.537475346 | L173: 1.469017233 | M173: 1.38705255 | N173: 1.388627575 | O173: 1.667834006 | P173: 1.797989761 | Q173: 2.231247789 | R173: 2.56052382 | S173: 2.784406566 | T173: 2.99812838 | U173: 3.109630506 | V173: 3.14604031 | W173: 3.191182966 | X173: 3.090832163 | Y173: 2.94331077 | Z173: 2.741126978 | AA173: 2.49933696 | AB173: 2.266102972 | AC173: 2.195590558 | AD173: 2.052489848 | AE173: 1.900048779 | AF173: 1.644679986
A174: LRKPCGSA | B174: 092019 | C174: 1 | D174: 2400 | E174: 60 | F174: 1 | G174: 1 | H174: KW | I174: 1.53449133 | J174: 1.520781644 | K174: 1.383817211 | L174: 1.393559154 | M174: 1.419537193 | N174: 1.446007852 | O174: 1.529161375 | P174: 1.764921534 | Q174: 2.178579263 | R174: 2.525256791 | S174: 2.936821072 | T174: 3.168116902 | U174: 3.278148763 | V174: 3.311417811 | W174: 3.502110317 | X174: 3.535846385 | Y174: 3.374858467 | Z174: 2.982389019 | AA174: 2.741890912 | AB174: 2.467950574 | AC174: 2.310118458 | AD174: 2.244457392 | AE174: 2.144193159 | AF174: 1.965876403
A175: LRKPCGSA | B175: 092119 | C175: 1 | D175: 2400 | E175: 60 | F175: 1 | G175: 1 | H175: KW | I175: 1.826767638 | J175: 1.715576136 | K175: 1.528402489 | L175: 1.474427889 | M175: 1.42915145 | N175: 1.397189794 | O175: 1.51301912 | P175: 1.655293736 | Q175: 1.89014851 | R175: 2.157273027 | S175: 2.421984382 | T175: 2.665471571 | U175: 2.751794094 | V175: 2.840899366 | W175: 2.939373221 | X175: 2.786599421 | Y175: 2.692241088 | Z175: 2.668236957 | AA175: 2.539877334 | AB175: 2.580547557 | AC175: 2.493203566 | AD175: 2.286597487 | AE175: 2.030044721 | AF175: 1.852660994
A176: LRKPCGSA | B176: 092219 | C176: 1 | D176: 2400 | E176: 60 | F176: 1 | G176: 1 | H176: KW | I176: 1.74346188 | J176: 1.616829144 | K176: 1.543585329 | L176: 1.557259768 | M176: 1.539803707 | N176: 1.429261709 | O176: 1.423617008 | P176: 1.599578218 | Q176: 1.697472407 | R176: 1.900319383 | S176: 2.254989219 | T176: 2.510176278 | U176: 2.502084991 | V176: 2.667685535 | W176: 2.816176711 | X176: 2.789710594 | Y176: 2.913181635 | Z176: 2.988528493 | AA176: 2.776314722 | AB176: 2.521767771 | AC176: 2.293667778 | AD176: 2.146419947 | AE176: 1.895008849 | AF176: 1.771972687
A177: LRKPCGSA | B177: 092319 | C177: 1 | D177: 2400 | E177: 60 | F177: 1 | G177: 1 | H177: KW | I177: 1.660993526 | J177: 1.550440224 | K177: 1.50333881 | L177: 1.45002459 | M177: 1.425795688 | N177: 1.413429977 | O177: 1.584908095 | P177: 1.798957118 | Q177: 2.164917956 | R177: 2.427128005 | S177: 2.65519986 | T177: 2.769344952 | U177: 2.793790683 | V177: 2.893910962 | W177: 2.866320154 | X177: 2.862141403 | Y177: 2.770654751 | Z177: 2.304065305 | AA177: 2.146981688 | AB177: 2.029868766 | AC177: 2.064107927 | AD177: 1.962002081 | AE177: 1.93212094 | AF177: 1.762369284
A178: LRKPCGSA | B178: 092419 | C178: 1 | D178: 2400 | E178: 60 | F178: 1 | G178: 1 | H178: KW | I178: 1.699898088 | J178: 1.657164366 | K178: 1.596066816 | L178: 1.421009679 | M178: 1.382358234 | N178: 1.471470076 | O178: 1.587249411 | P178: 1.749733618 | Q178: 2.128545975 | R178: 2.469296877 | S178: 2.566414195 | T178: 2.768351591 | U178: 2.790592318 | V178: 2.901637828 | W178: 3.0479873 | X178: 3.085045671 | Y178: 2.999144481 | Z178: 2.813678262 | AA178: 2.643105858 | AB178: 2.395473773 | AC178: 2.358646513 | AD178: 2.078440712 | AE178: 1.779045285 | AF178: 1.644122389
A179: LRKPCGSA | B179: 092519 | C179: 1 | D179: 2400 | E179: 60 | F179: 1 | G179: 1 | H179: KW | I179: 1.602180832 | J179: 1.555449478 | K179: 1.412838134 | L179: 1.2943841 | M179: 1.293385678 | N179: 1.273294411 | O179: 1.421732951 | P179: 1.660337901 | Q179: 1.917935997 | R179: 2.181767716 | S179: 2.539238289 | T179: 2.756909578 | U179: 2.910762205 | V179: 3.045153872 | W179: 3.098324398 | X179: 3.179102789 | Y179: 3.283658947 | Z179: 2.985962264 | AA179: 2.814952288 | AB179: 2.651432421 | AC179: 2.373947561 | AD179: 2.090948538 | AE179: 1.821501045 | AF179: 1.666682855
A180: LRKPCGSA | B180: 092619 | C180: 1 | D180: 2400 | E180: 60 | F180: 1 | G180: 1 | H180: KW | I180: 1.56918571 | J180: 1.450657201 | K180: 1.436194661 | L180: 1.502630891 | M180: 1.50222901 | N180: 1.572217867 | O180: 1.747291875 | P180: 1.910221735 | Q180: 2.17291986 | R180: 2.564605855 | S180: 2.891560694 | T180: 3.0229796 | U180: 3.046961762 | V180: 3.036001708 | W180: 3.117922831 | X180: 3.253621833 | Y180: 3.097930354 | Z180: 2.909231591 | AA180: 2.82207293 | AB180: 2.622234094 | AC180: 2.526970269 | AD180: 2.274459472 | AE180: 1.906320621 | AF180: 1.770732968
A181: LRKPCGSA | B181: 092719 | C181: 1 | D181: 2400 | E181: 60 | F181: 1 | G181: 1 | H181: KW | I181: 1.615881927 | J181: 1.599461202 | K181: 1.520473123 | L181: 1.445392488 | M181: 1.48481169 | N181: 1.529723457 | O181: 1.59084559 | P181: 1.807777443 | Q181: 2.130093038 | R181: 2.421948843 | S181: 2.629963658 | T181: 3.009582276 | U181: 3.188733308 | V181: 3.350372736 | W181: 3.529501719 | X181: 3.497781455 | Y181: 3.463164504 | Z181: 3.068150766 | AA181: 2.794091972 | AB181: 2.769956767 | AC181: 2.635416065 | AD181: 2.448867661 | AE181: 2.197869123 | AF181: 1.972641845
A182: LRKPCGSA | B182: 092819 | C182: 1 | D182: 2400 | E182: 60 | F182: 1 | G182: 1 | H182: KW | I182: 1.884146267 | J182: 1.859261396 | K182: 1.792924271 | L182: 1.624349062 | M182: 1.598108844 | N182: 1.578660164 | O182: 1.632493608 | P182: 1.702442136 | Q182: 1.918304387 | R182: 2.150344102 | S182: 2.361737804 | T182: 2.526728117 | U182: 2.741329143 | V182: 2.843824872 | W182: 2.996274908 | X182: 3.107781931 | Y182: 3.075703838 | Z182: 2.959862355 | AA182: 2.9931121 | AB182: 2.810723062 | AC182: 2.610004697 | AD182: 2.450529378 | AE182: 2.208021397 | AF182: 2.027113438
A183: LRKPCGSA | B183: 092919 | C183: 1 | D183: 2400 | E183: 60 | F183: 1 | G183: 1 | H183: KW | I183: 1.980918856 | J183: 1.8553569 | K183: 1.750933921 | L183: 1.658467877 | M183: 1.632798412 | N183: 1.60134029 | O183: 1.640093503 | P183: 1.646995128 | Q183: 1.727442478 | R183: 2.044689057 | S183: 2.408401757 | T183: 2.556047116 | U183: 2.711361707 | V183: 2.785451327 | W183: 2.881857711 | X183: 2.986937912 | Y183: 3.055415686 | Z183: 2.96651919 | AA183: 2.915464334 | AB183: 2.797818829 | AC183: 2.573531388 | AD183: 2.329578676 | AE183: 2.107033166 | AF183: 1.96651328
A184: LRKPCGSA | B184: 093019 | C184: 1 | D184: 2400 | E184: 60 | F184: 1 | G184: 1 | H184: KW | I184: 1.820389801 | J184: 1.775098137 | K184: 1.781308574 | L184: 1.600991184 | M184: 1.56502376 | N184: 1.567832967 | O184: 1.687332549 | P184: 1.954421173 | Q184: 2.388970297 | R184: 2.79704179 | S184: 3.130792986 | T184: 3.460964642 | U184: 3.638393742 | V184: 3.741778675 | W184: 3.750332804 | X184: 3.708636048 | Y184: 3.533490725 | Z184: 3.260709023 | AA184: 2.980287474 | AB184: 2.791580596 | AC184: 2.683653379 | AD184: 2.414536164 | AE184: 2.21714786 | AF184: 2.035518233
A185: LRKPCGSA | B185: 100119 | C185: 1 | D185: 2400 | E185: 60 | F185: 1 | G185: 1 | H185: KW | I185: 1.977310336 | J185: 1.864365465 | K185: 1.733394913 | L185: 1.687659979 | M185: 1.625747287 | N185: 1.595300111 | O185: 1.693733057 | P185: 1.93876258 | Q185: 2.520648381 | R185: 3.029494293 | S185: 3.363779752 | T185: 3.698478612 | U185: 3.742561565 | V185: 3.837600184 | W185: 3.922660666 | X185: 3.850668496 | Y185: 3.789556624 | Z185: 3.398779249 | AA185: 3.072786957 | AB185: 2.811919553 | AC185: 2.773144023 | AD185: 2.573112409 | AE185: 2.271201353 | AF185: 2.072832284
A186: LRKPCGSA | B186: 100219 | C186: 1 | D186: 2400 | E186: 60 | F186: 1 | G186: 1 | H186: KW | I186: 1.912426831 | J186: 1.801625181 | K186: 1.748670991 | L186: 1.57812671 | M186: 1.569882771 | N186: 1.603574782 | O186: 1.815964837 | P186: 2.015777052 | Q186: 2.413709304 | R186: 2.747063202 | S186: 3.064934772 | T186: 3.292355044 | U186: 3.589887842 | V186: 3.861038384 | W186: 4.011657303 | X186: 3.974919157 | Y186: 3.725253474 | Z186: 3.569360824 | AA186: 3.44863463 | AB186: 3.179741727 | AC186: 2.72053146 | AD186: 2.531235305 | AE186: 2.236936597 | AF186: 2.000553852
A187: LRKPCGSA | B187: 100319 | C187: 1 | D187: 2400 | E187: 60 | F187: 1 | G187: 1 | H187: KW | I187: 1.798226599 | J187: 1.687199099 | K187: 1.640885128 | L187: 1.627753769 | M187: 1.622089462 | N187: 1.631326626 | O187: 1.881444953 | P187: 1.961635008 | Q187: 2.237450067 | R187: 2.537702926 | S187: 2.847456626 | T187: 3.170619496 | U187: 3.430702846 | V187: 3.744324618 | W187: 3.806671633 | X187: 3.903239786 | Y187: 3.859485728 | Z187: 3.533991255 | AA187: 3.218658896 | AB187: 3.15728739 | AC187: 2.865934253 | AD187: 2.541565595 | AE187: 2.28355209 | AF187: 2.09160765
A188: LRKPCGSA | B188: 100419 | C188: 1 | D188: 2400 | E188: 60 | F188: 1 | G188: 1 | H188: KW | I188: 1.980117403 | J188: 1.913404504 | K188: 1.853967185 | L188: 1.780788772 | M188: 1.68065239 | N188: 1.678921081 | O188: 1.786737405 | P188: 1.970618313 | Q188: 2.290906573 | R188: 2.51239893 | S188: 2.722098431 | T188: 2.840134141 | U188: 2.866730574 | V188: 2.850301656 | W188: 2.940620148 | X188: 3.085359772 | Y188: 2.995459955 | Z188: 2.551900293 | AA188: 2.379071426 | AB188: 2.27808302 | AC188: 2.151766219 | AD188: 2.033054758 | AE188: 1.82241055 | AF188: 1.693660123
A189: LRKPCGSA | B189: 100519 | C189: 1 | D189: 2400 | E189: 60 | F189: 1 | G189: 1 | H189: KW | I189: 1.639712419 | J189: 1.544421096 | K189: 1.434356099 | L189: 1.435097222 | M189: 1.40841931 | N189: 1.36370494 | O189: 1.416892501 | P189: 1.489262298 | Q189: 1.482516157 | R189: 1.690539106 | S189: 1.938929849 | T189: 2.179077087 | U189: 2.266467587 | V189: 2.42797533 | W189: 2.511868781 | X189: 2.5982363 | Y189: 2.612156212 | Z189: 2.470420983 | AA189: 2.433534668 | AB189: 2.475236176 | AC189: 2.356380161 | AD189: 2.18425351 | AE189: 1.998878745 | AF189: 1.817783657
A190: LRKPCGSA | B190: 100619 | C190: 1 | D190: 2400 | E190: 60 | F190: 1 | G190: 1 | H190: KW | I190: 1.632929748 | J190: 1.656739885 | K190: 1.532175821 | L190: 1.440043469 | M190: 1.416628038 | N190: 1.348987398 | O190: 1.433735316 | P190: 1.635475321 | Q190: 1.750222717 | R190: 1.787320707 | S190: 1.814263482 | T190: 1.886516493 | U190: 2.000264833 | V190: 2.15837923 | W190: 2.159225074 | X190: 2.150186814 | Y190: 2.223414642 | Z190: 2.214368923 | AA190: 2.183979286 | AB190: 2.097826546 | AC190: 1.948655012 | AD190: 1.885323354 | AE190: 1.735759831 | AF190: 1.546438528
A191: LRKPCGSA | B191: 100719 | C191: 1 | D191: 2400 | E191: 60 | F191: 1 | G191: 1 | H191: KW | I191: 1.481375238 | J191: 1.545850054 | K191: 1.452816599 | L191: 1.45054915 | M191: 1.444279091 | N191: 1.437841845 | O191: 1.563181195 | P191: 1.832374237 | Q191: 2.306276222 | R191: 2.509686226 | S191: 2.479507018 | T191: 2.61183164 | U191: 2.569793404 | V191: 2.489607203 | W191: 2.398283528 | X191: 2.279199315 | Y191: 2.189642341 | Z191: 1.969736669 | AA191: 1.874587156 | AB191: 1.87022791 | AC191: 1.856647783 | AD191: 1.745138883 | AE191: 1.595118079 | AF191: 1.529000759
A192: LRKPCGSA | B192: 100819 | C192: 1 | D192: 2400 | E192: 60 | F192: 1 | G192: 1 | H192: KW | I192: 1.500563114 | J192: 1.439593811 | K192: 1.38002877 | L192: 1.321721054 | M192: 1.264071274 | N192: 1.292370704 | O192: 1.439587977 | P192: 1.691275283 | Q192: 2.061990278 | R192: 2.191683788 | S192: 2.270631563 | T192: 2.299281019 | U192: 2.260076569 | V192: 2.234964567 | W192: 2.284073374 | X192: 2.338826818 | Y192: 2.220671599 | Z192: 2.072055087 | AA192: 1.96137702 | AB192: 1.971269736 | AC192: 1.827357802 | AD192: 1.759858337 | AE192: 1.600294214 | AF192: 1.507004802
A193: LRKPCGSA | B193: 100919 | C193: 1 | D193: 2400 | E193: 60 | F193: 1 | G193: 1 | H193: KW | I193: 1.463443764 | J193: 1.429333462 | K193: 1.287384322 | L193: 1.306354432 | M193: 1.297471545 | N193: 1.320120052 | O193: 1.507583442 | P193: 1.767623075 | Q193: 2.059599604 | R193: 2.222527049 | S193: 2.350891728 | T193: 2.412545811 | U193: 2.442879154 | V193: 2.570079385 | W193: 2.695552384 | X193: 2.744334593 | Y193: 2.610638839 | Z193: 2.367466615 | AA193: 2.3329407 | AB193: 2.380011592 | AC193: 1.997084367 | AD193: 1.807366284 | AE193: 1.562559162 | AF193: 1.561706802
A194: LRKPCGSA | B194: 101019 | C194: 1 | D194: 2400 | E194: 60 | F194: 1 | G194: 1 | H194: KW | I194: 1.479265592 | J194: 1.447697863 | K194: 1.439513705 | L194: 1.439755363 | M194: 1.295849286 | N194: 1.335247101 | O194: 1.426327508 | P194: 1.714391148 | Q194: 1.966671644 | R194: 2.308616544 | S194: 2.392700562 | T194: 2.546964764 | U194: 2.631777438 | V194: 2.745301383 | W194: 2.83545676 | X194: 2.836997238 | Y194: 2.702979517 | Z194: 2.478578458 | AA194: 2.294515955 | AB194: 2.20818443 | AC194: 1.891346442 | AD194: 1.815029434 | AE194: 1.597674355 | AF194: 1.470071495
A195: LRKPCGSA | B195: 101119 | C195: 1 | D195: 2400 | E195: 60 | F195: 1 | G195: 1 | H195: KW | I195: 1.419796524 | J195: 1.353117558 | K195: 1.229564818 | L195: 1.225420392 | M195: 1.228899321 | N195: 1.254750007 | O195: 1.335380377 | P195: 1.589414733 | Q195: 1.926141473 | R195: 2.171298728 | S195: 2.388779344 | T195: 2.490826268 | U195: 2.678055049 | V195: 2.837971555 | W195: 2.96042532 | X195: 2.86905788 | Y195: 2.642794851 | Z195: 2.509907134 | AA195: 2.386791484 | AB195: 2.302514852 | AC195: 2.225232085 | AD195: 1.988065555 | AE195: 1.801855115 | AF195: 1.69955866
A196: LRKPCGSA | B196: 101219 | C196: 1 | D196: 2400 | E196: 60 | F196: 1 | G196: 1 | H196: KW | I196: 1.655622954 | J196: 1.610900244 | K196: 1.5566227 | L196: 1.505791042 | M196: 1.49626315 | N196: 1.403255139 | O196: 1.357843931 | P196: 1.445396469 | Q196: 1.51879882 | R196: 1.655285176 | S196: 1.789995791 | T196: 1.704438191 | U196: 1.672162447 | V196: 1.620490377 | W196: 1.484934649 | X196: 1.57565823 | Y196: 1.6744297 | Z196: 1.595464159 | AA196: 1.722004664 | AB196: 1.734309628 | AC196: 1.641868062 | AD196: 1.568414644 | AE196: 1.55085529 | AF196: 1.517630938
A197: LRKPCGSA | B197: 101319 | C197: 1 | D197: 2400 | E197: 60 | F197: 1 | G197: 1 | H197: KW | I197: 1.398300076 | J197: 1.356781514 | K197: 1.341832698 | L197: 1.332947561 | M197: 1.310971638 | N197: 1.345361492 | O197: 1.410464516 | P197: 1.49602344 | Q197: 1.566751571 | R197: 1.630338716 | S197: 1.659600209 | T197: 1.575433242 | U197: 1.573772922 | V197: 1.6055645 | W197: 1.624580142 | X197: 1.678183425 | Y197: 1.67887998 | Z197: 1.668680459 | AA197: 1.706740589 | AB197: 1.775444896 | AC197: 1.659392725 | AD197: 1.643388215 | AE197: 1.494385368 | AF197: 1.465004142
A198: LRKPCGSA | B198: 101419 | C198: 1 | D198: 2400 | E198: 60 | F198: 1 | G198: 1 | H198: KW | I198: 1.400304023 | J198: 1.325550574 | K198: 1.299469284 | L198: 1.285712853 | M198: 1.296870619 | N198: 1.353763441 | O198: 1.629203732 | P198: 1.949795799 | Q198: 2.110777862 | R198: 2.207996319 | S198: 2.244927577 | T198: 2.250093983 | U198: 2.206915806 | V198: 2.200612051 | W198: 2.155686772 | X198: 2.189883454 | Y198: 2.170371763 | Z198: 2.079391564 | AA198: 1.942021046 | AB198: 1.93685136 | AC198: 1.719639112 | AD198: 1.67985905 | AE198: 1.591995905 | AF198: 1.446313158
A199: LRKPCGSA | B199: 101519 | C199: 1 | D199: 2400 | E199: 60 | F199: 1 | G199: 1 | H199: KW | I199: 1.484308423 | J199: 1.424277652 | K199: 1.396677847 | L199: 1.386085653 | M199: 1.344347654 | N199: 1.331864483 | O199: 1.470164981 | P199: 1.813111812 | Q199: 2.246172291 | R199: 2.540050527 | S199: 2.489475501 | T199: 2.466461108 | U199: 2.471180184 | V199: 2.582637932 | W199: 2.564134805 | X199: 2.576831097 | Y199: 2.485713213 | Z199: 2.097021449 | AA199: 1.964032439 | AB199: 1.885512383 | AC199: 1.895943609 | AD199: 1.818724724 | AE199: 1.713313251 | AF199: 1.607134844
A200: LRKPCGSA | B200: 101619 | C200: 1 | D200: 2400 | E200: 60 | F200: 1 | G200: 1 | H200: KW | I200: 1.535695952 | J200: 1.480803372 | K200: 1.27817932 | L200: 1.257213771 | M200: 1.269431247 | N200: 1.302945664 | O200: 1.37913883 | P200: 1.757088735 | Q200: 2.118750725 | R200: 2.294312997 | S200: 2.317936801 | T200: 2.413876701 | U200: 2.499659551 | V200: 2.43961394 | W200: 2.41168104 | X200: 2.266574916 | Y200: 2.251482045 | Z200: 2.057034819 | AA200: 2.017161473 | AB200: 2.030052572 | AC200: 1.909196075 | AD200: 1.740923933 | AE200: 1.584414939 | AF200: 1.474886768
... 167 more rows

Sheet Expanded kW
A1: Month | B1: Holiday? | C1: On or Off Peak | D1: Date/Time | E1: Class | F1: Demand | G1: Monthly Weight | H1: Expanded | J1: Load shape in local time.
A2: =MONTH(D2) -> 4 | B2: =IF(ISNA(VLOOKUP(DATE(YEAR(D2),MONTH(D2),DAY(D2)),Holidays,1,FALSE)),FALSE,TRUE) -> FALSE | C2: =IF(OR(HOUR(D2)<PkStart,HOUR(D2)>OPkStart-1,WEEKDAY(D2,2)>5,B2)=TRUE,"OFF","ON") -> OFF | D2: =TYBegin -> 2019-04-01 | E2: ='LR 8760 Loads'!A2 -> LRKPCGSA | F2: 1.892002821 | G2: =IF(SUMIF($A$2:$A$8785,A2,$F$2:$F$8785)=0,0,F2/SUMIF($A$2:$A$8785,A2,$F$2:$F$8785)) -> 0.001404837085 | H2: =G2*SUMIF('Manual Inputs'!$B$11:$B$22,'Expanded kW'!A2,'Manual Inputs'!$C$11:$C$22) -> 852.8451952
A3: 4 | B3: FALSE | C3: OFF | D3: =+D2+1/24 -> 2019-04-01T01:00:00 | E3: =+E2 -> LRKPCGSA | F3: 1.929611444 | G3: 0.001432761984 | H3: =G3*SUMIF('Manual Inputs'!$B$11:$B$22,'Expanded kW'!A3,'Manual Inputs'!$C$11:$C$22) -> 869.7977777
A4: 4 | B4: FALSE | C4: OFF | D4: =+D3+1/24 -> 2019-04-01T02:00:00 | E4: =+E3 -> LRKPCGSA | F4: 1.934993505 | G4: 0.001436758236 | H4: =G4*SUMIF('Manual Inputs'!$B$11:$B$22,'Expanded kW'!A4,'Manual Inputs'!$C$11:$C$22) -> 872.2238126
A5: 4 | B5: FALSE | C5: OFF | D5: 2019-04-01T03:00:00 | E5: LRKPCGSA | F5: 1.946649313 | G5: 0.001445412827 | H5: =G5*SUMIF('Manual Inputs'!$B$11:$B$22,'Expanded kW'!A5,'Manual Inputs'!$C$11:$C$22) -> 877.4778213
A6: 4 | B6: FALSE | C6: OFF | D6: 2019-04-01T04:00:00 | E6: LRKPCGSA | F6: 2.062171936 | G6: 0.0015311899 | H6: =G6*SUMIF('Manual Inputs'!$B$11:$B$22,'Expanded kW'!A6,'Manual Inputs'!$C$11:$C$22) -> 929.5511655
A7: 4 | B7: FALSE | C7: OFF | D7: 2019-04-01T05:00:00 | E7: LRKPCGSA | F7: 2.152792215 | G7: 0.001598476654 | H7: =G7*SUMIF('Manual Inputs'!$B$11:$B$22,'Expanded kW'!A7,'Manual Inputs'!$C$11:$C$22) -> 970.3994501
A8: 4 | B8: FALSE | C8: OFF | D8: 2019-04-01T06:00:00 | E8: LRKPCGSA | F8: 2.426206112 | G8: 0.001801490084 | H8: =G8*SUMIF('Manual Inputs'!$B$11:$B$22,'Expanded kW'!A8,'Manual Inputs'!$C$11:$C$22) -> 1093.644366
A9: 4 | B9: FALSE | C9: ON | D9: 2019-04-01T07:00:00 | E9: LRKPCGSA | F9: 2.937500238 | G9: 0.002181132726 | H9: =G9*SUMIF('Manual Inputs'!$B$11:$B$22,'Expanded kW'!A9,'Manual Inputs'!$C$11:$C$22) -> 1324.116929
A10: 4 | B10: FALSE | C10: ON | D10: 2019-04-01T08:00:00 | E10: LRKPCGSA | F10: 3.423554659 | G10: 0.002542034553 | H10: =G10*SUMIF('Manual Inputs'!$B$11:$B$22,'Expanded kW'!A10,'Manual Inputs'!$C$11:$C$22) -> 1543.212362
A11: 4 | B11: FALSE | C11: ON | D11: 2019-04-01T09:00:00 | E11: LRKPCGSA | F11: 3.369119644 | G11: 0.002501615836 | H11: =G11*SUMIF('Manual Inputs'!$B$11:$B$22,'Expanded kW'!A11,'Manual Inputs'!$C$11:$C$22) -> 1518.675062
A12: 4 | B12: FALSE | C12: ON | D12: 2019-04-01T10:00:00 | E12: LRKPCGSA | F12: 3.068643808 | G12: 0.002278508559 | H12: =G12*SUMIF('Manual Inputs'!$B$11:$B$22,'Expanded kW'!A12,'Manual Inputs'!$C$11:$C$22) -> 1383.23162
A13: 4 | B13: FALSE | C13: ON | D13: 2019-04-01T11:00:00 | E13: LRKPCGSA | F13: 2.752368212 | G13: 0.002043669751 | H13: =G13*SUMIF('Manual Inputs'!$B$11:$B$22,'Expanded kW'!A13,'Manual Inputs'!$C$11:$C$22) -> 1240.666229
A14: 4 | B14: FALSE | C14: ON | D14: 2019-04-01T12:00:00 | E14: LRKPCGSA | F14: 2.722106218 | G14: 0.002021199821 | H14: =G14*SUMIF('Manual Inputs'!$B$11:$B$22,'Expanded kW'!A14,'Manual Inputs'!$C$11:$C$22) -> 1227.025237
A15: 4 | B15: FALSE | C15: ON | D15: 2019-04-01T13:00:00 | E15: LRKPCGSA | F15: 2.670772552 | G15: 0.001983083896 | H15: =G15*SUMIF('Manual Inputs'!$B$11:$B$22,'Expanded kW'!A15,'Manual Inputs'!$C$11:$C$22) -> 1203.885911
A16: 4 | B16: FALSE | C16: ON | D16: 2019-04-01T14:00:00 | E16: LRKPCGSA | F16: 2.608085155 | G16: 0.001936537676 | H16: =G16*SUMIF('Manual Inputs'!$B$11:$B$22,'Expanded kW'!A16,'Manual Inputs'!$C$11:$C$22) -> 1175.628741
A17: 4 | B17: FALSE | C17: ON | D17: 2019-04-01T15:00:00 | E17: LRKPCGSA | F17: 2.458132505 | G17: 0.001825195853 | H17: =G17*SUMIF('Manual Inputs'!$B$11:$B$22,'Expanded kW'!A17,'Manual Inputs'!$C$11:$C$22) -> 1108.035608
A18: 4 | B18: FALSE | C18: ON | D18: 2019-04-01T16:00:00 | E18: LRKPCGSA | F18: 2.182624817 | G18: 0.001620627755 | H18: =G18*SUMIF('Manual Inputs'!$B$11:$B$22,'Expanded kW'!A18,'Manual Inputs'!$C$11:$C$22) -> 983.8468883
A19: 4 | B19: FALSE | C19: ON | D19: 2019-04-01T17:00:00 | E19: LRKPCGSA | F19: 1.931540251 | G19: 0.001434194148 | H19: =G19*SUMIF('Manual Inputs'!$B$11:$B$22,'Expanded kW'!A19,'Manual Inputs'!$C$11:$C$22) -> 870.6672125
A20: 4 | B20: FALSE | C20: ON | D20: 2019-04-01T18:00:00 | E20: LRKPCGSA | F20: 1.869063139 | G20: 0.001387804068 | H20: =G20*SUMIF('Manual Inputs'!$B$11:$B$22,'Expanded kW'!A20,'Manual Inputs'!$C$11:$C$22) -> 842.5048313
A21: 4 | B21: FALSE | C21: ON | D21: 2019-04-01T19:00:00 | E21: LRKPCGSA | F21: 1.765930295 | G21: 0.001311226569 | H21: =G21*SUMIF('Manual Inputs'!$B$11:$B$22,'Expanded kW'!A21,'Manual Inputs'!$C$11:$C$22) -> 796.0163433
A22: 4 | B22: FALSE | C22: ON | D22: 2019-04-01T20:00:00 | E22: LRKPCGSA | F22: 1.92635107 | G22: 0.001430341113 | H22: =G22*SUMIF('Manual Inputs'!$B$11:$B$22,'Expanded kW'!A22,'Manual Inputs'!$C$11:$C$22) -> 868.3281211
A23: 4 | B23: FALSE | C23: OFF | D23: 2019-04-01T21:00:00 | E23: LRKPCGSA | F23: 1.980244637 | G23: 0.001470357798 | H23: =G23*SUMIF('Manual Inputs'!$B$11:$B$22,'Expanded kW'!A23,'Manual Inputs'!$C$11:$C$22) -> 892.621356
A24: 4 | B24: FALSE | C24: OFF | D24: 2019-04-01T22:00:00 | E24: LRKPCGSA | F24: 1.930330157 | G24: 0.001433295638 | H24: =G24*SUMIF('Manual Inputs'!$B$11:$B$22,'Expanded kW'!A24,'Manual Inputs'!$C$11:$C$22) -> 870.1217469
A25: 4 | B25: FALSE | C25: OFF | D25: 2019-04-01T23:00:00 | E25: LRKPCGSA | F25: 2.013311148 | G25: 0.001494910119 | H25: =G25*SUMIF('Manual Inputs'!$B$11:$B$22,'Expanded kW'!A25,'Manual Inputs'!$C$11:$C$22) -> 907.5265215
A26: 4 | B26: FALSE | C26: OFF | D26: 2019-04-02 | E26: LRKPCGSA | F26: 2.049699306 | G26: 0.001521928808 | H26: =G26*SUMIF('Manual Inputs'!$B$11:$B$22,'Expanded kW'!A26,'Manual Inputs'!$C$11:$C$22) -> 923.9289634
A27: 4 | B27: FALSE | C27: OFF | D27: 2019-04-02T01:00:00 | E27: LRKPCGSA | F27: 2.103171587 | G27: 0.001561632683 | H27: =G27*SUMIF('Manual Inputs'!$B$11:$B$22,'Expanded kW'!A27,'Manual Inputs'!$C$11:$C$22) -> 948.0322982
A28: 4 | B28: FALSE | C28: OFF | D28: 2019-04-02T02:00:00 | E28: LRKPCGSA | F28: 2.120584965 | G28: 0.001574562345 | H28: =G28*SUMIF('Manual Inputs'!$B$11:$B$22,'Expanded kW'!A28,'Manual Inputs'!$C$11:$C$22) -> 955.8816077
A29: 4 | B29: FALSE | C29: OFF | D29: 2019-04-02T03:00:00 | E29: LRKPCGSA | F29: 2.089136362 | G29: 0.001551211343 | H29: =G29*SUMIF('Manual Inputs'!$B$11:$B$22,'Expanded kW'!A29,'Manual Inputs'!$C$11:$C$22) -> 941.7057357
A30: 4 | B30: FALSE | C30: OFF | D30: 2019-04-02T04:00:00 | E30: LRKPCGSA | F30: 2.090250015 | G30: 0.001552038245 | H30: =G30*SUMIF('Manual Inputs'!$B$11:$B$22,'Expanded kW'!A30,'Manual Inputs'!$C$11:$C$22) -> 942.2077296
A31: 4 | B31: FALSE | C31: OFF | D31: 2019-04-02T05:00:00 | E31: LRKPCGSA | F31: 2.174265146 | G31: 0.001614420589 | H31: =G31*SUMIF('Manual Inputs'!$B$11:$B$22,'Expanded kW'!A31,'Manual Inputs'!$C$11:$C$22) -> 980.0786566
A32: 4 | B32: FALSE | C32: OFF | D32: 2019-04-02T06:00:00 | E32: LRKPCGSA | F32: 2.425728083 | G32: 0.001801135141 | H32: =G32*SUMIF('Manual Inputs'!$B$11:$B$22,'Expanded kW'!A32,'Manual Inputs'!$C$11:$C$22) -> 1093.428888
A33: 4 | B33: FALSE | C33: ON | D33: 2019-04-02T07:00:00 | E33: LRKPCGSA | F33: 2.650906324 | G33: 0.00196833296 | H33: =G33*SUMIF('Manual Inputs'!$B$11:$B$22,'Expanded kW'!A33,'Manual Inputs'!$C$11:$C$22) -> 1194.930947
A34: 4 | B34: FALSE | C34: ON | D34: 2019-04-02T08:00:00 | E34: LRKPCGSA | F34: 2.976471901 | G34: 0.0022100697 | H34: =G34*SUMIF('Manual Inputs'!$B$11:$B$22,'Expanded kW'!A34,'Manual Inputs'!$C$11:$C$22) -> 1341.683919
A35: 4 | B35: FALSE | C35: ON | D35: 2019-04-02T09:00:00 | E35: LRKPCGSA | F35: 3.071041107 | G35: 0.002280288585 | H35: =G35*SUMIF('Manual Inputs'!$B$11:$B$22,'Expanded kW'!A35,'Manual Inputs'!$C$11:$C$22) -> 1384.312234
A36: 4 | B36: FALSE | C36: ON | D36: 2019-04-02T10:00:00 | E36: LRKPCGSA | F36: 2.796253443 | G36: 0.002076255115 | H36: =G36*SUMIF('Manual Inputs'!$B$11:$B$22,'Expanded kW'!A36,'Manual Inputs'!$C$11:$C$22) -> 1260.448075
A37: 4 | B37: FALSE | C37: ON | D37: 2019-04-02T11:00:00 | E37: LRKPCGSA | F37: 2.680069447 | G37: 0.001989986963 | H37: =G37*SUMIF('Manual Inputs'!$B$11:$B$22,'Expanded kW'!A37,'Manual Inputs'!$C$11:$C$22) -> 1208.076608
A38: 4 | B38: FALSE | C38: ON | D38: 2019-04-02T12:00:00 | E38: LRKPCGSA | F38: 2.653461933 | G38: 0.001970230533 | H38: =G38*SUMIF('Manual Inputs'!$B$11:$B$22,'Expanded kW'!A38,'Manual Inputs'!$C$11:$C$22) -> 1196.082921
A39: 4 | B39: FALSE | C39: ON | D39: 2019-04-02T13:00:00 | E39: LRKPCGSA | F39: 2.617248774 | G39: 0.001943341784 | H39: =G39*SUMIF('Manual Inputs'!$B$11:$B$22,'Expanded kW'!A39,'Manual Inputs'!$C$11:$C$22) -> 1179.759362
A40: 4 | B40: FALSE | C40: ON | D40: 2019-04-02T14:00:00 | E40: LRKPCGSA | F40: 2.601907492 | G40: 0.001931950679 | H40: =G40*SUMIF('Manual Inputs'!$B$11:$B$22,'Expanded kW'!A40,'Manual Inputs'!$C$11:$C$22) -> 1172.844077
A41: 4 | B41: FALSE | C41: ON | D41: 2019-04-02T15:00:00 | E41: LRKPCGSA | F41: 2.394173861 | G41: 0.001777705714 | H41: =G41*SUMIF('Manual Inputs'!$B$11:$B$22,'Expanded kW'!A41,'Manual Inputs'!$C$11:$C$22) -> 1079.205406
A42: 4 | B42: FALSE | C42: ON | D42: 2019-04-02T16:00:00 | E42: LRKPCGSA | F42: 2.259092808 | G42: 0.001677406248 | H42: =G42*SUMIF('Manual Inputs'!$B$11:$B$22,'Expanded kW'!A42,'Manual Inputs'!$C$11:$C$22) -> 1018.315842
A43: 4 | B43: FALSE | C43: ON | D43: 2019-04-02T17:00:00 | E43: LRKPCGSA | F43: 1.932872534 | G43: 0.001435183386 | H43: =G43*SUMIF('Manual Inputs'!$B$11:$B$22,'Expanded kW'!A43,'Manual Inputs'!$C$11:$C$22) -> 871.2677566
A44: 4 | B44: FALSE | C44: ON | D44: 2019-04-02T18:00:00 | E44: LRKPCGSA | F44: 1.953978896 | G44: 0.001450855139 | H44: =G44*SUMIF('Manual Inputs'!$B$11:$B$22,'Expanded kW'!A44,'Manual Inputs'!$C$11:$C$22) -> 880.7817275
A45: 4 | B45: FALSE | C45: ON | D45: 2019-04-02T19:00:00 | E45: LRKPCGSA | F45: 1.915961742 | G45: 0.0014226269 | H45: =G45*SUMIF('Manual Inputs'!$B$11:$B$22,'Expanded kW'!A45,'Manual Inputs'!$C$11:$C$22) -> 863.6449947
A46: 4 | B46: FALSE | C46: ON | D46: 2019-04-02T20:00:00 | E46: LRKPCGSA | F46: 1.991353869 | G46: 0.00147860655 | H46: =G46*SUMIF('Manual Inputs'!$B$11:$B$22,'Expanded kW'!A46,'Manual Inputs'!$C$11:$C$22) -> 897.6289891
A47: 4 | B47: FALSE | C47: OFF | D47: 2019-04-02T21:00:00 | E47: LRKPCGSA | F47: 2.017923594 | G47: 0.001498334921 | H47: =G47*SUMIF('Manual Inputs'!$B$11:$B$22,'Expanded kW'!A47,'Manual Inputs'!$C$11:$C$22) -> 909.6056422
A48: 4 | B48: FALSE | C48: OFF | D48: 2019-04-02T22:00:00 | E48: LRKPCGSA | F48: 1.908571601 | G48: 0.001417139623 | H48: =G48*SUMIF('Manual Inputs'!$B$11:$B$22,'Expanded kW'!A48,'Manual Inputs'!$C$11:$C$22) -> 860.313791
A49: 4 | B49: FALSE | C49: OFF | D49: 2019-04-02T23:00:00 | E49: LRKPCGSA | F49: 1.897898674 | G49: 0.001409214833 | H49: =G49*SUMIF('Manual Inputs'!$B$11:$B$22,'Expanded kW'!A49,'Manual Inputs'!$C$11:$C$22) -> 855.5028286
A50: 4 | B50: FALSE | C50: OFF | D50: 2019-04-03 | E50: LRKPCGSA | F50: 1.94841063 | G50: 0.001446720628 | H50: =G50*SUMIF('Manual Inputs'!$B$11:$B$22,'Expanded kW'!A50,'Manual Inputs'!$C$11:$C$22) -> 878.2717583
A51: 4 | B51: FALSE | C51: OFF | D51: 2019-04-03T01:00:00 | E51: LRKPCGSA | F51: 2.012878895 | G51: 0.001494589166 | H51: =G51*SUMIF('Manual Inputs'!$B$11:$B$22,'Expanded kW'!A51,'Manual Inputs'!$C$11:$C$22) -> 907.3316778
A52: 4 | B52: FALSE | C52: OFF | D52: 2019-04-03T02:00:00 | E52: LRKPCGSA | F52: 2.045990229 | G52: 0.001519174769 | H52: =G52*SUMIF('Manual Inputs'!$B$11:$B$22,'Expanded kW'!A52,'Manual Inputs'!$C$11:$C$22) -> 922.2570477
A53: 4 | B53: FALSE | C53: OFF | D53: 2019-04-03T03:00:00 | E53: LRKPCGSA | F53: 2.061534166 | G53: 0.001530716348 | H53: =G53*SUMIF('Manual Inputs'!$B$11:$B$22,'Expanded kW'!A53,'Manual Inputs'!$C$11:$C$22) -> 929.2636824
A54: 4 | B54: FALSE | C54: OFF | D54: 2019-04-03T04:00:00 | E54: LRKPCGSA | F54: 2.148015976 | G54: 0.001594930234 | H54: =G54*SUMIF('Manual Inputs'!$B$11:$B$22,'Expanded kW'!A54,'Manual Inputs'!$C$11:$C$22) -> 968.2464973
A55: 4 | B55: FALSE | C55: OFF | D55: 2019-04-03T05:00:00 | E55: LRKPCGSA | F55: 2.325927258 | G55: 0.00172703171 | H55: =G55*SUMIF('Manual Inputs'!$B$11:$B$22,'Expanded kW'!A55,'Manual Inputs'!$C$11:$C$22) -> 1048.442351
A56: 4 | B56: FALSE | C56: OFF | D56: 2019-04-03T06:00:00 | E56: LRKPCGSA | F56: 2.476079464 | G56: 0.001838521707 | H56: =G56*SUMIF('Manual Inputs'!$B$11:$B$22,'Expanded kW'!A56,'Manual Inputs'!$C$11:$C$22) -> 1116.125436
A57: 4 | B57: FALSE | C57: ON | D57: 2019-04-03T07:00:00 | E57: LRKPCGSA | F57: 2.815873623 | G57: 0.002090823358 | H57: =G57*SUMIF('Manual Inputs'!$B$11:$B$22,'Expanded kW'!A57,'Manual Inputs'!$C$11:$C$22) -> 1269.292129
A58: 4 | B58: FALSE | C58: ON | D58: 2019-04-03T08:00:00 | E58: LRKPCGSA | F58: 2.916125298 | G58: 0.00216526155 | H58: =G58*SUMIF('Manual Inputs'!$B$11:$B$22,'Expanded kW'!A58,'Manual Inputs'!$C$11:$C$22) -> 1314.481892
A59: 4 | B59: FALSE | C59: ON | D59: 2019-04-03T09:00:00 | E59: LRKPCGSA | F59: 2.981339931 | G59: 0.002213684277 | H59: =G59*SUMIF('Manual Inputs'!$B$11:$B$22,'Expanded kW'!A59,'Manual Inputs'!$C$11:$C$22) -> 1343.878248
A60: 4 | B60: FALSE | C60: ON | D60: 2019-04-03T10:00:00 | E60: LRKPCGSA | F60: 2.773619413 | G60: 0.002059449049 | H60: =G60*SUMIF('Manual Inputs'!$B$11:$B$22,'Expanded kW'!A60,'Manual Inputs'!$C$11:$C$22) -> 1250.245488
A61: 4 | B61: FALSE | C61: ON | D61: 2019-04-03T11:00:00 | E61: LRKPCGSA | F61: 2.589184284 | G61: 0.00192250353 | H61: =G61*SUMIF('Manual Inputs'!$B$11:$B$22,'Expanded kW'!A61,'Manual Inputs'!$C$11:$C$22) -> 1167.108924
A62: 4 | B62: FALSE | C62: ON | D62: 2019-04-03T12:00:00 | E62: LRKPCGSA | F62: 2.63310957 | G62: 0.001955118634 | H62: =G62*SUMIF('Manual Inputs'!$B$11:$B$22,'Expanded kW'!A62,'Manual Inputs'!$C$11:$C$22) -> 1186.908825
A63: 4 | B63: FALSE | C63: ON | D63: 2019-04-03T13:00:00 | E63: LRKPCGSA | F63: 2.58091712 | G63: 0.001916365051 | H63: =G63*SUMIF('Manual Inputs'!$B$11:$B$22,'Expanded kW'!A63,'Manual Inputs'!$C$11:$C$22) -> 1163.382391
A64: 4 | B64: FALSE | C64: ON | D64: 2019-04-03T14:00:00 | E64: LRKPCGSA | F64: 2.470318556 | G64: 0.001834244156 | H64: =G64*SUMIF('Manual Inputs'!$B$11:$B$22,'Expanded kW'!A64,'Manual Inputs'!$C$11:$C$22) -> 1113.528631
A65: 4 | B65: FALSE | C65: ON | D65: 2019-04-03T15:00:00 | E65: LRKPCGSA | F65: 2.38153553 | G65: 0.001768321587 | H65: =G65*SUMIF('Manual Inputs'!$B$11:$B$22,'Expanded kW'!A65,'Manual Inputs'!$C$11:$C$22) -> 1073.508513
A66: =MONTH(D66) -> 4 | B66: =IF(ISNA(VLOOKUP(DATE(YEAR(D66),MONTH(D66),DAY(D66)),Holidays,1,FALSE)),FALSE,TRUE) -> FALSE | C66: =IF(OR(HOUR(D66)<PkStart,HOUR(D66)>OPkStart-1,WEEKDAY(D66,2)>5,B66)=TRUE,"OFF","ON") -> ON | D66: 2019-04-03T16:00:00 | E66: LRKPCGSA | F66: 2.422379494 | G66: =IF(SUMIF($A$2:$A$8785,A66,$F$2:$F$8785)=0,0,F66/SUMIF($A$2:$A$8785,A66,$F$2:$F$8785)) -> 0.001798648769 | H66: =G66*SUMIF('Manual Inputs'!$B$11:$B$22,'Expanded kW'!A66,'Manual Inputs'!$C$11:$C$22) -> 1091.919467
A67: 4 | B67: FALSE | C67: ON | D67: 2019-04-03T17:00:00 | E67: LRKPCGSA | F67: 2.210100651 | G67: 0.001641028925 | H67: =G67*SUMIF('Manual Inputs'!$B$11:$B$22,'Expanded kW'!A67,'Manual Inputs'!$C$11:$C$22) -> 996.2319823
A68: 4 | B68: FALSE | C68: ON | D68: =+D67+1/24 -> 2019-04-03T18:00:00 | E68: =+E67 -> LRKPCGSA | F68: 2.055468798 | G68: 0.001526212731 | H68: =G68*SUMIF('Manual Inputs'!$B$11:$B$22,'Expanded kW'!A68,'Manual Inputs'!$C$11:$C$22) -> 926.5296376
A69: 4 | B69: FALSE | C69: ON | D69: 2019-04-03T19:00:00 | E69: LRKPCGSA | F69: 2.018225908 | G69: 0.001498559394 | H69: =G69*SUMIF('Manual Inputs'!$B$11:$B$22,'Expanded kW'!A69,'Manual Inputs'!$C$11:$C$22) -> 909.7419146
A70: 4 | B70: FALSE | C70: ON | D70: 2019-04-03T20:00:00 | E70: LRKPCGSA | F70: 1.892833114 | G70: 0.001405453588 | H70: =G70*SUMIF('Manual Inputs'!$B$11:$B$22,'Expanded kW'!A70,'Manual Inputs'!$C$11:$C$22) -> 853.2194606
A71: 4 | B71: FALSE | C71: OFF | D71: 2019-04-03T21:00:00 | E71: LRKPCGSA | F71: 1.854928136 | G71: 0.001377308641 | H71: =G71*SUMIF('Manual Inputs'!$B$11:$B$22,'Expanded kW'!A71,'Manual Inputs'!$C$11:$C$22) -> 836.1332925
A72: 4 | B72: FALSE | C72: OFF | D72: 2019-04-03T22:00:00 | E72: LRKPCGSA | F72: 1.721883535 | G72: 0.001278521268 | H72: =G72*SUMIF('Manual Inputs'!$B$11:$B$22,'Expanded kW'!A72,'Manual Inputs'!$C$11:$C$22) -> 776.1616862
A73: 4 | B73: FALSE | C73: OFF | D73: 2019-04-03T23:00:00 | E73: LRKPCGSA | F73: 1.595870256 | G73: 0.001184954744 | H73: =G73*SUMIF('Manual Inputs'!$B$11:$B$22,'Expanded kW'!A73,'Manual Inputs'!$C$11:$C$22) -> 719.3595407
A74: 4 | B74: FALSE | C74: OFF | D74: 2019-04-04 | E74: LRKPCGSA | F74: 1.502577901 | G74: 0.001115683938 | H74: =G74*SUMIF('Manual Inputs'!$B$11:$B$22,'Expanded kW'!A74,'Manual Inputs'!$C$11:$C$22) -> 677.3067825
A75: 4 | B75: FALSE | C75: OFF | D75: 2019-04-04T01:00:00 | E75: LRKPCGSA | F75: 1.492781043 | G75: 0.001108409641 | H75: =G75*SUMIF('Manual Inputs'!$B$11:$B$22,'Expanded kW'!A75,'Manual Inputs'!$C$11:$C$22) -> 672.8907198
A76: 4 | B76: FALSE | C76: OFF | D76: 2019-04-04T02:00:00 | E76: LRKPCGSA | F76: 1.584135771 | G76: 0.001176241733 | H76: =G76*SUMIF('Manual Inputs'!$B$11:$B$22,'Expanded kW'!A76,'Manual Inputs'!$C$11:$C$22) -> 714.0700668
A77: 4 | B77: FALSE | C77: OFF | D77: 2019-04-04T03:00:00 | E77: LRKPCGSA | F77: 1.594397426 | G77: 0.001183861148 | H77: =G77*SUMIF('Manual Inputs'!$B$11:$B$22,'Expanded kW'!A77,'Manual Inputs'!$C$11:$C$22) -> 718.6956429
A78: 4 | B78: FALSE | C78: OFF | D78: 2019-04-04T04:00:00 | E78: LRKPCGSA | F78: 1.622205138 | G78: 0.001204508742 | H78: =G78*SUMIF('Manual Inputs'!$B$11:$B$22,'Expanded kW'!A78,'Manual Inputs'!$C$11:$C$22) -> 731.2303356
A79: 4 | B79: FALSE | C79: OFF | D79: 2019-04-04T05:00:00 | E79: LRKPCGSA | F79: 1.72784698 | G79: 0.001282949205 | H79: =G79*SUMIF('Manual Inputs'!$B$11:$B$22,'Expanded kW'!A79,'Manual Inputs'!$C$11:$C$22) -> 778.8497875
A80: 4 | B80: FALSE | C80: OFF | D80: 2019-04-04T06:00:00 | E80: LRKPCGSA | F80: 2.006551981 | G80: 0.001489891349 | H80: =G80*SUMIF('Manual Inputs'!$B$11:$B$22,'Expanded kW'!A80,'Manual Inputs'!$C$11:$C$22) -> 904.479738
A81: 4 | B81: FALSE | C81: ON | D81: 2019-04-04T07:00:00 | E81: LRKPCGSA | F81: 2.201098204 | G81: 0.001634344489 | H81: =G81*SUMIF('Manual Inputs'!$B$11:$B$22,'Expanded kW'!A81,'Manual Inputs'!$C$11:$C$22) -> 992.1740107
A82: 4 | B82: FALSE | C82: ON | D82: 2019-04-04T08:00:00 | E82: LRKPCGSA | F82: 2.532428026 | G82: 0.001880361258 | H82: =G82*SUMIF('Manual Inputs'!$B$11:$B$22,'Expanded kW'!A82,'Manual Inputs'!$C$11:$C$22) -> 1141.525293
A83: 4 | B83: FALSE | C83: ON | D83: 2019-04-04T09:00:00 | E83: LRKPCGSA | F83: 2.609521151 | G83: 0.001937603921 | H83: =G83*SUMIF('Manual Inputs'!$B$11:$B$22,'Expanded kW'!A83,'Manual Inputs'!$C$11:$C$22) -> 1176.276034
A84: 4 | B84: FALSE | C84: ON | D84: 2019-04-04T10:00:00 | E84: LRKPCGSA | F84: 2.440580606 | G84: 0.001812163336 | H84: =G84*SUMIF('Manual Inputs'!$B$11:$B$22,'Expanded kW'!A84,'Manual Inputs'!$C$11:$C$22) -> 1100.123859
A85: 4 | B85: FALSE | C85: ON | D85: 2019-04-04T11:00:00 | E85: LRKPCGSA | F85: 2.29335928 | G85: 0.001702849556 | H85: =G85*SUMIF('Manual Inputs'!$B$11:$B$22,'Expanded kW'!A85,'Manual Inputs'!$C$11:$C$22) -> 1033.761906
A86: 4 | B86: FALSE | C86: ON | D86: 2019-04-04T12:00:00 | E86: LRKPCGSA | F86: 2.502594233 | G86: 0.001858209273 | H86: =G86*SUMIF('Manual Inputs'!$B$11:$B$22,'Expanded kW'!A86,'Manual Inputs'!$C$11:$C$22) -> 1128.077317
A87: 4 | B87: FALSE | C87: ON | D87: 2019-04-04T13:00:00 | E87: LRKPCGSA | F87: 2.511352777 | G87: 0.001864712608 | H87: =G87*SUMIF('Manual Inputs'!$B$11:$B$22,'Expanded kW'!A87,'Manual Inputs'!$C$11:$C$22) -> 1132.025347
A88: 4 | B88: FALSE | C88: ON | D88: 2019-04-04T14:00:00 | E88: LRKPCGSA | F88: 2.465410233 | G88: 0.001830599661 | H88: =G88*SUMIF('Manual Inputs'!$B$11:$B$22,'Expanded kW'!A88,'Manual Inputs'!$C$11:$C$22) -> 1111.31614
A89: 4 | B89: FALSE | C89: ON | D89: 2019-04-04T15:00:00 | E89: LRKPCGSA | F89: 2.547650099 | G89: 0.001891663848 | H89: =G89*SUMIF('Manual Inputs'!$B$11:$B$22,'Expanded kW'!A89,'Manual Inputs'!$C$11:$C$22) -> 1148.386843
A90: 4 | B90: FALSE | C90: ON | D90: 2019-04-04T16:00:00 | E90: LRKPCGSA | F90: 2.395086288 | G90: 0.001778383204 | H90: =G90*SUMIF('Manual Inputs'!$B$11:$B$22,'Expanded kW'!A90,'Manual Inputs'!$C$11:$C$22) -> 1079.616695
A91: 4 | B91: FALSE | C91: ON | D91: 2019-04-04T17:00:00 | E91: LRKPCGSA | F91: 2.070809603 | G91: 0.001537603482 | H91: =G91*SUMIF('Manual Inputs'!$B$11:$B$22,'Expanded kW'!A91,'Manual Inputs'!$C$11:$C$22) -> 933.4447075
A92: 4 | B92: FALSE | C92: ON | D92: 2019-04-04T18:00:00 | E92: LRKPCGSA | F92: 1.948358655 | G92: 0.001446682036 | H92: =G92*SUMIF('Manual Inputs'!$B$11:$B$22,'Expanded kW'!A92,'Manual Inputs'!$C$11:$C$22) -> 878.2483298
A93: 4 | B93: FALSE | C93: ON | D93: 2019-04-04T19:00:00 | E93: LRKPCGSA | F93: 1.828052521 | G93: 0.001357353142 | H93: =G93*SUMIF('Manual Inputs'!$B$11:$B$22,'Expanded kW'!A93,'Manual Inputs'!$C$11:$C$22) -> 824.018755
A94: 4 | B94: FALSE | C94: ON | D94: 2019-04-04T20:00:00 | E94: LRKPCGSA | F94: 1.880076528 | G94: 0.001395981654 | H94: =G94*SUMIF('Manual Inputs'!$B$11:$B$22,'Expanded kW'!A94,'Manual Inputs'!$C$11:$C$22) -> 847.4692614
A95: 4 | B95: FALSE | C95: OFF | D95: 2019-04-04T21:00:00 | E95: LRKPCGSA | F95: 1.88155973 | G95: 0.001397082951 | H95: =G95*SUMIF('Manual Inputs'!$B$11:$B$22,'Expanded kW'!A95,'Manual Inputs'!$C$11:$C$22) -> 848.1378342
A96: 4 | B96: FALSE | C96: OFF | D96: 2019-04-04T22:00:00 | E96: LRKPCGSA | F96: 1.643014431 | G96: 0.001219959916 | H96: =G96*SUMIF('Manual Inputs'!$B$11:$B$22,'Expanded kW'!A96,'Manual Inputs'!$C$11:$C$22) -> 740.6103985
A97: 4 | B97: FALSE | C97: OFF | D97: 2019-04-04T23:00:00 | E97: LRKPCGSA | F97: 1.490190148 | G97: 0.001106485868 | H97: =G97*SUMIF('Manual Inputs'!$B$11:$B$22,'Expanded kW'!A97,'Manual Inputs'!$C$11:$C$22) -> 671.7228399
A98: 4 | B98: FALSE | C98: OFF | D98: 2019-04-05 | E98: LRKPCGSA | F98: 1.461268306 | G98: 0.001085011018 | H98: =G98*SUMIF('Manual Inputs'!$B$11:$B$22,'Expanded kW'!A98,'Manual Inputs'!$C$11:$C$22) -> 658.6859383
A99: 4 | B99: FALSE | C99: OFF | D99: 2019-04-05T01:00:00 | E99: LRKPCGSA | F99: 1.482356429 | G99: 0.001100669228 | H99: =G99*SUMIF('Manual Inputs'!$B$11:$B$22,'Expanded kW'!A99,'Manual Inputs'!$C$11:$C$22) -> 668.1916877
A100: 4 | B100: FALSE | C100: OFF | D100: 2019-04-05T02:00:00 | E100: LRKPCGSA | F100: 1.532802701 | G100: 0.001138126251 | H100: =G100*SUMIF('Manual Inputs'!$B$11:$B$22,'Expanded kW'!A100,'Manual Inputs'!$C$11:$C$22) -> 690.9310093
A101: 4 | B101: FALSE | C101: OFF | D101: 2019-04-05T03:00:00 | E101: LRKPCGSA | F101: 1.518417835 | G101: 0.001127445298 | H101: =G101*SUMIF('Manual Inputs'!$B$11:$B$22,'Expanded kW'!A101,'Manual Inputs'!$C$11:$C$22) -> 684.4468416
A102: 4 | B102: FALSE | C102: OFF | D102: 2019-04-05T04:00:00 | E102: LRKPCGSA | F102: 1.433027625 | G102: 0.001064041939 | H102: =G102*SUMIF('Manual Inputs'!$B$11:$B$22,'Expanded kW'!A102,'Manual Inputs'!$C$11:$C$22) -> 645.9560795
A103: 4 | B103: FALSE | C103: OFF | D103: 2019-04-05T05:00:00 | E103: LRKPCGSA | F103: 1.360611916 | G103: 0.001010272319 | H103: =G103*SUMIF('Manual Inputs'!$B$11:$B$22,'Expanded kW'!A103,'Manual Inputs'!$C$11:$C$22) -> 613.3137445
A104: 4 | B104: FALSE | C104: OFF | D104: 2019-04-05T06:00:00 | E104: LRKPCGSA | F104: 1.498125315 | G104: 0.001112377834 | H104: =G104*SUMIF('Manual Inputs'!$B$11:$B$22,'Expanded kW'!A104,'Manual Inputs'!$C$11:$C$22) -> 675.2997206
A105: 4 | B105: FALSE | C105: ON | D105: 2019-04-05T07:00:00 | E105: LRKPCGSA | F105: 1.767260432 | G105: 0.001312214213 | H105: =G105*SUMIF('Manual Inputs'!$B$11:$B$22,'Expanded kW'!A105,'Manual Inputs'!$C$11:$C$22) -> 796.6159202
A106: 4 | B106: FALSE | C106: ON | D106: 2019-04-05T08:00:00 | E106: LRKPCGSA | F106: 1.97634089 | G106: 0.001467459215 | H106: =G106*SUMIF('Manual Inputs'!$B$11:$B$22,'Expanded kW'!A106,'Manual Inputs'!$C$11:$C$22) -> 890.8616908
A107: 4 | B107: FALSE | C107: ON | D107: 2019-04-05T09:00:00 | E107: LRKPCGSA | F107: 2.293512106 | G107: 0.001702963032 | H107: =G107*SUMIF('Manual Inputs'!$B$11:$B$22,'Expanded kW'!A107,'Manual Inputs'!$C$11:$C$22) -> 1033.830795
A108: 4 | B108: FALSE | C108: ON | D108: 2019-04-05T10:00:00 | E108: LRKPCGSA | F108: 2.313483953 | G108: 0.001717792392 | H108: =G108*SUMIF('Manual Inputs'!$B$11:$B$22,'Expanded kW'!A108,'Manual Inputs'!$C$11:$C$22) -> 1042.833368
A109: 4 | B109: FALSE | C109: ON | D109: 2019-04-05T11:00:00 | E109: LRKPCGSA | F109: 2.299215078 | G109: 0.001707197564 | H109: =G109*SUMIF('Manual Inputs'!$B$11:$B$22,'Expanded kW'!A109,'Manual Inputs'!$C$11:$C$22) -> 1036.401484
A110: 4 | B110: FALSE | C110: ON | D110: 2019-04-05T12:00:00 | E110: LRKPCGSA | F110: 2.371896982 | G110: 0.001761164838 | H110: =G110*SUMIF('Manual Inputs'!$B$11:$B$22,'Expanded kW'!A110,'Manual Inputs'!$C$11:$C$22) -> 1069.16381
A111: 4 | B111: FALSE | C111: ON | D111: 2019-04-05T13:00:00 | E111: LRKPCGSA | F111: 2.464113474 | G111: 0.001829636801 | H111: =G111*SUMIF('Manual Inputs'!$B$11:$B$22,'Expanded kW'!A111,'Manual Inputs'!$C$11:$C$22) -> 1110.731609
A112: 4 | B112: FALSE | C112: ON | D112: 2019-04-05T14:00:00 | E112: LRKPCGSA | F112: 2.327096462 | G112: 0.00172789986 | H112: =G112*SUMIF('Manual Inputs'!$B$11:$B$22,'Expanded kW'!A112,'Manual Inputs'!$C$11:$C$22) -> 1048.969386
A113: 4 | B113: FALSE | C113: ON | D113: 2019-04-05T15:00:00 | E113: LRKPCGSA | F113: 2.271628141 | G113: 0.001686713899 | H113: =G113*SUMIF('Manual Inputs'!$B$11:$B$22,'Expanded kW'!A113,'Manual Inputs'!$C$11:$C$22) -> 1023.966309
A114: 4 | B114: FALSE | C114: ON | D114: 2019-04-05T16:00:00 | E114: LRKPCGSA | F114: 2.270606518 | G114: 0.00168595533 | H114: =G114*SUMIF('Manual Inputs'!$B$11:$B$22,'Expanded kW'!A114,'Manual Inputs'!$C$11:$C$22) -> 1023.505799
A115: 4 | B115: FALSE | C115: ON | D115: 2019-04-05T17:00:00 | E115: LRKPCGSA | F115: 1.976163507 | G115: 0.001467327505 | H115: =G115*SUMIF('Manual Inputs'!$B$11:$B$22,'Expanded kW'!A115,'Manual Inputs'!$C$11:$C$22) -> 890.7817329
A116: 4 | B116: FALSE | C116: ON | D116: 2019-04-05T18:00:00 | E116: LRKPCGSA | F116: 1.82118547 | G116: 0.001352254266 | H116: =G116*SUMIF('Manual Inputs'!$B$11:$B$22,'Expanded kW'!A116,'Manual Inputs'!$C$11:$C$22) -> 820.9233412
A117: 4 | B117: FALSE | C117: ON | D117: 2019-04-05T19:00:00 | E117: LRKPCGSA | F117: 1.670436382 | G117: 0.001240321077 | H117: =G117*SUMIF('Manual Inputs'!$B$11:$B$22,'Expanded kW'!A117,'Manual Inputs'!$C$11:$C$22) -> 752.9712042
A118: 4 | B118: FALSE | C118: ON | D118: 2019-04-05T20:00:00 | E118: LRKPCGSA | F118: 1.741687059 | G118: 0.001293225646 | H118: =G118*SUMIF('Manual Inputs'!$B$11:$B$22,'Expanded kW'!A118,'Manual Inputs'!$C$11:$C$22) -> 785.0883855
A119: 4 | B119: FALSE | C119: OFF | D119: 2019-04-05T21:00:00 | E119: LRKPCGSA | F119: 1.814148664 | G119: 0.001347029345 | H119: =G119*SUMIF('Manual Inputs'!$B$11:$B$22,'Expanded kW'!A119,'Manual Inputs'!$C$11:$C$22) -> 817.7514086
A120: 4 | B120: FALSE | C120: OFF | D120: 2019-04-05T22:00:00 | E120: LRKPCGSA | F120: 1.630351782 | G120: 0.001210557732 | H120: =G120*SUMIF('Manual Inputs'!$B$11:$B$22,'Expanded kW'!A120,'Manual Inputs'!$C$11:$C$22) -> 734.9025425
A121: 4 | B121: FALSE | C121: OFF | D121: 2019-04-05T23:00:00 | E121: LRKPCGSA | F121: 1.501290441 | G121: 0.001114727982 | H121: =G121*SUMIF('Manual Inputs'!$B$11:$B$22,'Expanded kW'!A121,'Manual Inputs'!$C$11:$C$22) -> 676.7264428
A122: 4 | B122: FALSE | C122: OFF | D122: 2019-04-06 | E122: LRKPCGSA | F122: 1.45630765 | G122: 0.001081327665 | H122: =G122*SUMIF('Manual Inputs'!$B$11:$B$22,'Expanded kW'!A122,'Manual Inputs'!$C$11:$C$22) -> 656.4498572
A123: 4 | B123: FALSE | C123: OFF | D123: 2019-04-06T01:00:00 | E123: LRKPCGSA | F123: 1.313977242 | G123: 0.0009756454571 | H123: =G123*SUMIF('Manual Inputs'!$B$11:$B$22,'Expanded kW'!A123,'Manual Inputs'!$C$11:$C$22) -> 592.2925508
A124: 4 | B124: FALSE | C124: OFF | D124: 2019-04-06T02:00:00 | E124: LRKPCGSA | F124: 1.299944758 | G124: 0.0009652261531 | H124: =G124*SUMIF('Manual Inputs'!$B$11:$B$22,'Expanded kW'!A124,'Manual Inputs'!$C$11:$C$22) -> 585.9672242
A125: 4 | B125: FALSE | C125: OFF | D125: 2019-04-06T03:00:00 | E125: LRKPCGSA | F125: 1.264692187 | G125: 0.0009390506534 | H125: =G125*SUMIF('Manual Inputs'!$B$11:$B$22,'Expanded kW'!A125,'Manual Inputs'!$C$11:$C$22) -> 570.0766634
A126: 4 | B126: FALSE | C126: OFF | D126: 2019-04-06T04:00:00 | E126: LRKPCGSA | F126: 1.228666067 | G126: 0.0009123007833 | H126: =G126*SUMIF('Manual Inputs'!$B$11:$B$22,'Expanded kW'!A126,'Manual Inputs'!$C$11:$C$22) -> 553.8374152
A127: 4 | B127: FALSE | C127: OFF | D127: 2019-04-06T05:00:00 | E127: LRKPCGSA | F127: 1.27800715 | G127: 0.0009489371889 | H127: =G127*SUMIF('Manual Inputs'!$B$11:$B$22,'Expanded kW'!A127,'Manual Inputs'!$C$11:$C$22) -> 576.0785581
A128: 4 | B128: FALSE | C128: OFF | D128: 2019-04-06T06:00:00 | E128: LRKPCGSA | F128: 1.405771971 | G128: 0.001043804256 | H128: =G128*SUMIF('Manual Inputs'!$B$11:$B$22,'Expanded kW'!A128,'Manual Inputs'!$C$11:$C$22) -> 633.6702343
A129: 4 | B129: FALSE | C129: OFF | D129: 2019-04-06T07:00:00 | E129: LRKPCGSA | F129: 1.41457963 | G129: 0.001050344059 | H129: =G129*SUMIF('Manual Inputs'!$B$11:$B$22,'Expanded kW'!A129,'Manual Inputs'!$C$11:$C$22) -> 637.6404027
A130: =MONTH(D130) -> 4 | B130: =IF(ISNA(VLOOKUP(DATE(YEAR(D130),MONTH(D130),DAY(D130)),Holidays,1,FALSE)),FALSE,TRUE) -> FALSE | C130: =IF(OR(HOUR(D130)<PkStart,HOUR(D130)>OPkStart-1,WEEKDAY(D130,2)>5,B130)=TRUE,"OFF","ON") -> OFF | D130: 2019-04-06T08:00:00 | E130: LRKPCGSA | F130: 1.620176554 | G130: =IF(SUMIF($A$2:$A$8785,A130,$F$2:$F$8785)=0,0,F130/SUMIF($A$2:$A$8785,A130,$F$2:$F$8785)) -> 0.001203002491 | H130: =G130*SUMIF('Manual Inputs'!$B$11:$B$22,'Expanded kW'!A130,'Manual Inputs'!$C$11:$C$22) -> 730.3159244
A131: 4 | B131: FALSE | C131: OFF | D131: 2019-04-06T09:00:00 | E131: LRKPCGSA | F131: 1.745727777 | G131: 0.001296225933 | H131: =G131*SUMIF('Manual Inputs'!$B$11:$B$22,'Expanded kW'!A131,'Manual Inputs'!$C$11:$C$22) -> 786.9097924
A132: 4 | B132: FALSE | C132: OFF | D132: =+D131+1/24 -> 2019-04-06T10:00:00 | E132: =+E131 -> LRKPCGSA | F132: 1.823012471 | G132: 0.001353610839 | H132: =G132*SUMIF('Manual Inputs'!$B$11:$B$22,'Expanded kW'!A132,'Manual Inputs'!$C$11:$C$22) -> 821.7468862
A133: 4 | B133: FALSE | C133: OFF | D133: 2019-04-06T11:00:00 | E133: LRKPCGSA | F133: 1.885662675 | G133: 0.001400129442 | H133: =G133*SUMIF('Manual Inputs'!$B$11:$B$22,'Expanded kW'!A133,'Manual Inputs'!$C$11:$C$22) -> 849.9872908
A134: 4 | B134: FALSE | C134: OFF | D134: 2019-04-06T12:00:00 | E134: LRKPCGSA | F134: 1.886056304 | G134: 0.001400421717 | H134: =G134*SUMIF('Manual Inputs'!$B$11:$B$22,'Expanded kW'!A134,'Manual Inputs'!$C$11:$C$22) -> 850.1647243
A135: 4 | B135: FALSE | C135: OFF | D135: 2019-04-06T13:00:00 | E135: LRKPCGSA | F135: 1.907429457 | G135: 0.001416291565 | H135: =G135*SUMIF('Manual Inputs'!$B$11:$B$22,'Expanded kW'!A135,'Manual Inputs'!$C$11:$C$22) -> 859.7989545
A136: 4 | B136: FALSE | C136: OFF | D136: 2019-04-06T14:00:00 | E136: LRKPCGSA | F136: 1.881814718 | G136: 0.001397272284 | H136: =G136*SUMIF('Manual Inputs'!$B$11:$B$22,'Expanded kW'!A136,'Manual Inputs'!$C$11:$C$22) -> 848.2527737
A137: 4 | B137: FALSE | C137: OFF | D137: 2019-04-06T15:00:00 | E137: LRKPCGSA | F137: 1.94063437 | G137: 0.001440946652 | H137: =G137*SUMIF('Manual Inputs'!$B$11:$B$22,'Expanded kW'!A137,'Manual Inputs'!$C$11:$C$22) -> 874.7665065
A138: 4 | B138: FALSE | C138: OFF | D138: 2019-04-06T16:00:00 | E138: LRKPCGSA | F138: 1.80359304 | G138: 0.001339191654 | H138: =G138*SUMIF('Manual Inputs'!$B$11:$B$22,'Expanded kW'!A138,'Manual Inputs'!$C$11:$C$22) -> 812.9933216
A139: 4 | B139: FALSE | C139: OFF | D139: 2019-04-06T17:00:00 | E139: LRKPCGSA | F139: 1.762653828 | G139: 0.001308793749 | H139: =G139*SUMIF('Manual Inputs'!$B$11:$B$22,'Expanded kW'!A139,'Manual Inputs'!$C$11:$C$22) -> 794.5394325
A140: 4 | B140: FALSE | C140: OFF | D140: 2019-04-06T18:00:00 | E140: LRKPCGSA | F140: 1.774824977 | G140: 0.001317830988 | H140: =G140*SUMIF('Manual Inputs'!$B$11:$B$22,'Expanded kW'!A140,'Manual Inputs'!$C$11:$C$22) -> 800.0257384
A141: 4 | B141: FALSE | C141: OFF | D141: 2019-04-06T19:00:00 | E141: LRKPCGSA | F141: 1.851191163 | G141: 0.00137453389 | H141: =G141*SUMIF('Manual Inputs'!$B$11:$B$22,'Expanded kW'!A141,'Manual Inputs'!$C$11:$C$22) -> 834.4488028
A142: 4 | B142: FALSE | C142: OFF | D142: 2019-04-06T20:00:00 | E142: LRKPCGSA | F142: 1.944249034 | G142: 0.001443630588 | H142: =G142*SUMIF('Manual Inputs'!$B$11:$B$22,'Expanded kW'!A142,'Manual Inputs'!$C$11:$C$22) -> 876.3958639
A143: 4 | B143: FALSE | C143: OFF | D143: 2019-04-06T21:00:00 | E143: LRKPCGSA | F143: 1.868062019 | G143: 0.001387060723 | H143: =G143*SUMIF('Manual Inputs'!$B$11:$B$22,'Expanded kW'!A143,'Manual Inputs'!$C$11:$C$22) -> 842.0535635
A144: 4 | B144: FALSE | C144: OFF | D144: 2019-04-06T22:00:00 | E144: LRKPCGSA | F144: 1.687475801 | G144: 0.00125297307 | H144: =G144*SUMIF('Manual Inputs'!$B$11:$B$22,'Expanded kW'!A144,'Manual Inputs'!$C$11:$C$22) -> 760.6519465
A145: 4 | B145: FALSE | C145: OFF | D145: 2019-04-06T23:00:00 | E145: LRKPCGSA | F145: 1.577281594 | G145: 0.001171152417 | H145: =G145*SUMIF('Manual Inputs'!$B$11:$B$22,'Expanded kW'!A145,'Manual Inputs'!$C$11:$C$22) -> 710.9804564
A146: 4 | B146: FALSE | C146: OFF | D146: 2019-04-07 | E146: LRKPCGSA | F146: 1.484354258 | G146: 0.001102152642 | H146: =G146*SUMIF('Manual Inputs'!$B$11:$B$22,'Expanded kW'!A146,'Manual Inputs'!$C$11:$C$22) -> 669.0922352
A147: 4 | B147: FALSE | C147: OFF | D147: 2019-04-07T01:00:00 | E147: LRKPCGSA | F147: 1.35479784 | G147: 0.001005955291 | H147: =G147*SUMIF('Manual Inputs'!$B$11:$B$22,'Expanded kW'!A147,'Manual Inputs'!$C$11:$C$22) -> 610.6929734
A148: 4 | B148: FALSE | C148: OFF | D148: 2019-04-07T02:00:00 | E148: LRKPCGSA | F148: 1.350513577 | G148: 0.001002774169 | H148: =G148*SUMIF('Manual Inputs'!$B$11:$B$22,'Expanded kW'!A148,'Manual Inputs'!$C$11:$C$22) -> 608.7617856
A149: 4 | B149: FALSE | C149: OFF | D149: 2019-04-07T03:00:00 | E149: LRKPCGSA | F149: 1.306526065 | G149: 0.0009701128601 | H149: =G149*SUMIF('Manual Inputs'!$B$11:$B$22,'Expanded kW'!A149,'Manual Inputs'!$C$11:$C$22) -> 588.9338348
A150: 4 | B150: FALSE | C150: OFF | D150: 2019-04-07T04:00:00 | E150: LRKPCGSA | F150: 1.333265066 | G150: 0.0009899669217 | H150: =G150*SUMIF('Manual Inputs'!$B$11:$B$22,'Expanded kW'!A150,'Manual Inputs'!$C$11:$C$22) -> 600.9867919
A151: 4 | B151: FALSE | C151: OFF | D151: 2019-04-07T05:00:00 | E151: LRKPCGSA | F151: 1.365217686 | G151: 0.001013692164 | H151: =G151*SUMIF('Manual Inputs'!$B$11:$B$22,'Expanded kW'!A151,'Manual Inputs'!$C$11:$C$22) -> 615.3898561
A152: 4 | B152: FALSE | C152: OFF | D152: 2019-04-07T06:00:00 | E152: LRKPCGSA | F152: 1.465555429 | G152: 0.001088194264 | H152: =G152*SUMIF('Manual Inputs'!$B$11:$B$22,'Expanded kW'!A152,'Manual Inputs'!$C$11:$C$22) -> 660.6184158
A153: 4 | B153: FALSE | C153: OFF | D153: 2019-04-07T07:00:00 | E153: LRKPCGSA | F153: 1.658725023 | G153: 0.001231625239 | H153: =G153*SUMIF('Manual Inputs'!$B$11:$B$22,'Expanded kW'!A153,'Manual Inputs'!$C$11:$C$22) -> 747.6921549
A154: 4 | B154: FALSE | C154: OFF | D154: 2019-04-07T08:00:00 | E154: LRKPCGSA | F154: 1.733084798 | G154: 0.001286838353 | H154: =G154*SUMIF('Manual Inputs'!$B$11:$B$22,'Expanded kW'!A154,'Manual Inputs'!$C$11:$C$22) -> 781.2108028
A155: 4 | B155: FALSE | C155: OFF | D155: 2019-04-07T09:00:00 | E155: LRKPCGSA | F155: 1.812862635 | G155: 0.001346074451 | H155: =G155*SUMIF('Manual Inputs'!$B$11:$B$22,'Expanded kW'!A155,'Manual Inputs'!$C$11:$C$22) -> 817.1717137
A156: 4 | B156: FALSE | C156: OFF | D156: 2019-04-07T10:00:00 | E156: LRKPCGSA | F156: 1.768253922 | G156: 0.001312951893 | H156: =G156*SUMIF('Manual Inputs'!$B$11:$B$22,'Expanded kW'!A156,'Manual Inputs'!$C$11:$C$22) -> 797.063749
A157: 4 | B157: FALSE | C157: OFF | D157: 2019-04-07T11:00:00 | E157: LRKPCGSA | F157: 1.765452862 | G157: 0.001310872068 | H157: =G157*SUMIF('Manual Inputs'!$B$11:$B$22,'Expanded kW'!A157,'Manual Inputs'!$C$11:$C$22) -> 795.801134
A158: 4 | B158: FALSE | C158: OFF | D158: 2019-04-07T12:00:00 | E158: LRKPCGSA | F158: 1.832590103 | G158: 0.001360722357 | H158: =G158*SUMIF('Manual Inputs'!$B$11:$B$22,'Expanded kW'!A158,'Manual Inputs'!$C$11:$C$22) -> 826.06413
A159: 4 | B159: FALSE | C159: OFF | D159: 2019-04-07T13:00:00 | E159: LRKPCGSA | F159: 1.826256871 | G159: 0.001356019848 | H159: =G159*SUMIF('Manual Inputs'!$B$11:$B$22,'Expanded kW'!A159,'Manual Inputs'!$C$11:$C$22) -> 823.2093423
A160: 4 | B160: FALSE | C160: OFF | D160: 2019-04-07T14:00:00 | E160: LRKPCGSA | F160: 1.776633382 | G160: 0.001319173752 | H160: =G160*SUMIF('Manual Inputs'!$B$11:$B$22,'Expanded kW'!A160,'Manual Inputs'!$C$11:$C$22) -> 800.8409007
A161: 4 | B161: FALSE | C161: OFF | D161: 2019-04-07T15:00:00 | E161: LRKPCGSA | F161: 1.750028253 | G161: 0.001299419092 | H161: =G161*SUMIF('Manual Inputs'!$B$11:$B$22,'Expanded kW'!A161,'Manual Inputs'!$C$11:$C$22) -> 788.8482883
A162: 4 | B162: FALSE | C162: OFF | D162: 2019-04-07T16:00:00 | E162: LRKPCGSA | F162: 1.728161216 | G162: 0.001283182529 | H162: =G162*SUMIF('Manual Inputs'!$B$11:$B$22,'Expanded kW'!A162,'Manual Inputs'!$C$11:$C$22) -> 778.9914334
A163: 4 | B163: FALSE | C163: OFF | D163: 2019-04-07T17:00:00 | E163: LRKPCGSA | F163: 1.703991413 | G163: 0.001265236131 | H163: =G163*SUMIF('Manual Inputs'!$B$11:$B$22,'Expanded kW'!A163,'Manual Inputs'!$C$11:$C$22) -> 768.0965764
A164: 4 | B164: FALSE | C164: OFF | D164: 2019-04-07T18:00:00 | E164: LRKPCGSA | F164: 1.717264295 | G164: 0.001275091421 | H164: =G164*SUMIF('Manual Inputs'!$B$11:$B$22,'Expanded kW'!A164,'Manual Inputs'!$C$11:$C$22) -> 774.0795026
A165: 4 | B165: FALSE | C165: OFF | D165: 2019-04-07T19:00:00 | E165: LRKPCGSA | F165: 1.709348679 | G165: 0.001269213971 | H165: =G165*SUMIF('Manual Inputs'!$B$11:$B$22,'Expanded kW'!A165,'Manual Inputs'!$C$11:$C$22) -> 770.5114344
A166: 4 | B166: FALSE | C166: OFF | D166: 2019-04-07T20:00:00 | E166: LRKPCGSA | F166: 1.682137132 | G166: 0.001249009038 | H166: =G166*SUMIF('Manual Inputs'!$B$11:$B$22,'Expanded kW'!A166,'Manual Inputs'!$C$11:$C$22) -> 758.2454712
A167: 4 | B167: FALSE | C167: OFF | D167: 2019-04-07T21:00:00 | E167: LRKPCGSA | F167: 1.604440808 | G167: 0.001191318492 | H167: =G167*SUMIF('Manual Inputs'!$B$11:$B$22,'Expanded kW'!A167,'Manual Inputs'!$C$11:$C$22) -> 723.2228299
A168: 4 | B168: FALSE | C168: OFF | D168: 2019-04-07T22:00:00 | E168: LRKPCGSA | F168: 1.488288879 | G168: 0.001105074151 | H168: =G168*SUMIF('Manual Inputs'!$B$11:$B$22,'Expanded kW'!A168,'Manual Inputs'!$C$11:$C$22) -> 670.8658178
A169: 4 | B169: FALSE | C169: OFF | D169: 2019-04-07T23:00:00 | E169: LRKPCGSA | F169: 1.470591664 | G169: 0.001091933735 | H169: =G169*SUMIF('Manual Inputs'!$B$11:$B$22,'Expanded kW'!A169,'Manual Inputs'!$C$11:$C$22) -> 662.888565
A170: 4 | B170: FALSE | C170: OFF | D170: 2019-04-08 | E170: LRKPCGSA | F170: 1.451269746 | G170: 0.001077586955 | H170: =G170*SUMIF('Manual Inputs'!$B$11:$B$22,'Expanded kW'!A170,'Manual Inputs'!$C$11:$C$22) -> 654.1789557
A171: 4 | B171: FALSE | C171: OFF | D171: 2019-04-08T01:00:00 | E171: LRKPCGSA | F171: 1.321191072 | G171: 0.0009810018219 | H171: =G171*SUMIF('Manual Inputs'!$B$11:$B$22,'Expanded kW'!A171,'Manual Inputs'!$C$11:$C$22) -> 595.5442802
A172: 4 | B172: FALSE | C172: OFF | D172: 2019-04-08T02:00:00 | E172: LRKPCGSA | F172: 1.300948262 | G172: 0.0009659712679 | H172: =G172*SUMIF('Manual Inputs'!$B$11:$B$22,'Expanded kW'!A172,'Manual Inputs'!$C$11:$C$22) -> 586.4195668
A173: 4 | B173: FALSE | C173: OFF | D173: 2019-04-08T03:00:00 | E173: LRKPCGSA | F173: 1.258983612 | G173: 0.0009348119609 | H173: =G173*SUMIF('Manual Inputs'!$B$11:$B$22,'Expanded kW'!A173,'Manual Inputs'!$C$11:$C$22) -> 567.5034479
A174: 4 | B174: FALSE | C174: OFF | D174: 2019-04-08T04:00:00 | E174: LRKPCGSA | F174: 1.236140132 | G174: 0.0009178503752 | H174: =G174*SUMIF('Manual Inputs'!$B$11:$B$22,'Expanded kW'!A174,'Manual Inputs'!$C$11:$C$22) -> 557.2064483
A175: 4 | B175: FALSE | C175: OFF | D175: 2019-04-08T05:00:00 | E175: LRKPCGSA | F175: 1.306357622 | G175: 0.0009699877891 | H175: =G175*SUMIF('Manual Inputs'!$B$11:$B$22,'Expanded kW'!A175,'Manual Inputs'!$C$11:$C$22) -> 588.857907
A176: 4 | B176: FALSE | C176: OFF | D176: 2019-04-08T06:00:00 | E176: LRKPCGSA | F176: 1.478051305 | G176: 0.001097472616 | H176: =G176*SUMIF('Manual Inputs'!$B$11:$B$22,'Expanded kW'!A176,'Manual Inputs'!$C$11:$C$22) -> 666.2510962
A177: 4 | B177: FALSE | C177: ON | D177: 2019-04-08T07:00:00 | E177: LRKPCGSA | F177: 1.708191872 | G177: 0.001268355027 | H177: =G177*SUMIF('Manual Inputs'!$B$11:$B$22,'Expanded kW'!A177,'Manual Inputs'!$C$11:$C$22) -> 769.9899884
A178: 4 | B178: FALSE | C178: ON | D178: 2019-04-08T08:00:00 | E178: LRKPCGSA | F178: 2.029921293 | G178: 0.001507243372 | H178: =G178*SUMIF('Manual Inputs'!$B$11:$B$22,'Expanded kW'!A178,'Manual Inputs'!$C$11:$C$22) -> 915.0137634
A179: 4 | B179: FALSE | C179: ON | D179: 2019-04-08T09:00:00 | E179: LRKPCGSA | F179: 2.267386675 | G179: 0.001683564554 | H179: =G179*SUMIF('Manual Inputs'!$B$11:$B$22,'Expanded kW'!A179,'Manual Inputs'!$C$11:$C$22) -> 1022.054412
A180: 4 | B180: FALSE | C180: ON | D180: 2019-04-08T10:00:00 | E180: LRKPCGSA | F180: 2.414511442 | G180: 0.001792806637 | H180: =G180*SUMIF('Manual Inputs'!$B$11:$B$22,'Expanded kW'!A180,'Manual Inputs'!$C$11:$C$22) -> 1088.372839
A181: 4 | B181: FALSE | C181: ON | D181: 2019-04-08T11:00:00 | E181: LRKPCGSA | F181: 2.42269516 | G181: 0.001798883156 | H181: =G181*SUMIF('Manual Inputs'!$B$11:$B$22,'Expanded kW'!A181,'Manual Inputs'!$C$11:$C$22) -> 1092.061758
A182: 4 | B182: FALSE | C182: ON | D182: 2019-04-08T12:00:00 | E182: LRKPCGSA | F182: 2.440706491 | G182: 0.001812256807 | H182: =G182*SUMIF('Manual Inputs'!$B$11:$B$22,'Expanded kW'!A182,'Manual Inputs'!$C$11:$C$22) -> 1100.180603
A183: 4 | B183: FALSE | C183: ON | D183: 2019-04-08T13:00:00 | E183: LRKPCGSA | F183: 2.540696621 | G183: 0.001886500799 | H183: =G183*SUMIF('Manual Inputs'!$B$11:$B$22,'Expanded kW'!A183,'Manual Inputs'!$C$11:$C$22) -> 1145.252471
A184: 4 | B184: FALSE | C184: ON | D184: 2019-04-08T14:00:00 | E184: LRKPCGSA | F184: 2.41006732 | G184: 0.001789506818 | H184: =G184*SUMIF('Manual Inputs'!$B$11:$B$22,'Expanded kW'!A184,'Manual Inputs'!$C$11:$C$22) -> 1086.369593
A185: 4 | B185: FALSE | C185: ON | D185: 2019-04-08T15:00:00 | E185: LRKPCGSA | F185: 2.2917099 | G185: 0.00170162487 | H185: =G185*SUMIF('Manual Inputs'!$B$11:$B$22,'Expanded kW'!A185,'Manual Inputs'!$C$11:$C$22) -> 1033.018426
A186: 4 | B186: FALSE | C186: ON | D186: 2019-04-08T16:00:00 | E186: LRKPCGSA | F186: 2.130937338 | G186: 0.001582249119 | H186: =G186*SUMIF('Manual Inputs'!$B$11:$B$22,'Expanded kW'!A186,'Manual Inputs'!$C$11:$C$22) -> 960.5480762
A187: 4 | B187: FALSE | C187: ON | D187: 2019-04-08T17:00:00 | E187: LRKPCGSA | F187: 1.837578416 | G187: 0.001364426245 | H187: =G187*SUMIF('Manual Inputs'!$B$11:$B$22,'Expanded kW'!A187,'Manual Inputs'!$C$11:$C$22) -> 828.3126777
A188: 4 | B188: FALSE | C188: ON | D188: 2019-04-08T18:00:00 | E188: LRKPCGSA | F188: 1.714890838 | G188: 0.001273329098 | H188: =G188*SUMIF('Manual Inputs'!$B$11:$B$22,'Expanded kW'!A188,'Manual Inputs'!$C$11:$C$22) -> 773.0096356
A189: 4 | B189: FALSE | C189: ON | D189: 2019-04-08T19:00:00 | E189: LRKPCGSA | F189: 1.662278533 | G189: 0.001234263766 | H189: =G189*SUMIF('Manual Inputs'!$B$11:$B$22,'Expanded kW'!A189,'Manual Inputs'!$C$11:$C$22) -> 749.2939462
A190: 4 | B190: FALSE | C190: ON | D190: 2019-04-08T20:00:00 | E190: LRKPCGSA | F190: 1.670499563 | G190: 0.00124036799 | H190: =G190*SUMIF('Manual Inputs'!$B$11:$B$22,'Expanded kW'!A190,'Manual Inputs'!$C$11:$C$22) -> 752.9996839
A191: 4 | B191: FALSE | C191: OFF | D191: 2019-04-08T21:00:00 | E191: LRKPCGSA | F191: 1.735871792 | G191: 0.001288907733 | H191: =G191*SUMIF('Manual Inputs'!$B$11:$B$22,'Expanded kW'!A191,'Manual Inputs'!$C$11:$C$22) -> 782.4670771
A192: 4 | B192: FALSE | C192: OFF | D192: 2019-04-08T22:00:00 | E192: LRKPCGSA | F192: 1.609211802 | G192: 0.001194861018 | H192: =G192*SUMIF('Manual Inputs'!$B$11:$B$22,'Expanded kW'!A192,'Manual Inputs'!$C$11:$C$22) -> 725.3734184
A193: 4 | B193: FALSE | C193: OFF | D193: 2019-04-08T23:00:00 | E193: LRKPCGSA | F193: 1.518264055 | G193: 0.001127331115 | H193: =G193*SUMIF('Manual Inputs'!$B$11:$B$22,'Expanded kW'!A193,'Manual Inputs'!$C$11:$C$22) -> 684.3775232
A194: =MONTH(D194) -> 4 | B194: =IF(ISNA(VLOOKUP(DATE(YEAR(D194),MONTH(D194),DAY(D194)),Holidays,1,FALSE)),FALSE,TRUE) -> FALSE | C194: =IF(OR(HOUR(D194)<PkStart,HOUR(D194)>OPkStart-1,WEEKDAY(D194,2)>5,B194)=TRUE,"OFF","ON") -> OFF | D194: 2019-04-09 | E194: LRKPCGSA | F194: 1.488111734 | G194: =IF(SUMIF($A$2:$A$8785,A194,$F$2:$F$8785)=0,0,F194/SUMIF($A$2:$A$8785,A194,$F$2:$F$8785)) -> 0.001104942618 | H194: =G194*SUMIF('Manual Inputs'!$B$11:$B$22,'Expanded kW'!A194,'Manual Inputs'!$C$11:$C$22) -> 670.7859674
A195: 4 | B195: FALSE | C195: OFF | D195: 2019-04-09T01:00:00 | E195: LRKPCGSA | F195: 1.464951992 | G195: 0.001087746204 | H195: =G195*SUMIF('Manual Inputs'!$B$11:$B$22,'Expanded kW'!A195,'Manual Inputs'!$C$11:$C$22) -> 660.3464085
A196: 4 | B196: FALSE | C196: OFF | D196: =+D195+1/24 -> 2019-04-09T02:00:00 | E196: =+E195 -> LRKPCGSA | F196: 1.375421047 | G196: 0.001021268294 | H196: =G196*SUMIF('Manual Inputs'!$B$11:$B$22,'Expanded kW'!A196,'Manual Inputs'!$C$11:$C$22) -> 619.9891557
A197: 4 | B197: FALSE | C197: OFF | D197: 2019-04-09T03:00:00 | E197: LRKPCGSA | F197: 1.235435963 | G197: 0.0009173275202 | H197: =G197*SUMIF('Manual Inputs'!$B$11:$B$22,'Expanded kW'!A197,'Manual Inputs'!$C$11:$C$22) -> 556.8890348
A198: 4 | B198: FALSE | C198: OFF | D198: 2019-04-09T04:00:00 | E198: LRKPCGSA | F198: 1.284087539 | G198: 0.000953451958 | H198: =G198*SUMIF('Manual Inputs'!$B$11:$B$22,'Expanded kW'!A198,'Manual Inputs'!$C$11:$C$22) -> 578.8193736
A199: 4 | B199: FALSE | C199: OFF | D199: 2019-04-09T05:00:00 | E199: LRKPCGSA | F199: 1.307385921 | G199: 0.0009707513149 | H199: =G199*SUMIF('Manual Inputs'!$B$11:$B$22,'Expanded kW'!A199,'Manual Inputs'!$C$11:$C$22) -> 589.3214265
A200: 4 | B200: FALSE | C200: OFF | D200: 2019-04-09T06:00:00 | E200: LRKPCGSA | F200: 1.593557119 | G200: 0.001183237209 | H200: =G200*SUMIF('Manual Inputs'!$B$11:$B$22,'Expanded kW'!A200,'Manual Inputs'!$C$11:$C$22) -> 718.3168637
... 8585 more rows

Sheet Monthly Data
A1: ='Manual Inputs'!D1 -> Kentucky Power Co.
A2: =+'Manual Inputs'!D2 -> Kentucky
A3: Monthly Summary of Sample Data
A4: =CustClass & " Customers" -> General Service - Primary Customers
A5: ="For the Test Year Ended " & TEXT(+DATE(YEAR(ReportYr)+1,MONTH(ReportYr),DAY(ReportYr))-1,"Mmmm d, yyyy") -> For the Test Year Ended March 31, 2020
A6: ="Based on Sample Period Ended " & TEXT(+DATE(YEAR(TYBegin)+1,MONTH(TYBegin),DAY(TYBegin))-1,"Mmmm d, yyyy") -> Based on Sample Period Ended March 31, 2020
C8: ON | E8: OFF
C9: NCP | H9: SNCP | N9: Energy
A10: Year | B10: Month | C10: On-Peak | D10: LF | E10: Off-Peak | F10: LF | H10: On-Peak | I10: LF | J10: Off-Peak | K10: LF | M10: CP | N10: On-Peak | O10: Off-Peak | P10: Total
A11: =+'Manual Inputs'!A11 -> 2019 | B11: =+'Manual Inputs'!B11 -> 4 | C11: =MAX(IF('Expanded kW'!$A$2:$A$8785=$B11,IF('Expanded kW'!$C$2:$C$8785=C$8,'Expanded kW'!$F$2:$F$8785,0),0)) -> 3.423554659 | D11: =IF(C11=0,0,$P11/C11/COUNTIF('Expanded kW'!$A$2:$A$8785,'Monthly Data'!$B11)) -> 0.5463690047 | E11: =MAX(IF('Expanded kW'!$A$2:$A$8785=$B11,IF('Expanded kW'!$C$2:$C$8785=E$8,'Expanded kW'!$F$2:$F$8785,0),0)) -> 2.476079464 | F11: =IF(E11=0,0,$P11/E11/COUNTIF('Expanded kW'!$A$2:$A$8785,'Monthly Data'!$B11)) -> 0.755437852 | H11: =+'LR Monthly'!G2 -> 5.940631238 | I11: =IF(H11=0,0,$P11/H11/COUNTIF('Expanded kW'!$A$2:$A$8785,'Monthly Data'!$B11)) -> 0.3148695949 | J11: =+'LR Monthly'!H2 -> 4.707290347 | K11: =IF(J11=0,0,$P11/J11/COUNTIF('Expanded kW'!$A$2:$A$8785,'Monthly Data'!$B11)) -> 0.3973674904 | M11: =VLOOKUP('Manual Inputs'!E27,'Expanded kW'!$D$2:$F$8785,3) -> 2.426206112 | N11: =SUMIFS('Expanded kW'!$F$2:$F$8785,'Expanded kW'!$A$2:$A$8785,$B11,'Expanded kW'!$C$2:$C$8785,C$8) -> 701.5947773 | O11: =SUMIFS('Expanded kW'!$F$2:$F$8785,'Expanded kW'!$A$2:$A$8785,$B11,'Expanded kW'!$C$2:$C$8785,E$8) -> 645.1826118 | P11: =SUM(N11:O11) -> 1346.777389
A12: =+'Manual Inputs'!A12 -> 2019 | B12: =+'Manual Inputs'!B12 -> 5 | C12: =MAX(IF('Expanded kW'!$A$2:$A$8785=$B12,IF('Expanded kW'!$C$2:$C$8785=C$8,'Expanded kW'!$F$2:$F$8785,0),0)) -> 3.568986177 | D12: =IF(C12=0,0,$P12/C12/COUNTIF('Expanded kW'!$A$2:$A$8785,'Monthly Data'!$B12)) -> 0.573221186 | E12: =MAX(IF('Expanded kW'!$A$2:$A$8785=$B12,IF('Expanded kW'!$C$2:$C$8785=E$8,'Expanded kW'!$F$2:$F$8785,0),0)) -> 3.156704664 | F12: =IF(E12=0,0,$P12/E12/COUNTIF('Expanded kW'!$A$2:$A$8785,'Monthly Data'!$B12)) -> 0.6480867572 | H12: =+'LR Monthly'!G3 -> 5.524090473 | I12: =IF(H12=0,0,$P12/H12/COUNTIF('Expanded kW'!$A$2:$A$8785,'Monthly Data'!$B12)) -> 0.3703448557 | J12: =+'LR Monthly'!H3 -> 4.700381206 | K12: =IF(J12=0,0,$P12/J12/COUNTIF('Expanded kW'!$A$2:$A$8785,'Monthly Data'!$B12)) -> 0.4352452279 | M12: =VLOOKUP('Manual Inputs'!E28,'Expanded kW'!$D$2:$F$8785,3) -> 3.498996258 | N12: =SUMIFS('Expanded kW'!$F$2:$F$8785,'Expanded kW'!$A$2:$A$8785,$B12,'Expanded kW'!$C$2:$C$8785,C$8) -> 808.9742796 | O12: =SUMIFS('Expanded kW'!$F$2:$F$8785,'Expanded kW'!$A$2:$A$8785,$B12,'Expanded kW'!$C$2:$C$8785,E$8) -> 713.1146765 | P12: =SUM(N12:O12) -> 1522.088956
A13: =+'Manual Inputs'!A13 -> 2019 | B13: =+'Manual Inputs'!B13 -> 6 | C13: =MAX(IF('Expanded kW'!$A$2:$A$8785=$B13,IF('Expanded kW'!$C$2:$C$8785=C$8,'Expanded kW'!$F$2:$F$8785,0),0)) -> 3.813999414 | D13: =IF(C13=0,0,$P13/C13/COUNTIF('Expanded kW'!$A$2:$A$8785,'Monthly Data'!$B13)) -> 0.5570534781 | E13: =MAX(IF('Expanded kW'!$A$2:$A$8785=$B13,IF('Expanded kW'!$C$2:$C$8785=E$8,'Expanded kW'!$F$2:$F$8785,0),0)) -> 3.100746632 | F13: =IF(E13=0,0,$P13/E13/COUNTIF('Expanded kW'!$A$2:$A$8785,'Monthly Data'!$B13)) -> 0.6851903402 | H13: =+'LR Monthly'!G4 -> 5.580706817 | I13: =IF(H13=0,0,$P13/H13/COUNTIF('Expanded kW'!$A$2:$A$8785,'Monthly Data'!$B13)) -> 0.3807047582 | J13: =+'LR Monthly'!H4 -> 4.904434643 | K13: =IF(J13=0,0,$P13/J13/COUNTIF('Expanded kW'!$A$2:$A$8785,'Monthly Data'!$B13)) -> 0.4332001126 | M13: =VLOOKUP('Manual Inputs'!E29,'Expanded kW'!$D$2:$F$8785,3) -> 3.81327033 | N13: =SUMIFS('Expanded kW'!$F$2:$F$8785,'Expanded kW'!$A$2:$A$8785,$B13,'Expanded kW'!$C$2:$C$8785,C$8) -> 731.1208206 | O13: =SUMIFS('Expanded kW'!$F$2:$F$8785,'Expanded kW'!$A$2:$A$8785,$B13,'Expanded kW'!$C$2:$C$8785,E$8) -> 798.5923598 | P13: 1529.71318
A14: =+'Manual Inputs'!A14 -> 2019 | B14: =+'Manual Inputs'!B14 -> 7 | C14: =MAX(IF('Expanded kW'!$A$2:$A$8785=$B14,IF('Expanded kW'!$C$2:$C$8785=C$8,'Expanded kW'!$F$2:$F$8785,0),0)) -> 4.095588684 | D14: =IF(C14=0,0,$P14/C14/COUNTIF('Expanded kW'!$A$2:$A$8785,'Monthly Data'!$B14)) -> 0.6003535965 | E14: =MAX(IF('Expanded kW'!$A$2:$A$8785=$B14,IF('Expanded kW'!$C$2:$C$8785=E$8,'Expanded kW'!$F$2:$F$8785,0),0)) -> 3.453053713 | F14: =IF(E14=0,0,$P14/E14/COUNTIF('Expanded kW'!$A$2:$A$8785,'Monthly Data'!$B14)) -> 0.7120657831 | H14: =+'LR Monthly'!G5 -> 5.885637968 | I14: =IF(H14=0,0,$P14/H14/COUNTIF('Expanded kW'!$A$2:$A$8785,'Monthly Data'!$B14)) -> 0.4177629357 | J14: =+'LR Monthly'!H5 -> 5.164948765 | K14: =IF(J14=0,0,$P14/J14/COUNTIF('Expanded kW'!$A$2:$A$8785,'Monthly Data'!$B14)) -> 0.4760553314 | M14: =VLOOKUP('Manual Inputs'!E30,'Expanded kW'!$D$2:$F$8785,3) -> 4.095588684 | N14: =SUMIFS('Expanded kW'!$F$2:$F$8785,'Expanded kW'!$A$2:$A$8785,$B14,'Expanded kW'!$C$2:$C$8785,C$8) -> 955.6920818 | O14: =SUMIFS('Expanded kW'!$F$2:$F$8785,'Expanded kW'!$A$2:$A$8785,$B14,'Expanded kW'!$C$2:$C$8785,E$8) -> 873.656157 | P14: 1829.348239
A15: =+'Manual Inputs'!A15 -> 2019 | B15: =+'Manual Inputs'!B15 -> 8 | C15: =MAX(IF('Expanded kW'!$A$2:$A$8785=$B15,IF('Expanded kW'!$C$2:$C$8785=C$8,'Expanded kW'!$F$2:$F$8785,0),0)) -> 4.134711266 | D15: =IF(C15=0,0,$P15/C15/COUNTIF('Expanded kW'!$A$2:$A$8785,'Monthly Data'!$B15)) -> 0.582293999 | E15: =MAX(IF('Expanded kW'!$A$2:$A$8785=$B15,IF('Expanded kW'!$C$2:$C$8785=E$8,'Expanded kW'!$F$2:$F$8785,0),0)) -> 3.311240911 | F15: =IF(E15=0,0,$P15/E15/COUNTIF('Expanded kW'!$A$2:$A$8785,'Monthly Data'!$B15)) -> 0.7271043159 | H15: =+'LR Monthly'!G6 -> 6.026440146 | I15: =IF(H15=0,0,$P15/H15/COUNTIF('Expanded kW'!$A$2:$A$8785,'Monthly Data'!$B15)) -> 0.3995090799 | J15: =+'LR Monthly'!H6 -> 5.251714296 | K15: =IF(J15=0,0,$P15/J15/COUNTIF('Expanded kW'!$A$2:$A$8785,'Monthly Data'!$B15)) -> 0.4584441235 | M15: =VLOOKUP('Manual Inputs'!E31,'Expanded kW'!$D$2:$F$8785,3) -> 3.986428261 | N15: =SUMIFS('Expanded kW'!$F$2:$F$8785,'Expanded kW'!$A$2:$A$8785,$B15,'Expanded kW'!$C$2:$C$8785,C$8) -> 926.4867219 | O15: =SUMIFS('Expanded kW'!$F$2:$F$8785,'Expanded kW'!$A$2:$A$8785,$B15,'Expanded kW'!$C$2:$C$8785,E$8) -> 864.780741 | P15: 1791.267463
A16: =+'Manual Inputs'!A16 -> 2019 | B16: =+'Manual Inputs'!B16 -> 9 | C16: =MAX(IF('Expanded kW'!$A$2:$A$8785=$B16,IF('Expanded kW'!$C$2:$C$8785=C$8,'Expanded kW'!$F$2:$F$8785,0),0)) -> 4.104615211 | D16: =IF(C16=0,0,$P16/C16/COUNTIF('Expanded kW'!$A$2:$A$8785,'Monthly Data'!$B16)) -> 0.5746433861 | E16: =MAX(IF('Expanded kW'!$A$2:$A$8785=$B16,IF('Expanded kW'!$C$2:$C$8785=E$8,'Expanded kW'!$F$2:$F$8785,0),0)) -> 3.145136595 | F16: =IF(E16=0,0,$P16/E16/COUNTIF('Expanded kW'!$A$2:$A$8785,'Monthly Data'!$B16)) -> 0.7499483449 | H16: =+'LR Monthly'!G7 -> 5.951852591 | I16: =IF(H16=0,0,$P16/H16/COUNTIF('Expanded kW'!$A$2:$A$8785,'Monthly Data'!$B16)) -> 0.3962950943 | J16: =+'LR Monthly'!H7 -> 5.132117625 | K16: =IF(J16=0,0,$P16/J16/COUNTIF('Expanded kW'!$A$2:$A$8785,'Monthly Data'!$B16)) -> 0.4595939057 | M16: =VLOOKUP('Manual Inputs'!E32,'Expanded kW'!$D$2:$F$8785,3) -> 4.104615211 | N16: =SUMIFS('Expanded kW'!$F$2:$F$8785,'Expanded kW'!$A$2:$A$8785,$B16,'Expanded kW'!$C$2:$C$8785,C$8) -> 864.094478 | O16: =SUMIFS('Expanded kW'!$F$2:$F$8785,'Expanded kW'!$A$2:$A$8785,$B16,'Expanded kW'!$C$2:$C$8785,E$8) -> 834.1623104 | P16: 1698.256788
A17: =+'Manual Inputs'!A17 -> 2019 | B17: =+'Manual Inputs'!B17 -> 10 | C17: =MAX(IF('Expanded kW'!$A$2:$A$8785=$B17,IF('Expanded kW'!$C$2:$C$8785=C$8,'Expanded kW'!$F$2:$F$8785,0),0)) -> 4.011657238 | D17: =IF(C17=0,0,$P17/C17/COUNTIF('Expanded kW'!$A$2:$A$8785,'Monthly Data'!$B17)) -> 0.484852467 | E17: =MAX(IF('Expanded kW'!$A$2:$A$8785=$B17,IF('Expanded kW'!$C$2:$C$8785=E$8,'Expanded kW'!$F$2:$F$8785,0),0)) -> 2.612156153 | F17: =IF(E17=0,0,$P17/E17/COUNTIF('Expanded kW'!$A$2:$A$8785,'Monthly Data'!$B17)) -> 0.7446193086 | H17: =+'LR Monthly'!G8 -> 6.291911375 | I17: =IF(H17=0,0,$P17/H17/COUNTIF('Expanded kW'!$A$2:$A$8785,'Monthly Data'!$B17)) -> 0.309136889 | J17: =+'LR Monthly'!H8 -> 4.667549169 | K17: =IF(J17=0,0,$P17/J17/COUNTIF('Expanded kW'!$A$2:$A$8785,'Monthly Data'!$B17)) -> 0.4167201754 | M17: =VLOOKUP('Manual Inputs'!E33,'Expanded kW'!$D$2:$F$8785,3) -> 3.85066843 | N17: =SUMIFS('Expanded kW'!$F$2:$F$8785,'Expanded kW'!$A$2:$A$8785,$B17,'Expanded kW'!$C$2:$C$8785,C$8) -> 767.6046128 | O17: =SUMIFS('Expanded kW'!$F$2:$F$8785,'Expanded kW'!$A$2:$A$8785,$B17,'Expanded kW'!$C$2:$C$8785,E$8) -> 679.5214471 | P17: 1447.12606
A18: =+'Manual Inputs'!A18 -> 2019 | B18: =+'Manual Inputs'!B18 -> 11 | C18: =MAX(IF('Expanded kW'!$A$2:$A$8785=$B18,IF('Expanded kW'!$C$2:$C$8785=C$8,'Expanded kW'!$F$2:$F$8785,0),0)) -> 3.888700485 | D18: =IF(C18=0,0,$P18/C18/COUNTIF('Expanded kW'!$A$2:$A$8785,'Monthly Data'!$B18)) -> 0.6043209791 | E18: =MAX(IF('Expanded kW'!$A$2:$A$8785=$B18,IF('Expanded kW'!$C$2:$C$8785=E$8,'Expanded kW'!$F$2:$F$8785,0),0)) -> 3.502948999 | F18: =IF(E18=0,0,$P18/E18/COUNTIF('Expanded kW'!$A$2:$A$8785,'Monthly Data'!$B18)) -> 0.6708699685 | H18: =+'LR Monthly'!G9 -> 6.406852926 | I18: =IF(H18=0,0,$P18/H18/COUNTIF('Expanded kW'!$A$2:$A$8785,'Monthly Data'!$B18)) -> 0.3667983817 | J18: =+'LR Monthly'!H9 -> 5.906242168 | K18: =IF(J18=0,0,$P18/J18/COUNTIF('Expanded kW'!$A$2:$A$8785,'Monthly Data'!$B18)) -> 0.3978880679 | M18: =VLOOKUP('Manual Inputs'!E34,'Expanded kW'!$D$2:$F$8785,3) -> 3.682198048 | N18: =SUMIFS('Expanded kW'!$F$2:$F$8785,'Expanded kW'!$A$2:$A$8785,$B18,'Expanded kW'!$C$2:$C$8785,C$8) -> 759.2918231 | O18: =SUMIFS('Expanded kW'!$F$2:$F$8785,'Expanded kW'!$A$2:$A$8785,$B18,'Expanded kW'!$C$2:$C$8785,E$8) -> 932.7249418 | P18: 1692.016765
A19: =+'Manual Inputs'!A19 -> 2019 | B19: =+'Manual Inputs'!B19 -> 12 | C19: =MAX(IF('Expanded kW'!$A$2:$A$8785=$B19,IF('Expanded kW'!$C$2:$C$8785=C$8,'Expanded kW'!$F$2:$F$8785,0),0)) -> 4.115733624 | D19: =IF(C19=0,0,$P19/C19/COUNTIF('Expanded kW'!$A$2:$A$8785,'Monthly Data'!$B19)) -> 0.5899139251 | E19: =MAX(IF('Expanded kW'!$A$2:$A$8785=$B19,IF('Expanded kW'!$C$2:$C$8785=E$8,'Expanded kW'!$F$2:$F$8785,0),0)) -> 3.348292351 | F19: =IF(E19=0,0,$P19/E19/COUNTIF('Expanded kW'!$A$2:$A$8785,'Monthly Data'!$B19)) -> 0.7251244283 | H19: =+'LR Monthly'!G10 -> 6.681888881 | I19: =IF(H19=0,0,$P19/H19/COUNTIF('Expanded kW'!$A$2:$A$8785,'Monthly Data'!$B19)) -> 0.3633596158 | J19: =+'LR Monthly'!H10 -> 5.684286429 | K19: =IF(J19=0,0,$P19/J19/COUNTIF('Expanded kW'!$A$2:$A$8785,'Monthly Data'!$B19)) -> 0.4271298793 | M19: =VLOOKUP('Manual Inputs'!E35,'Expanded kW'!$D$2:$F$8785,3) -> 3.641865015 | N19: =SUMIFS('Expanded kW'!$F$2:$F$8785,'Expanded kW'!$A$2:$A$8785,$B19,'Expanded kW'!$C$2:$C$8785,C$8) -> 839.0021334 | O19: =SUMIFS('Expanded kW'!$F$2:$F$8785,'Expanded kW'!$A$2:$A$8785,$B19,'Expanded kW'!$C$2:$C$8785,E$8) -> 967.3767276 | P19: 1806.378861
A20: =+'Manual Inputs'!A20 -> 2020 | B20: =+'Manual Inputs'!B20 -> 1 | C20: =MAX(IF('Expanded kW'!$A$2:$A$8785=$B20,IF('Expanded kW'!$C$2:$C$8785=C$8,'Expanded kW'!$F$2:$F$8785,0),0)) -> 4.21330452 | D20: =IF(C20=0,0,$P20/C20/COUNTIF('Expanded kW'!$A$2:$A$8785,'Monthly Data'!$B20)) -> 0.5758792445 | E20: =MAX(IF('Expanded kW'!$A$2:$A$8785=$B20,IF('Expanded kW'!$C$2:$C$8785=E$8,'Expanded kW'!$F$2:$F$8785,0),0)) -> 3.64218545 | F20: =IF(E20=0,0,$P20/E20/COUNTIF('Expanded kW'!$A$2:$A$8785,'Monthly Data'!$B20)) -> 0.6661809666 | H20: =+'LR Monthly'!G11 -> 6.746357823 | I20: =IF(H20=0,0,$P20/H20/COUNTIF('Expanded kW'!$A$2:$A$8785,'Monthly Data'!$B20)) -> 0.359654007 | J20: =+'LR Monthly'!H11 -> 5.793366867 | K20: =IF(J20=0,0,$P20/J20/COUNTIF('Expanded kW'!$A$2:$A$8785,'Monthly Data'!$B20)) -> 0.4188159803 | M20: =VLOOKUP('Manual Inputs'!E36,'Expanded kW'!$D$2:$F$8785,3) -> 4.025988102 | N20: =SUMIFS('Expanded kW'!$F$2:$F$8785,'Expanded kW'!$A$2:$A$8785,$B20,'Expanded kW'!$C$2:$C$8785,C$8) -> 876.4710582 | O20: =SUMIFS('Expanded kW'!$F$2:$F$8785,'Expanded kW'!$A$2:$A$8785,$B20,'Expanded kW'!$C$2:$C$8785,E$8) -> 928.7367816 | P20: 1805.20784
A21: =+'Manual Inputs'!A21 -> 2020 | B21: =+'Manual Inputs'!B21 -> 2 | C21: =MAX(IF('Expanded kW'!$A$2:$A$8785=$B21,IF('Expanded kW'!$C$2:$C$8785=C$8,'Expanded kW'!$F$2:$F$8785,0),0)) -> 3.802606344 | D21: =IF(C21=0,0,$P21/C21/COUNTIF('Expanded kW'!$A$2:$A$8785,'Monthly Data'!$B21)) -> 0.6529183129 | E21: =MAX(IF('Expanded kW'!$A$2:$A$8785=$B21,IF('Expanded kW'!$C$2:$C$8785=E$8,'Expanded kW'!$F$2:$F$8785,0),0)) -> 3.629819393 | F21: =IF(E21=0,0,$P21/E21/COUNTIF('Expanded kW'!$A$2:$A$8785,'Monthly Data'!$B21)) -> 0.6839985823 | H21: =+'LR Monthly'!G12 -> 6.194217471 | I21: =IF(H21=0,0,$P21/H21/COUNTIF('Expanded kW'!$A$2:$A$8785,'Monthly Data'!$B21)) -> 0.4008240477 | J21: =+'LR Monthly'!H12 -> 5.858801362 | K21: =IF(J21=0,0,$P21/J21/COUNTIF('Expanded kW'!$A$2:$A$8785,'Monthly Data'!$B21)) -> 0.423771206 | M21: =VLOOKUP('Manual Inputs'!E37,'Expanded kW'!$D$2:$F$8785,3) -> 3.629819393 | N21: =SUMIFS('Expanded kW'!$F$2:$F$8785,'Expanded kW'!$A$2:$A$8785,$B21,'Expanded kW'!$C$2:$C$8785,C$8) -> 753.3197894 | O21: =SUMIFS('Expanded kW'!$F$2:$F$8785,'Expanded kW'!$A$2:$A$8785,$B21,'Expanded kW'!$C$2:$C$8785,E$8) -> 974.7029685 | P21: 1728.022758
A22: =+'Manual Inputs'!A22 -> 2020 | B22: =+'Manual Inputs'!B22 -> 3 | C22: =MAX(IF('Expanded kW'!$A$2:$A$8785=$B22,IF('Expanded kW'!$C$2:$C$8785=C$8,'Expanded kW'!$F$2:$F$8785,0),0)) -> 3.306289673 | D22: =IF(C22=0,0,$P22/C22/COUNTIF('Expanded kW'!$A$2:$A$8785,'Monthly Data'!$B22)) -> 0.5943613278 | E22: =MAX(IF('Expanded kW'!$A$2:$A$8785=$B22,IF('Expanded kW'!$C$2:$C$8785=E$8,'Expanded kW'!$F$2:$F$8785,0),0)) -> 3.465708971 | F22: =IF(E22=0,0,$P22/E22/COUNTIF('Expanded kW'!$A$2:$A$8785,'Monthly Data'!$B22)) -> 0.5670212752 | H22: =+'LR Monthly'!G13 -> 5.682009139 | I22: =IF(H22=0,0,$P22/H22/COUNTIF('Expanded kW'!$A$2:$A$8785,'Monthly Data'!$B22)) -> 0.3458513832 | J22: =+'LR Monthly'!H13 -> 5.670727853 | K22: =IF(J22=0,0,$P22/J22/COUNTIF('Expanded kW'!$A$2:$A$8785,'Monthly Data'!$B22)) -> 0.3465394163 | M22: =VLOOKUP('Manual Inputs'!E38,'Expanded kW'!$D$2:$F$8785,3) -> 3.231940985 | N22: =SUMIFS('Expanded kW'!$F$2:$F$8785,'Expanded kW'!$A$2:$A$8785,$B22,'Expanded kW'!$C$2:$C$8785,C$8) -> 668.9850613 | O22: =SUMIFS('Expanded kW'!$F$2:$F$8785,'Expanded kW'!$A$2:$A$8785,$B22,'Expanded kW'!$C$2:$C$8785,E$8) -> 793.0721945 | P22: 1462.057256
A24: NOTE: The data above is not expanded but instead is the output from Load Research data.

Sheet Summary
A1: ='Manual Inputs'!D1 -> Kentucky Power Co.
A2: =+'Manual Inputs'!D2 -> Kentucky
A3: Annual Summary of Sample Data
A4: =CustClass & " Customers" -> General Service - Primary Customers
A5: =+'Monthly Data'!A5 -> For the Test Year Ended March 31, 2020
A6: =+'Monthly Data'!A6 -> Based on Sample Period Ended March 31, 2020
A8: On-Peak SNCP | B8: =+'Manual Inputs'!H11 -> 9.158550738
A9: Off-Peak SNCP | B9: =+'Manual Inputs'!I11 -> 8.095108053
A10: Total SNCP | B10: =+'Manual Inputs'!G11 -> 9.398557115
A12: On-Peak Energy | B12: =SUMIF('Expanded kW'!C2:C8785,"ON",'Expanded kW'!F2:F8785) -> 9652.637638 | C12: =+B12/$B$14 -> 0.4910219355 | E12: Off-Peak SNCP LF | F12: =+B$14/B8/(TYDays*24) -> 0.2443576986
A13: Off-Peak Energy | B13: =SUMIF('Expanded kW'!C2:C8785,"OFF",'Expanded kW'!F2:F8785) -> 10005.62392 | C13: =+B13/$B$14 -> 0.5089780645 | E13: On-Peak SNCP LF | F13: =+B$14/B9/(TYDays*24) -> 0.2764586175
A14: Total Energy | B14: =SUM('Expanded kW'!F2:F8785) -> 19658.26156 | E14: Total SNCP LF | F14: =+B$14/B10/(TYDays*24) -> 0.238117655
A16: NOTE: The data above is not expanded but instead is the output from Load Research data.

Sheet Peaks
A1: ='Manual Inputs'!D1 -> Kentucky Power Co.
A2: =+'Manual Inputs'!D2 -> Kentucky
A3: Peak and Off-Peak Statistics (kW)
A4: =CustClass & " Customers" -> General Service - Primary Customers
A5: =+'Monthly Data'!A5 -> For the Test Year Ended March 31, 2020
A6: =+'Monthly Data'!A6 -> Based on Sample Period Ended March 31, 2020
A9: Year | B9: Month | C9: Total Sample | D9: Total Expanded | F9: Customers | G9: Coincident Peak | H9: NCP Peak | I9: NCP Off-Peak | J9: NCP Total | K9: SNCP Peak | L9: SNCP Off-Peak | M9: SNCP Total
A10: =+'Manual Inputs'!A11 -> 2019 | B10: =+'Manual Inputs'!B11 -> 4 | C10: =SUMIF('Expanded kW'!$A$2:$A$8785,B10,'Expanded kW'!$F$2:$F$8785) -> 1346.777389 | D10: =SUMIF('Expanded kW'!$A$2:$A$8785,B10,'Expanded kW'!$H$2:$H$8785) -> 607077.6495 | F10: =+'Manual Inputs'!D11 -> 909 | G10: =ROUND(VLOOKUP('Manual Inputs'!E27,'Expanded kW'!$D$2:$H$8785,5),0) -> 1094 | H10: =IF(C10=0,0,ROUND(+$D10/C10*'Monthly Data'!C11,0)) -> 1543 | I10: =IF(C10=0,0,ROUND(+$D10/C10*'Monthly Data'!E11,0)) -> 1116 | J10: =MAX(H10:I10) -> 1543 | K10: =IF($C10=0,0,+$D10/$C10*'LR Monthly'!G2) -> 2677.817787 | L10: =IF($C10=0,0,+$D10/$C10*'LR Monthly'!H2) -> 2121.873134 | M10: =IF($C10=0,0,+$D10/$C10*'LR Monthly'!F2) -> 2808.083795
A11: =+'Manual Inputs'!A12 -> 2019 | B11: =+'Manual Inputs'!B12 -> 5 | C11: =SUMIF('Expanded kW'!$A$2:$A$8785,B11,'Expanded kW'!$F$2:$F$8785) -> 1522.088956 | D11: =SUMIF('Expanded kW'!$A$2:$A$8785,B11,'Expanded kW'!$H$2:$H$8785) -> 509553.3386 | F11: =+'Manual Inputs'!D12 -> 909 | G11: =ROUND(VLOOKUP('Manual Inputs'!E28,'Expanded kW'!$D$2:$H$8785,5),0) -> 1171 | H11: =IF(C11=0,0,ROUND(+$D11/C11*'Monthly Data'!C12,0)) -> 1195 | I11: =IF(C11=0,0,ROUND(+$D11/C11*'Monthly Data'!E12,0)) -> 1057 | J11: =MAX(H11:I11) -> 1195 | K11: =IF($C11=0,0,+$D11/$C11*'LR Monthly'!G3) -> 1849.312901 | L11: =IF($C11=0,0,+$D11/$C11*'LR Monthly'!H3) -> 1573.557791 | M11: =IF($C11=0,0,+$D11/$C11*'LR Monthly'!F3) -> 1919.185821
A12: =+'Manual Inputs'!A13 -> 2019 | B12: =+'Manual Inputs'!B13 -> 6 | C12: =SUMIF('Expanded kW'!$A$2:$A$8785,B12,'Expanded kW'!$F$2:$F$8785) -> 1529.71318 | D12: =SUMIF('Expanded kW'!$A$2:$A$8785,B12,'Expanded kW'!$H$2:$H$8785) -> 506125.4259 | F12: =+'Manual Inputs'!D13 -> 909 | G12: =ROUND(VLOOKUP('Manual Inputs'!E29,'Expanded kW'!$D$2:$H$8785,5),0) -> 1262 | H12: =IF(C12=0,0,ROUND(+$D12/C12*'Monthly Data'!C13,0)) -> 1262 | I12: =IF(C12=0,0,ROUND(+$D12/C12*'Monthly Data'!E13,0)) -> 1026 | J12: 1262 | K12: =IF($C12=0,0,+$D12/$C12*'LR Monthly'!G4) -> 1846.449159 | L12: =IF($C12=0,0,+$D12/$C12*'LR Monthly'!H4) -> 1622.695747 | M12: =IF($C12=0,0,+$D12/$C12*'LR Monthly'!F4) -> 1936.651314
A13: =+'Manual Inputs'!A14 -> 2019 | B13: =+'Manual Inputs'!B14 -> 7 | C13: =SUMIF('Expanded kW'!$A$2:$A$8785,B13,'Expanded kW'!$F$2:$F$8785) -> 1829.348239 | D13: =SUMIF('Expanded kW'!$A$2:$A$8785,B13,'Expanded kW'!$H$2:$H$8785) -> 538287.8718 | F13: =+'Manual Inputs'!D14 -> 909 | G13: =ROUND(VLOOKUP('Manual Inputs'!E30,'Expanded kW'!$D$2:$H$8785,5),0) -> 1205 | H13: =IF(C13=0,0,ROUND(+$D13/C13*'Monthly Data'!C14,0)) -> 1205 | I13: =IF(C13=0,0,ROUND(+$D13/C13*'Monthly Data'!E14,0)) -> 1016 | J13: 1205 | K13: =IF($C13=0,0,+$D13/$C13*'LR Monthly'!G5) -> 1731.855897 | L13: =IF($C13=0,0,+$D13/$C13*'LR Monthly'!H5) -> 1519.792251 | M13: =IF($C13=0,0,+$D13/$C13*'LR Monthly'!F5) -> 1791.675192
A14: =+'Manual Inputs'!A15 -> 2019 | B14: =+'Manual Inputs'!B15 -> 8 | C14: =SUMIF('Expanded kW'!$A$2:$A$8785,B14,'Expanded kW'!$F$2:$F$8785) -> 1791.267463 | D14: =SUMIF('Expanded kW'!$A$2:$A$8785,B14,'Expanded kW'!$H$2:$H$8785) -> 521523.7938 | F14: =+'Manual Inputs'!D15 -> 909 | G14: =ROUND(VLOOKUP('Manual Inputs'!E31,'Expanded kW'!$D$2:$H$8785,5),0) -> 1161 | H14: =IF(C14=0,0,ROUND(+$D14/C14*'Monthly Data'!C15,0)) -> 1204 | I14: =IF(C14=0,0,ROUND(+$D14/C14*'Monthly Data'!E15,0)) -> 964 | J14: 1204 | K14: =IF($C14=0,0,+$D14/$C14*'LR Monthly'!G6) -> 1754.585506 | L14: =IF($C14=0,0,+$D14/$C14*'LR Monthly'!H6) -> 1529.025688 | M14: =IF($C14=0,0,+$D14/$C14*'LR Monthly'!F6) -> 1811.756565
A15: =+'Manual Inputs'!A16 -> 2019 | B15: =+'Manual Inputs'!B16 -> 9 | C15: =SUMIF('Expanded kW'!$A$2:$A$8785,B15,'Expanded kW'!$F$2:$F$8785) -> 1698.256788 | D15: =SUMIF('Expanded kW'!$A$2:$A$8785,B15,'Expanded kW'!$H$2:$H$8785) -> 546641.2275 | F15: =+'Manual Inputs'!D16 -> 909 | G15: =ROUND(VLOOKUP('Manual Inputs'!E32,'Expanded kW'!$D$2:$H$8785,5),0) -> 1321 | H15: =IF(C15=0,0,ROUND(+$D15/C15*'Monthly Data'!C16,0)) -> 1321 | I15: =IF(C15=0,0,ROUND(+$D15/C15*'Monthly Data'!E16,0)) -> 1012 | J15: 1321 | K15: =IF($C15=0,0,+$D15/$C15*'LR Monthly'!G7) -> 1915.804505 | L15: =IF($C15=0,0,+$D15/$C15*'LR Monthly'!H7) -> 1651.945158 | M15: =IF($C15=0,0,+$D15/$C15*'LR Monthly'!F7) -> 1978.483317
A16: =+'Manual Inputs'!A17 -> 2019 | B16: =+'Manual Inputs'!B17 -> 10 | C16: =SUMIF('Expanded kW'!$A$2:$A$8785,B16,'Expanded kW'!$F$2:$F$8785) -> 1447.12606 | D16: =SUMIF('Expanded kW'!$A$2:$A$8785,B16,'Expanded kW'!$H$2:$H$8785) -> 581858.9612 | F16: =+'Manual Inputs'!D17 -> 909 | G16: =ROUND(VLOOKUP('Manual Inputs'!E33,'Expanded kW'!$D$2:$H$8785,5),0) -> 1548 | H16: =IF(C16=0,0,ROUND(+$D16/C16*'Monthly Data'!C17,0)) -> 1613 | I16: =IF(C16=0,0,ROUND(+$D16/C16*'Monthly Data'!E17,0)) -> 1050 | J16: 1613 | K16: =IF($C16=0,0,+$D16/$C16*'LR Monthly'!G8) -> 2529.845269 | L16: =IF($C16=0,0,+$D16/$C16*'LR Monthly'!H8) -> 1876.72338 | M16: =IF($C16=0,0,+$D16/$C16*'LR Monthly'!F8) -> 2581.460173
A17: =+'Manual Inputs'!A18 -> 2019 | B17: =+'Manual Inputs'!B18 -> 11 | C17: =SUMIF('Expanded kW'!$A$2:$A$8785,B17,'Expanded kW'!$F$2:$F$8785) -> 1692.016765 | D17: =SUMIF('Expanded kW'!$A$2:$A$8785,B17,'Expanded kW'!$H$2:$H$8785) -> 655007.9191 | F17: =+'Manual Inputs'!D18 -> 909 | G17: =ROUND(VLOOKUP('Manual Inputs'!E34,'Expanded kW'!$D$2:$H$8785,5),0) -> 1425 | H17: =IF(C17=0,0,ROUND(+$D17/C17*'Monthly Data'!C18,0)) -> 1505 | I17: =IF(C17=0,0,ROUND(+$D17/C17*'Monthly Data'!E18,0)) -> 1356 | J17: 1505 | K17: =IF($C17=0,0,+$D17/$C17*'LR Monthly'!G9) -> 2480.199659 | L17: =IF($C17=0,0,+$D17/$C17*'LR Monthly'!H9) -> 2286.404882 | M17: =IF($C17=0,0,+$D17/$C17*'LR Monthly'!F9) -> 2659.955355
A18: =+'Manual Inputs'!A19 -> 2019 | B18: =+'Manual Inputs'!B19 -> 12 | C18: =SUMIF('Expanded kW'!$A$2:$A$8785,B18,'Expanded kW'!$F$2:$F$8785) -> 1806.378861 | D18: =SUMIF('Expanded kW'!$A$2:$A$8785,B18,'Expanded kW'!$H$2:$H$8785) -> 862046.0796 | F18: =+'Manual Inputs'!D19 -> 909 | G18: =ROUND(VLOOKUP('Manual Inputs'!E35,'Expanded kW'!$D$2:$H$8785,5),0) -> 1738 | H18: =IF(C18=0,0,ROUND(+$D18/C18*'Monthly Data'!C19,0)) -> 1964 | I18: =IF(C18=0,0,ROUND(+$D18/C18*'Monthly Data'!E19,0)) -> 1598 | J18: 1964 | K18: =IF($C18=0,0,+$D18/$C18*'LR Monthly'!G10) -> 3188.753057 | L18: =IF($C18=0,0,+$D18/$C18*'LR Monthly'!H10) -> 2712.673923 | M18: =IF($C18=0,0,+$D18/$C18*'LR Monthly'!F10) -> 3280.992661
A19: =+'Manual Inputs'!A20 -> 2020 | B19: =+'Manual Inputs'!B20 -> 1 | C19: =SUMIF('Expanded kW'!$A$2:$A$8785,B19,'Expanded kW'!$F$2:$F$8785) -> 1805.20784 | D19: =SUMIF('Expanded kW'!$A$2:$A$8785,B19,'Expanded kW'!$H$2:$H$8785) -> 1043607.908 | F19: =+'Manual Inputs'!D20 -> 909 | G19: =ROUND(VLOOKUP('Manual Inputs'!E36,'Expanded kW'!$D$2:$H$8785,5),0) -> 2327 | H19: =IF(C19=0,0,ROUND(+$D19/C19*'Monthly Data'!C20,0)) -> 2436 | I19: =IF(C19=0,0,ROUND(+$D19/C19*'Monthly Data'!E20,0)) -> 2106 | J19: 2436 | K19: =IF($C19=0,0,+$D19/$C19*'LR Monthly'!G11) -> 3900.133946 | L19: =IF($C19=0,0,+$D19/$C19*'LR Monthly'!H11) -> 3349.200765 | M19: =IF($C19=0,0,+$D19/$C19*'LR Monthly'!F11) -> 4052.908706
A20: =+'Manual Inputs'!A21 -> 2020 | B20: =+'Manual Inputs'!B21 -> 2 | C20: =SUMIF('Expanded kW'!$A$2:$A$8785,B20,'Expanded kW'!$F$2:$F$8785) -> 1728.022758 | D20: =SUMIF('Expanded kW'!$A$2:$A$8785,B20,'Expanded kW'!$H$2:$H$8785) -> 895571.0806 | F20: =+'Manual Inputs'!D21 -> 909 | G20: =ROUND(VLOOKUP('Manual Inputs'!E37,'Expanded kW'!$D$2:$H$8785,5),0) -> 1881 | H20: =IF(C20=0,0,ROUND(+$D20/C20*'Monthly Data'!C21,0)) -> 1971 | I20: =IF(C20=0,0,ROUND(+$D20/C20*'Monthly Data'!E21,0)) -> 1881 | J20: 1971 | K20: =IF($C20=0,0,+$D20/$C20*'LR Monthly'!G12) -> 3210.236676 | L20: =IF($C20=0,0,+$D20/$C20*'LR Monthly'!H12) -> 3036.402757 | M20: =IF($C20=0,0,+$D20/$C20*'LR Monthly'!F12) -> 3486.323729
A21: =+'Manual Inputs'!A22 -> 2020 | B21: =+'Manual Inputs'!B22 -> 3 | C21: =SUMIF('Expanded kW'!$A$2:$A$8785,B21,'Expanded kW'!$F$2:$F$8785) -> 1462.057256 | D21: =SUMIF('Expanded kW'!$A$2:$A$8785,B21,'Expanded kW'!$H$2:$H$8785) -> 849116.0992 | F21: =+'Manual Inputs'!D22 -> 909 | G21: =ROUND(VLOOKUP('Manual Inputs'!E38,'Expanded kW'!$D$2:$H$8785,5),0) -> 1877 | H21: =IF(C21=0,0,ROUND(+$D21/C21*'Monthly Data'!C22,0)) -> 1920 | I21: =IF(C21=0,0,ROUND(+$D21/C21*'Monthly Data'!E22,0)) -> 2013 | J21: 2013 | K21: =IF($C21=0,0,+$D21/$C21*'LR Monthly'!G13) -> 3299.929204 | L21: =IF($C21=0,0,+$D21/$C21*'LR Monthly'!H13) -> 3293.377394 | M21: =IF($C21=0,0,+$D21/$C21*'LR Monthly'!F13) -> 3790.672795
A23: Total | C23: =SUM(C10:C21) -> 19658.26156 | D23: =SUM(D10:D21) -> 8116417.355 | F23: =SUM(F10:F21) -> 10908 | G23: 18010 | H23: 19139 | I23: 16195 | J23: 19232 | K23: 30384.92357 | L23: 26573.67287 | M23: 32098.14942
A24: Average | C24: =+C23/12 -> 1638.188463 | D24: =+D23/12 -> 676368.1129 | F24: =+F23/12 -> 909 | G24: 1500.833333 | H24: 1594.916667 | I24: 1349.583333 | J24: 1602.666667 | K24: 2532.076964 | L24: 2214.472739 | M24: 2674.845785
A25: Maximum | C25: =MAX(C10:C21) -> 1829.348239 | D25: =MAX(D10:D21) -> 1043607.908 | G25: =MAX(G10:G21) -> 2327 | H25: 2436 | I25: 2106 | J25: 2436 | K25: 3900.133946 | L25: 3349.200765 | M25: 4052.908706
A27: Annual SNCP | K27: =MAX(+Summary!B8*Peaks!D23/Peaks!C23,K25) -> 3900.133946 | L27: =MAX(+Summary!B9*Peaks!D23/Peaks!C23,L25) -> 3349.200765 | M27: =MAX(+Summary!B10*Peaks!D23/Peaks!C23,M25) -> 4052.908706

Sheet Load Factors
A1: ='Manual Inputs'!D1 -> Kentucky Power Co.
A2: =+'Manual Inputs'!D2 -> Kentucky
A3: Load Factor Report
A4: =CustClass & " Customers" -> General Service - Primary Customers
A5: =+'Monthly Data'!A5 -> For the Test Year Ended March 31, 2020
A6: =+'Monthly Data'!A6 -> Based on Sample Period Ended March 31, 2020
D8: NCP | H8: SNCP
A9: Year | B9: Month | C9: Coincidence Ratio | D9: Peak LF | E9: Off-Peak LF | F9: Total LF | H9: Peak LF | I9: Off-Peak LF | J9: Total LF
A10: =+'Manual Inputs'!A11 -> 2019 | B10: =+'Manual Inputs'!B11 -> 4 | C10: =IF(Peaks!J10=0,0,+Peaks!G10/Peaks!J10) -> 0.7090084251 | D10: =IF(Peaks!H10=0,0,Peaks!$D10/Peaks!H10/COUNTIF('Expanded kW'!$A$2:$A$8785,'Load Factors'!$B10)) -> 0.5464442009 | E10: =IF(Peaks!I10=0,0,Peaks!$D10/Peaks!I10/COUNTIF('Expanded kW'!$A$2:$A$8785,'Load Factors'!$B10)) -> 0.7555227617 | F10: =IF(Peaks!J10=0,0,Peaks!$D10/Peaks!J10/COUNTIF('Expanded kW'!$A$2:$A$8785,'Load Factors'!$B10)) -> 0.5464442009 | H10: =IF(Peaks!K10=0,0,Peaks!$D10/Peaks!K10/COUNTIF('Expanded kW'!$A$2:$A$8785,'Load Factors'!$B10)) -> 0.3148695949 | I10: =IF(Peaks!L10=0,0,Peaks!$D10/Peaks!L10/COUNTIF('Expanded kW'!$A$2:$A$8785,'Load Factors'!$B10)) -> 0.3973674904 | J10: =IF(Peaks!M10=0,0,Peaks!$D10/Peaks!M10/COUNTIF('Expanded kW'!$A$2:$A$8785,'Load Factors'!$B10)) -> 0.3002629065
A11: =+'Manual Inputs'!A12 -> 2019 | B11: =+'Manual Inputs'!B12 -> 5 | C11: =IF(Peaks!J11=0,0,+Peaks!G11/Peaks!J11) -> 0.979916318 | D11: =IF(Peaks!H11=0,0,Peaks!$D11/Peaks!H11/COUNTIF('Expanded kW'!$A$2:$A$8785,'Load Factors'!$B11)) -> 0.5731242842 | E11: =IF(Peaks!I11=0,0,Peaks!$D11/Peaks!I11/COUNTIF('Expanded kW'!$A$2:$A$8785,'Load Factors'!$B11)) -> 0.6479503496 | F11: =IF(Peaks!J11=0,0,Peaks!$D11/Peaks!J11/COUNTIF('Expanded kW'!$A$2:$A$8785,'Load Factors'!$B11)) -> 0.5731242842 | H11: =IF(Peaks!K11=0,0,Peaks!$D11/Peaks!K11/COUNTIF('Expanded kW'!$A$2:$A$8785,'Load Factors'!$B11)) -> 0.3703448557 | I11: =IF(Peaks!L11=0,0,Peaks!$D11/Peaks!L11/COUNTIF('Expanded kW'!$A$2:$A$8785,'Load Factors'!$B11)) -> 0.4352452279 | J11: =IF(Peaks!M11=0,0,Peaks!$D11/Peaks!M11/COUNTIF('Expanded kW'!$A$2:$A$8785,'Load Factors'!$B11)) -> 0.3568614942
A12: =+'Manual Inputs'!A13 -> 2019 | B12: =+'Manual Inputs'!B13 -> 6 | C12: =IF(Peaks!J12=0,0,+Peaks!G12/Peaks!J12) -> 1 | D12: =IF(Peaks!H12=0,0,Peaks!$D12/Peaks!H12/COUNTIF('Expanded kW'!$A$2:$A$8785,'Load Factors'!$B12)) -> 0.5570142476 | E12: =IF(Peaks!I12=0,0,Peaks!$D12/Peaks!I12/COUNTIF('Expanded kW'!$A$2:$A$8785,'Load Factors'!$B12)) -> 0.6851383825 | F12: =IF(Peaks!J12=0,0,Peaks!$D12/Peaks!J12/COUNTIF('Expanded kW'!$A$2:$A$8785,'Load Factors'!$B12)) -> 0.5570142476 | H12: =IF(Peaks!K12=0,0,Peaks!$D12/Peaks!K12/COUNTIF('Expanded kW'!$A$2:$A$8785,'Load Factors'!$B12)) -> 0.3807047582 | I12: =IF(Peaks!L12=0,0,Peaks!$D12/Peaks!L12/COUNTIF('Expanded kW'!$A$2:$A$8785,'Load Factors'!$B12)) -> 0.4332001126 | J12: =IF(Peaks!M12=0,0,Peaks!$D12/Peaks!M12/COUNTIF('Expanded kW'!$A$2:$A$8785,'Load Factors'!$B12)) -> 0.362972919
A13: =+'Manual Inputs'!A14 -> 2019 | B13: =+'Manual Inputs'!B14 -> 7 | C13: =IF(Peaks!J13=0,0,+Peaks!G13/Peaks!J13) -> 1 | D13: =IF(Peaks!H13=0,0,Peaks!$D13/Peaks!H13/COUNTIF('Expanded kW'!$A$2:$A$8785,'Load Factors'!$B13)) -> 0.6004192564 | E13: =IF(Peaks!I13=0,0,Peaks!$D13/Peaks!I13/COUNTIF('Expanded kW'!$A$2:$A$8785,'Load Factors'!$B13)) -> 0.7121114212 | F13: =IF(Peaks!J13=0,0,Peaks!$D13/Peaks!J13/COUNTIF('Expanded kW'!$A$2:$A$8785,'Load Factors'!$B13)) -> 0.6004192564 | H13: =IF(Peaks!K13=0,0,Peaks!$D13/Peaks!K13/COUNTIF('Expanded kW'!$A$2:$A$8785,'Load Factors'!$B13)) -> 0.4177629357 | I13: =IF(Peaks!L13=0,0,Peaks!$D13/Peaks!L13/COUNTIF('Expanded kW'!$A$2:$A$8785,'Load Factors'!$B13)) -> 0.4760553314 | J13: =IF(Peaks!M13=0,0,Peaks!$D13/Peaks!M13/COUNTIF('Expanded kW'!$A$2:$A$8785,'Load Factors'!$B13)) -> 0.4038149365
A14: =+'Manual Inputs'!A15 -> 2019 | B14: =+'Manual Inputs'!B15 -> 8 | C14: =IF(Peaks!J14=0,0,+Peaks!G14/Peaks!J14) -> 0.9642857143 | D14: =IF(Peaks!H14=0,0,Peaks!$D14/Peaks!H14/COUNTIF('Expanded kW'!$A$2:$A$8785,'Load Factors'!$B14)) -> 0.5822033565 | E14: =IF(Peaks!I14=0,0,Peaks!$D14/Peaks!I14/COUNTIF('Expanded kW'!$A$2:$A$8785,'Load Factors'!$B14)) -> 0.7271502502 | F14: =IF(Peaks!J14=0,0,Peaks!$D14/Peaks!J14/COUNTIF('Expanded kW'!$A$2:$A$8785,'Load Factors'!$B14)) -> 0.5822033565 | H14: =IF(Peaks!K14=0,0,Peaks!$D14/Peaks!K14/COUNTIF('Expanded kW'!$A$2:$A$8785,'Load Factors'!$B14)) -> 0.3995090799 | I14: =IF(Peaks!L14=0,0,Peaks!$D14/Peaks!L14/COUNTIF('Expanded kW'!$A$2:$A$8785,'Load Factors'!$B14)) -> 0.4584441235 | J14: =IF(Peaks!M14=0,0,Peaks!$D14/Peaks!M14/COUNTIF('Expanded kW'!$A$2:$A$8785,'Load Factors'!$B14)) -> 0.3869023326
A15: =+'Manual Inputs'!A16 -> 2019 | B15: =+'Manual Inputs'!B16 -> 9 | C15: =IF(Peaks!J15=0,0,+Peaks!G15/Peaks!J15) -> 1 | D15: =IF(Peaks!H15=0,0,Peaks!$D15/Peaks!H15/COUNTIF('Expanded kW'!$A$2:$A$8785,'Load Factors'!$B15)) -> 0.574734237 | E15: =IF(Peaks!I15=0,0,Peaks!$D15/Peaks!I15/COUNTIF('Expanded kW'!$A$2:$A$8785,'Load Factors'!$B15)) -> 0.7502212718 | F15: =IF(Peaks!J15=0,0,Peaks!$D15/Peaks!J15/COUNTIF('Expanded kW'!$A$2:$A$8785,'Load Factors'!$B15)) -> 0.574734237 | H15: =IF(Peaks!K15=0,0,Peaks!$D15/Peaks!K15/COUNTIF('Expanded kW'!$A$2:$A$8785,'Load Factors'!$B15)) -> 0.3962950943 | I15: =IF(Peaks!L15=0,0,Peaks!$D15/Peaks!L15/COUNTIF('Expanded kW'!$A$2:$A$8785,'Load Factors'!$B15)) -> 0.4595939057 | J15: =IF(Peaks!M15=0,0,Peaks!$D15/Peaks!M15/COUNTIF('Expanded kW'!$A$2:$A$8785,'Load Factors'!$B15)) -> 0.3837403734
A16: =+'Manual Inputs'!A17 -> 2019 | B16: =+'Manual Inputs'!B17 -> 10 | C16: =IF(Peaks!J16=0,0,+Peaks!G16/Peaks!J16) -> 0.9597024179 | D16: =IF(Peaks!H16=0,0,Peaks!$D16/Peaks!H16/COUNTIF('Expanded kW'!$A$2:$A$8785,'Load Factors'!$B16)) -> 0.4848533764 | E16: =IF(Peaks!I16=0,0,Peaks!$D16/Peaks!I16/COUNTIF('Expanded kW'!$A$2:$A$8785,'Load Factors'!$B16)) -> 0.7448271392 | F16: =IF(Peaks!J16=0,0,Peaks!$D16/Peaks!J16/COUNTIF('Expanded kW'!$A$2:$A$8785,'Load Factors'!$B16)) -> 0.4848533764 | H16: =IF(Peaks!K16=0,0,Peaks!$D16/Peaks!K16/COUNTIF('Expanded kW'!$A$2:$A$8785,'Load Factors'!$B16)) -> 0.309136889 | I16: =IF(Peaks!L16=0,0,Peaks!$D16/Peaks!L16/COUNTIF('Expanded kW'!$A$2:$A$8785,'Load Factors'!$B16)) -> 0.4167201754 | J16: =IF(Peaks!M16=0,0,Peaks!$D16/Peaks!M16/COUNTIF('Expanded kW'!$A$2:$A$8785,'Load Factors'!$B16)) -> 0.3029558637
A17: =+'Manual Inputs'!A18 -> 2019 | B17: =+'Manual Inputs'!B18 -> 11 | C17: =IF(Peaks!J17=0,0,+Peaks!G17/Peaks!J17) -> 0.9468438538 | D17: =IF(Peaks!H17=0,0,Peaks!$D17/Peaks!H17/COUNTIF('Expanded kW'!$A$2:$A$8785,'Load Factors'!$B17)) -> 0.604473901 | E17: =IF(Peaks!I17=0,0,Peaks!$D17/Peaks!I17/COUNTIF('Expanded kW'!$A$2:$A$8785,'Load Factors'!$B17)) -> 0.6708947057 | F17: =IF(Peaks!J17=0,0,Peaks!$D17/Peaks!J17/COUNTIF('Expanded kW'!$A$2:$A$8785,'Load Factors'!$B17)) -> 0.604473901 | H17: =IF(Peaks!K17=0,0,Peaks!$D17/Peaks!K17/COUNTIF('Expanded kW'!$A$2:$A$8785,'Load Factors'!$B17)) -> 0.3667983817 | I17: =IF(Peaks!L17=0,0,Peaks!$D17/Peaks!L17/COUNTIF('Expanded kW'!$A$2:$A$8785,'Load Factors'!$B17)) -> 0.3978880679 | J17: =IF(Peaks!M17=0,0,Peaks!$D17/Peaks!M17/COUNTIF('Expanded kW'!$A$2:$A$8785,'Load Factors'!$B17)) -> 0.3420107105
A18: =+'Manual Inputs'!A19 -> 2019 | B18: =+'Manual Inputs'!B19 -> 12 | C18: =IF(Peaks!J18=0,0,+Peaks!G18/Peaks!J18) -> 0.8849287169 | D18: =IF(Peaks!H18=0,0,Peaks!$D18/Peaks!H18/COUNTIF('Expanded kW'!$A$2:$A$8785,'Load Factors'!$B18)) -> 0.5899511637 | E18: =IF(Peaks!I18=0,0,Peaks!$D18/Peaks!I18/COUNTIF('Expanded kW'!$A$2:$A$8785,'Load Factors'!$B18)) -> 0.7250713927 | F18: =IF(Peaks!J18=0,0,Peaks!$D18/Peaks!J18/COUNTIF('Expanded kW'!$A$2:$A$8785,'Load Factors'!$B18)) -> 0.5899511637 | H18: =IF(Peaks!K18=0,0,Peaks!$D18/Peaks!K18/COUNTIF('Expanded kW'!$A$2:$A$8785,'Load Factors'!$B18)) -> 0.3633596158 | I18: =IF(Peaks!L18=0,0,Peaks!$D18/Peaks!L18/COUNTIF('Expanded kW'!$A$2:$A$8785,'Load Factors'!$B18)) -> 0.4271298793 | J18: =IF(Peaks!M18=0,0,Peaks!$D18/Peaks!M18/COUNTIF('Expanded kW'!$A$2:$A$8785,'Load Factors'!$B18)) -> 0.3531443698
A19: =+'Manual Inputs'!A20 -> 2020 | B19: =+'Manual Inputs'!B20 -> 1 | C19: =IF(Peaks!J19=0,0,+Peaks!G19/Peaks!J19) -> 0.9552545156 | D19: =IF(Peaks!H19=0,0,Peaks!$D19/Peaks!H19/COUNTIF('Expanded kW'!$A$2:$A$8785,'Load Factors'!$B19)) -> 0.575820526 | E19: =IF(Peaks!I19=0,0,Peaks!$D19/Peaks!I19/COUNTIF('Expanded kW'!$A$2:$A$8785,'Load Factors'!$B19)) -> 0.6660488136 | F19: =IF(Peaks!J19=0,0,Peaks!$D19/Peaks!J19/COUNTIF('Expanded kW'!$A$2:$A$8785,'Load Factors'!$B19)) -> 0.575820526 | H19: =IF(Peaks!K19=0,0,Peaks!$D19/Peaks!K19/COUNTIF('Expanded kW'!$A$2:$A$8785,'Load Factors'!$B19)) -> 0.359654007 | I19: =IF(Peaks!L19=0,0,Peaks!$D19/Peaks!L19/COUNTIF('Expanded kW'!$A$2:$A$8785,'Load Factors'!$B19)) -> 0.4188159803 | J19: =IF(Peaks!M19=0,0,Peaks!$D19/Peaks!M19/COUNTIF('Expanded kW'!$A$2:$A$8785,'Load Factors'!$B19)) -> 0.3460968167
A20: =+'Manual Inputs'!A21 -> 2020 | B20: =+'Manual Inputs'!B21 -> 2 | C20: =IF(Peaks!J20=0,0,+Peaks!G20/Peaks!J20) -> 0.9543378995 | D20: =IF(Peaks!H20=0,0,Peaks!$D20/Peaks!H20/COUNTIF('Expanded kW'!$A$2:$A$8785,'Load Factors'!$B20)) -> 0.6528361534 | E20: =IF(Peaks!I20=0,0,Peaks!$D20/Peaks!I20/COUNTIF('Expanded kW'!$A$2:$A$8785,'Load Factors'!$B20)) -> 0.684072333 | F20: =IF(Peaks!J20=0,0,Peaks!$D20/Peaks!J20/COUNTIF('Expanded kW'!$A$2:$A$8785,'Load Factors'!$B20)) -> 0.6528361534 | H20: =IF(Peaks!K20=0,0,Peaks!$D20/Peaks!K20/COUNTIF('Expanded kW'!$A$2:$A$8785,'Load Factors'!$B20)) -> 0.4008240477 | I20: =IF(Peaks!L20=0,0,Peaks!$D20/Peaks!L20/COUNTIF('Expanded kW'!$A$2:$A$8785,'Load Factors'!$B20)) -> 0.423771206 | J20: =IF(Peaks!M20=0,0,Peaks!$D20/Peaks!M20/COUNTIF('Expanded kW'!$A$2:$A$8785,'Load Factors'!$B20)) -> 0.3690822076
A21: =+'Manual Inputs'!A22 -> 2020 | B21: =+'Manual Inputs'!B22 -> 3 | C21: =IF(Peaks!J21=0,0,+Peaks!G21/Peaks!J21) -> 0.9324391456 | D21: =IF(Peaks!H21=0,0,Peaks!$D21/Peaks!H21/COUNTIF('Expanded kW'!$A$2:$A$8785,'Load Factors'!$B21)) -> 0.5944193123 | E21: =IF(Peaks!I21=0,0,Peaks!$D21/Peaks!I21/COUNTIF('Expanded kW'!$A$2:$A$8785,'Load Factors'!$B21)) -> 0.5669573172 | F21: =IF(Peaks!J21=0,0,Peaks!$D21/Peaks!J21/COUNTIF('Expanded kW'!$A$2:$A$8785,'Load Factors'!$B21)) -> 0.5669573172 | H21: =IF(Peaks!K21=0,0,Peaks!$D21/Peaks!K21/COUNTIF('Expanded kW'!$A$2:$A$8785,'Load Factors'!$B21)) -> 0.3458513832 | I21: =IF(Peaks!L21=0,0,Peaks!$D21/Peaks!L21/COUNTIF('Expanded kW'!$A$2:$A$8785,'Load Factors'!$B21)) -> 0.3465394163 | J21: =IF(Peaks!M21=0,0,Peaks!$D21/Peaks!M21/COUNTIF('Expanded kW'!$A$2:$A$8785,'Load Factors'!$B21)) -> 0.3010771811
A23: Average | C23: =AVERAGE(Peaks!G10:G21)/AVERAGE(Peaks!J10:J21) -> 0.9364600666 | D23: =+Peaks!$D24/Peaks!H24/(TYDays*24/12) -> 0.5793407101 | E23: =+Peaks!$D24/Peaks!I24/(TYDays*24/12) -> 0.6846558723 | F23: =+Peaks!$D24/Peaks!J24/(TYDays*24/12) -> 0.5765391977 | H23: =+Peaks!$D24/Peaks!K24/(TYDays*24/12) -> 0.3649178787 | I23: =+Peaks!$D24/Peaks!L24/(TYDays*24/12) -> 0.4172551497 | J23: =+Peaks!$D24/Peaks!M24/(TYDays*24/12) -> 0.3454405332

Sheet On,Off Peak kWh
A1: ='Manual Inputs'!D1 -> Kentucky Power Co.
A2: =+'Manual Inputs'!D2 -> Kentucky
A3: On and Off Peak Energy Summary
A4: =CustClass & " Customers" -> General Service - Primary Customers
A5: =+'Monthly Data'!A5 -> For the Test Year Ended March 31, 2020
A6: =+'Monthly Data'!A6 -> Based on Sample Period Ended March 31, 2020
C10: TY kWh | E10: kWh Peak | F10: % Peak | H10: kWh Off-Peak | I10: % Off-Peak
A11: =+'Manual Inputs'!A11 -> 2019 | B11: =+'Manual Inputs'!B11 -> 4 | C11: =SUMIF('Expanded kW'!$A$2:$A$8785,B11,'Expanded kW'!$H$2:$H$8785) -> 607077.6495 | E11: =SUMIFS('Expanded kW'!$H$2:$H$8785,'Expanded kW'!$A$2:$A$8785,$B11,'Expanded kW'!$C$2:$C$8785,"ON") -> 316253.0881 | F11: =IF(C11=0,0,+E11/C11) -> 0.520943389 | H11: =SUMIFS('Expanded kW'!$H$2:$H$8785,'Expanded kW'!$A$2:$A$8785,$B11,'Expanded kW'!$C$2:$C$8785,"OFF") -> 290824.5614 | I11: =IF(C11=0,0,+H11/C11) -> 0.479056611
A12: =+'Manual Inputs'!A12 -> 2019 | B12: =+'Manual Inputs'!B12 -> 5 | C12: =SUMIF('Expanded kW'!$A$2:$A$8785,B12,'Expanded kW'!$H$2:$H$8785) -> 509553.3386 | E12: =SUMIFS('Expanded kW'!$H$2:$H$8785,'Expanded kW'!$A$2:$A$8785,$B12,'Expanded kW'!$C$2:$C$8785,"ON") -> 270822.2429 | F12: =IF(C12=0,0,+E12/C12) -> 0.5314894878 | H12: =SUMIFS('Expanded kW'!$H$2:$H$8785,'Expanded kW'!$A$2:$A$8785,$B12,'Expanded kW'!$C$2:$C$8785,"OFF") -> 238731.0957 | I12: =IF(C12=0,0,+H12/C12) -> 0.4685105122
A13: =+'Manual Inputs'!A13 -> 2019 | B13: =+'Manual Inputs'!B13 -> 6 | C13: =SUMIF('Expanded kW'!$A$2:$A$8785,B13,'Expanded kW'!$H$2:$H$8785) -> 506125.4259 | E13: =SUMIFS('Expanded kW'!$H$2:$H$8785,'Expanded kW'!$A$2:$A$8785,$B13,'Expanded kW'!$C$2:$C$8785,"ON") -> 241900.7965 | F13: 0.4779463431 | H13: =SUMIFS('Expanded kW'!$H$2:$H$8785,'Expanded kW'!$A$2:$A$8785,$B13,'Expanded kW'!$C$2:$C$8785,"OFF") -> 264224.6294 | I13: 0.5220536569
A14: =+'Manual Inputs'!A14 -> 2019 | B14: =+'Manual Inputs'!B14 -> 7 | C14: =SUMIF('Expanded kW'!$A$2:$A$8785,B14,'Expanded kW'!$H$2:$H$8785) -> 538287.8718 | E14: =SUMIFS('Expanded kW'!$H$2:$H$8785,'Expanded kW'!$A$2:$A$8785,$B14,'Expanded kW'!$C$2:$C$8785,"ON") -> 281213.5196 | F14: 0.5224221728 | H14: =SUMIFS('Expanded kW'!$H$2:$H$8785,'Expanded kW'!$A$2:$A$8785,$B14,'Expanded kW'!$C$2:$C$8785,"OFF") -> 257074.3522 | I14: 0.4775778272
A15: =+'Manual Inputs'!A15 -> 2019 | B15: =+'Manual Inputs'!B15 -> 8 | C15: =SUMIF('Expanded kW'!$A$2:$A$8785,B15,'Expanded kW'!$H$2:$H$8785) -> 521523.7938 | E15: =SUMIFS('Expanded kW'!$H$2:$H$8785,'Expanded kW'!$A$2:$A$8785,$B15,'Expanded kW'!$C$2:$C$8785,"ON") -> 269744.6809 | F15: 0.5172241115 | H15: =SUMIFS('Expanded kW'!$H$2:$H$8785,'Expanded kW'!$A$2:$A$8785,$B15,'Expanded kW'!$C$2:$C$8785,"OFF") -> 251779.113 | I15: 0.4827758885
A16: =+'Manual Inputs'!A16 -> 2019 | B16: =+'Manual Inputs'!B16 -> 9 | C16: =SUMIF('Expanded kW'!$A$2:$A$8785,B16,'Expanded kW'!$H$2:$H$8785) -> 546641.2275 | E16: =SUMIFS('Expanded kW'!$H$2:$H$8785,'Expanded kW'!$A$2:$A$8785,$B16,'Expanded kW'!$C$2:$C$8785,"ON") -> 278137.9526 | F16: 0.5088126153 | H16: =SUMIFS('Expanded kW'!$H$2:$H$8785,'Expanded kW'!$A$2:$A$8785,$B16,'Expanded kW'!$C$2:$C$8785,"OFF") -> 268503.2749 | I16: 0.4911873847
A17: =+'Manual Inputs'!A17 -> 2019 | B17: =+'Manual Inputs'!B17 -> 10 | C17: =SUMIF('Expanded kW'!$A$2:$A$8785,B17,'Expanded kW'!$H$2:$H$8785) -> 581858.9612 | E17: =SUMIFS('Expanded kW'!$H$2:$H$8785,'Expanded kW'!$A$2:$A$8785,$B17,'Expanded kW'!$C$2:$C$8785,"ON") -> 308637.675 | F17: 0.5304338261 | H17: =SUMIFS('Expanded kW'!$H$2:$H$8785,'Expanded kW'!$A$2:$A$8785,$B17,'Expanded kW'!$C$2:$C$8785,"OFF") -> 273221.2861 | I17: 0.4695661739
A18: =+'Manual Inputs'!A18 -> 2019 | B18: =+'Manual Inputs'!B18 -> 11 | C18: =SUMIF('Expanded kW'!$A$2:$A$8785,B18,'Expanded kW'!$H$2:$H$8785) -> 655007.9191 | E18: =SUMIFS('Expanded kW'!$H$2:$H$8785,'Expanded kW'!$A$2:$A$8785,$B18,'Expanded kW'!$C$2:$C$8785,"ON") -> 293934.5327 | F18: 0.4487495862 | H18: =SUMIFS('Expanded kW'!$H$2:$H$8785,'Expanded kW'!$A$2:$A$8785,$B18,'Expanded kW'!$C$2:$C$8785,"OFF") -> 361073.3864 | I18: 0.5512504138
A19: =+'Manual Inputs'!A19 -> 2019 | B19: =+'Manual Inputs'!B19 -> 12 | C19: =SUMIF('Expanded kW'!$A$2:$A$8785,B19,'Expanded kW'!$H$2:$H$8785) -> 862046.0796 | E19: =SUMIFS('Expanded kW'!$H$2:$H$8785,'Expanded kW'!$A$2:$A$8785,$B19,'Expanded kW'!$C$2:$C$8785,"ON") -> 400391.3661 | F19: 0.4644663152 | H19: =SUMIFS('Expanded kW'!$H$2:$H$8785,'Expanded kW'!$A$2:$A$8785,$B19,'Expanded kW'!$C$2:$C$8785,"OFF") -> 461654.7135 | I19: 0.5355336848
A20: =+'Manual Inputs'!A20 -> 2020 | B20: =+'Manual Inputs'!B20 -> 1 | C20: =SUMIF('Expanded kW'!$A$2:$A$8785,B20,'Expanded kW'!$H$2:$H$8785) -> 1043607.908 | E20: =SUMIFS('Expanded kW'!$H$2:$H$8785,'Expanded kW'!$A$2:$A$8785,$B20,'Expanded kW'!$C$2:$C$8785,"ON") -> 506696.297 | F20: 0.4855236272 | H20: =SUMIFS('Expanded kW'!$H$2:$H$8785,'Expanded kW'!$A$2:$A$8785,$B20,'Expanded kW'!$C$2:$C$8785,"OFF") -> 536911.6113 | I20: 0.5144763728
A21: =+'Manual Inputs'!A21 -> 2020 | B21: =+'Manual Inputs'!B21 -> 2 | C21: =SUMIF('Expanded kW'!$A$2:$A$8785,B21,'Expanded kW'!$H$2:$H$8785) -> 895571.0806 | E21: =SUMIFS('Expanded kW'!$H$2:$H$8785,'Expanded kW'!$A$2:$A$8785,$B21,'Expanded kW'!$C$2:$C$8785,"ON") -> 390418.1324 | F21: 0.4359432108 | H21: =SUMIFS('Expanded kW'!$H$2:$H$8785,'Expanded kW'!$A$2:$A$8785,$B21,'Expanded kW'!$C$2:$C$8785,"OFF") -> 505152.9482 | I21: 0.5640567892
A22: =+'Manual Inputs'!A22 -> 2020 | B22: =+'Manual Inputs'!B22 -> 3 | C22: =SUMIF('Expanded kW'!$A$2:$A$8785,B22,'Expanded kW'!$H$2:$H$8785) -> 849116.0992 | E22: =SUMIFS('Expanded kW'!$H$2:$H$8785,'Expanded kW'!$A$2:$A$8785,$B22,'Expanded kW'!$C$2:$C$8785,"ON") -> 388525.1302 | F22: 0.4575642019 | H22: =SUMIFS('Expanded kW'!$H$2:$H$8785,'Expanded kW'!$A$2:$A$8785,$B22,'Expanded kW'!$C$2:$C$8785,"OFF") -> 460590.969 | I22: 0.5424357981
A24: 12-Month Total | C24: =SUM(C11:C22) -> 8116417.355 | E24: =SUM(E11:E22) -> 3946675.414 | F24: 0.4862583134 | H24: =SUM(H11:H22) -> 4169741.941 | I24: 0.5137416866
